Workbook

Sheet Ashburton EAC
C2: Ashburton Fund Managers | CE2: 0 | CY2: 0 | DM2: 0 | EQ2: 0 | EU2: 0 | GC2: 0 | GI2: 0 | HK2: 0 | IA2: 0 | IS2: 0 | JS2: 0 | KA2: 0 | LI2: 0 | LK2: 0 | MQ2: 0 | NC2: 0 | NY2: 0 | OU2: 0 | PG2: 0 | QM2: 0 | QO2: 0 | SE2: 0 | TW2: 0 | VO2: 0
CE4: 0 | DM4: 0 | EU4: 0 | GC4: 0 | HK4: 0 | IS4: 0 | KA4: 0 | LI4: 0 | MQ4: 0 | NY4: 0 | PG4: 0 | QO4: 0
A6: Lump sum investment
A7: Investment amount | E7: 0 | F7: =IF(AND(C4="Ashburton Tax Free Savings Account",E7>Lists!$A$27),"Maximum permissible contribution exceeded.","") -> 
A8: Initial advisor fee percentage (excl. VAT) | E8: 0
A10: Monthly recurring investment
A11: Investment amount | E11: 0 | F11: =IF(AND(C4="Ashburton Tax Free Savings Account",E11>Lists!$A$28),"Maximum permissible contribution exceeded","") -> 
A12: Annual escalation percentage | E12: 0
A13: Initial advisor fee percentage (excl. VAT) | E13: 0
A15: Annual advisor fee percentage (excl. VAT) | E15: 0
A17: Regular disinvestment | SD17: 0 | TV17: 0 | VN17: 0
A18: Income amount per frequency | E18: 0 | F18: =IF(E18=0,"",IF(AND(C2=Lists!#REF!,'Ashburton EAC'!C4=Lists!#REF!),"",IF(AND('Ashburton EAC'!C2=Lists!#REF!,'Ashburton EAC'!C4=Lists!#REF!),"",IF(E18="","","Regular disinvestment not allowed.")))) ->  | SD18: 0 | TV18: 0 | VN18: 0
A19: Income frequency | E19: Select:
A20: Income escalation | E20: 0
A22: Investment allocation Instrument name | E22: Lump sum allocation (%) | F22: Recurring investment allocation (%)
E23: 0 | F23: 0 | NX23: 0 | PF23: 0 | QN23: 0
E24: 0 | F24: 0
E25: 0 | F25: 0
E26: 0 | F26: 0
E27: 0 | F27: 0
E28: 0 | F28: 0
E29: 0 | F29: 0
E30: 0 | F30: 0
E31: 0 | F31: 0
E32: 0 | F32: 0
E33: 0 | F33: 0
A34: =IF(OR(E34>1,F34>1),"The total allocation is greater than 100%, please check.","") ->  | E34: =SUM(E23:E33) -> 0 | F34: =SUM(F23:F33) -> 0
A36: ="Effective Annual Cost: "&C4 -> Effective Annual Cost:
A38: The Effective Annual Cost (EAC) is a measure which has been introduced to allow you to compare the cost you incur when you invest in different financial products. It is expressed as a percentage of your investment amount. The EAC is made up of four charges, which are added together, as shown in the table below. Some of the charges may vary, depending on your investment period. The EAC calculation assumes that an investor terminates his or her investment in the financial product at the end of the relevant periods shown in the table. | NB38: 0 | OT38: 0 | QL38: 0
A40: Charges | C40: 1 Year | D40: 3 Years | E40: 5 Years | F40: 10 Years | NB40: 0 | OT40: 0 | QL40: 0
A41: Investment management | C41: =Calculations!B50 -> 0 | D41: =Calculations!C50 -> 0 | E41: =Calculations!D50 -> 0 | F41: =Calculations!E50 -> 0
A42: Advice | C42: =IF(F34>0,Calculations!B51,(E8+E15)*1.15) -> 0 | D42: =IF(F34>0,Calculations!C51,((E8/3)+E15)*1.15) -> 0 | E42: =IF(F34>0,Calculations!D51,((E8/5)+E15)*1.15) -> 0 | F42: =IF(F34>0,Calculations!E51,((E8/10)+E15)*1.15) -> 0
A43: Administration | C43: =Calculations!$D$65 -> 0 | D43: =Calculations!$D$65 -> 0 | E43: =Calculations!$D$65 -> 0 | F43: =Calculations!$D$65 -> 0 | JZ43: 0 | LH43: 0 | MP43: 0 | NB43: 0 | OT43: 0 | QL43: 0
A44: Effective Annual Cost | C44: =SUM(C41:C43) -> 0 | D44: =SUM(D41:D43) -> 0 | E44: =SUM(E41:E43) -> 0 | F44: =SUM(F41:F43) -> 0
HZ60: 0 | JR60: 0 | LJ60: 0
HZ62: 0 | JR62: 0 | LJ62: 0
GB65: 0 | HJ65: 0 | HZ65: 0 | IR65: 0 | JR65: 0 | LJ65: 0
GB67: 0 | HJ67: 0 | IR67: 0
CX120: 0 | EP120: 0 | GH120: 0
CX122: 0 | EP122: 0 | GH122: 0
CD125: 0 | CX125: 0 | DL125: 0 | EP125: 0 | ET125: 0 | GH125: 0
CD127: 0 | DL127: 0 | ET127: 0

Sheet Calculations (hidden)
Y1: Calculation Excluding Fees | AH1: Advice fees - 10 years | BB1: Advice fees - 5 years | BV1: Advice fees - 3 years | CO1: Advice fees - 1 years
F2: Payment number | G2: Month | H2: Allocation then Ash U/T value at start of month | I2: Ash U/T recurring value at start of month | J2: Recurring investment (Ash u/t) | K2: Ash u/t return on recurring | L2: Return | M2: ASH u/t annual fee | N2: ASH recurring u/t annual fee | O2: ASH u/t annual advice fee (Lump sum) | P2: ASH u/t annual advice fee (Recurring) | Q2: Tot annual advice fee | R2: Recurring value at end | S2: Value before income | T2: Income from ASH u/t | U2: Income payment | V2: Value at end | Y2: Payment number | Z2: Month | AA2: Value at start of month | AB2: Recurring investment | AC2: Return | AD2: Income payment | AE2: Value at end | AF2: 0.003266104965 | AH2: Payment number | AI2: Month | AJ2: Ash U/T value at start of month | AK2: Ash U/T recurring value at start of month | AL2: Tot value at start of month | AM2: Recurring investment (Ash u/t) | AN2: Ash u/t return | AO2: Ash u/t return | AP2: Return | AQ2: ASH u/t annual fee | AR2: ASH recurring u/t annual fee | AS2: ASH u/t annual advice fee | AT2: ASH u/t annual advice fee | AU2: Tot annual advice fee | AV2: Recurring value at end | AW2: Value before income | AX2: Income from ASH u/t | AY2: Income payment | AZ2: Value at end | BA2: 0.004228482089 | BB2: Payment number | BC2: Month | BD2: Ash U/T value at start of month | BE2: Ash U/T recurring value at start of month | BF2: Tot value at start of month | BG2: Recurring investment (Ash u/t) | BH2: Ash u/t return | BI2: Ash u/t return | BJ2: Return | BK2: ASH u/t annual fee | BL2: ASH recurring u/t annual fee | BM2: ASH u/t annual advice fee | BN2: ASH u/t annual advice fee | BO2: Tot annual advice fee | BP2: Recurring value at end | BQ2: Value before income | BR2: Income from ASH u/t | BS2: Income payment | BT2: Value at end | BU2: 0.004082205492 | BV2: Payment number | BW2: Month | BX2: Ash U/T value at start of month | BY2: Ash U/T recurring value at start of month | BZ2: Tot value at start of month | CA2: Recurring investment (Ash u/t) | CB2: Ash u/t return | CC2: Ash u/t return | CD2: ASH u/t annual fee | CE2: ASH recurring u/t annual fee | CF2: ASH u/t annual advice fee | CG2: ASH u/t annual advice fee | CH2: Tot annual advice fee | CI2: Recurring value at end | CJ2: Value before income | CK2: Income from ASH u/t | CL2: Income payment | CM2: Value at end | CN2: 0.003888092372 | CO2: Payment number | CP2: Month | CQ2: Ash U/T value at start of month | CR2: Ash U/T recurring value at start of month | CS2: Tot value at start of month | CT2: Recurring investment (Ash u/t) | CU2: Ash u/t return | CV2: Ash u/t return | CW2: Return | CX2: ASH u/t annual fee | CY2: ASH recurring u/t annual fee | CZ2: ASH u/t annual advice fee | DA2: ASH u/t annual advice fee | DB2: Tot annual advice fee | DC2: Recurring value at end | DD2: Value before income | DE2: Income from ASH u/t | DF2: Income payment | DG2: Value at end | DH2: 0.002919856051
D3: =(1+B45)^(1/12)-1 -> 0.004867550565 | F3: 1 | G3: 0 | H3: ='Allocation Detail'!D13 -> 0 | I3: 0 | J3: =IF(G3/$D$16-INT(G3/$D$16)=0,ROUND($D$19*$D$20*((1+$D$17)^INT(G3/12)),2),0) -> 0 | K3: =ROUND(J3*((1+$B$45)^(1/12)-1),2) -> 0 | L3: =ROUND(H3*((1+$B$45)^(1/12)-1),2) -> 0 | M3: =IFERROR(ROUND(-SUM(H3,L3)*'Allocation Detail'!$E$13/12,2),0) -> 0 | N3: =IFERROR(ROUND(-SUM(J3,K3)*'Allocation Detail'!$E$13/12,2),0) -> 0 | O3: =ROUND(-(H3+L3)*$B$11/12*1.15,2) -> 0 | P3: =ROUND(-(I3+J3+K3)*$B$11/12*1.15,2) -> 0 | Q3: =-SUM(H3:I3,L3:L3)*$B$11/12*1.15 -> 0 | R3: =SUM(I3,J3,K3,N3,P3) -> 0 | S3: =SUM(H3,L3,M3,O3) -> 0 | T3: =IFERROR(U3*('Allocation Detail'!#REF!/'Allocation Detail'!#REF!),0) -> 0 | U3: =IF($D$39="",0,MAX(-IF($D$41="",0,IF((G3/$D$41)-INT(G3/$D$41)=0,$D$39*((1+$D$42)^INT(G3/12)),0)),-S3)) -> 0 | V3: =IF(OR($D$8=0,$D$39=0,$D$8="",$D$39=""),S3+R3,MAX(R3+S3+U3,0)) -> 0 | W3: =SUM(M3:N3,Q3)/(S3)*-12 ->  | Y3: 1 | Z3: 0 | AA3: =D8 -> 0 | AB3: =IF(G3/$D$16-INT(G3/$D$16)=0,ROUND($D$14*((1+$D$17)^INT(G3/12)),2),0) -> 0 | AC3: =(AA3+AB3)*$AF$2 -> 0 | AD3: =MAX(-IF($D$41="",0,IF((Z3/$D$41)-INT(Z3/$D$41)=0,$D$39*((1+$D$42)^INT(Z3/12)),0)),-SUM(AA3,AB3,AC3)) -> 0 | AE3: =MAX(SUM(AA3:AD3),0) -> 0 | AF3: =IF(AE3=0,AA3,0) -> 0 | AH3: 1 | AI3: 0 | AJ3: ='Allocation Detail'!D13/(1-$B$9*1.15) -> 0 | AK3: 0 | AL3: =SUM(AJ3:AK3) -> 0 | AM3: =D14 -> 0 | AN3: =ROUND(AM3*BA$2,2) -> 0 | AO3: =ROUND(AJ3*BA$2,2) -> 0 | AP3: =SUM(AO3:AO3) -> 0 | AQ3: =IFERROR(ROUND(-SUM(AJ3,AO3)*'Allocation Detail'!$E$13/12,2),0) -> 0 | AR3: =IFERROR(ROUND(-SUM(AM3,AN3)*'Allocation Detail'!H13/12,2),0) -> 0 | AS3: 0 | AT3: 0 | AU3: 0 | AV3: =SUM(AK3,AM3,AN3,AR3,AT3) -> 0 | AW3: =SUM(AJ3,AO3,AQ3,AS3) -> 0 | AX3: =IFERROR(AY3*('Allocation Detail'!#REF!/'Allocation Detail'!#REF!),0) -> 0 | AY3: =IF($D$39="",0,MAX(-IF($D$41="",0,IF((AI3/$D$41)-INT(AI3/$D$41)=0,$D$39*((1+$D$42)^INT(AI3/12)),0)),-AW3)) -> 0 | AZ3: =IF(OR($D$8=0,$D$39=0,$D$8="",$D$39=""),AW3+AV3,MAX(AV3+AW3+AY3,0)) -> 0 | BB3: 1 | BC3: 0 | BD3: ='Allocation Detail'!D13/(1-$B$9*1.15) -> 0 | BE3: 0 | BF3: =SUM(BD3:BE3) -> 0 | BG3: =IF(BC3/$D$16-INT(BC3/$D$16)=0,ROUND($D$14*$D$20*((1+$D$17)^INT(BC3/12)),2),0) -> 0 | BH3: =ROUND(BG3*BU$2,2) -> 0 | BI3: =ROUND(BD3*BU$2,2) -> 0 | BJ3: =SUM(BI3:BI3) -> 0 | BK3: =IFERROR(ROUND(-SUM(BD3,BI3)*'Allocation Detail'!E13/12,2),0) -> 0 | BL3: =IFERROR(ROUND(-SUM(BG3,BH3)*'Allocation Detail'!$H$13/12,2),0) -> 0 | BM3: 0 | BN3: 0 | BO3: =-SUM(BD3:BE3,BI3:BI3)*$B$11/12*1.15 -> 0 | BP3: =SUM(BE3,BG3,BH3,BL3,BN3) -> 0 | BQ3: =SUM(BD3,BI3,BK3,BM3) -> 0 | BR3: =IFERROR(BS3*('Allocation Detail'!#REF!/'Allocation Detail'!#REF!),0) -> 0 | BS3: =IF($D$39="",0,MAX(-IF($D$41="",0,IF((BC3/$D$41)-INT(BC3/$D$41)=0,$D$39*((1+$D$42)^INT(BC3/12)),0)),-BQ3)) -> 0 | BT3: =IF(OR($D$8=0,$D$39=0,$D$8="",$D$39=""),BQ3+BP3,MAX(BP3+BQ3+BS3,0)) -> 0 | BV3: 1 | BW3: 0 | BX3: ='Allocation Detail'!$D$13/(1-$B$9*1.15) -> 0 | BY3: 0 | BZ3: =SUM(BX3:BY3) -> 0 | CA3: =IF(BW3/$D$16-INT(BW3/$D$16)=0,ROUND($D$14*$D$20*((1+$D$17)^INT(BW3/12)),2),0) -> 0 | CB3: =ROUND(CA3*CN$2,2) -> 0 | CC3: =ROUND(BX3*CN$2,2) -> 0 | CD3: =IFERROR(ROUND(-SUM(BX3,CC3)*'Allocation Detail'!E13/12,2),0) -> 0 | CE3: =IFERROR(ROUND(-SUM(CA3,CB3)*'Allocation Detail'!H13/12,2),0) -> 0 | CF3: 0 | CG3: 0 | CH3: =-SUM(BX3:BY3,CC3:CC3)*$B$11/12*1.14 -> 0 | CI3: =SUM(BY3,CA3,CB3,CE3) -> 0 | CJ3: =SUM(BX3,CC3,CD3) -> 0 | CK3: =IFERROR(CL3*('Allocation Detail'!#REF!/'Allocation Detail'!#REF!),0) -> 0 | CL3: =IF($D$39="",0,MAX(-IF($D$41="",0,IF((BW3/$D$41)-INT(BW3/$D$41)=0,$D$39*((1+$D$42)^INT(BW3/12)),0)),-CJ3)) -> 0 | CM3: =IF(OR($D$8=0,$D$39=0,$D$8="",$D$39=""),CJ3+CI3,MAX(CI3+CJ3+CL3,0)) -> 0 | CO3: 1 | CP3: 0 | CQ3: ='Allocation Detail'!D13/(1-$B$9*1.15) -> 0 | CR3: 0 | CS3: =SUM(CQ3:CR3) -> 0 | CT3: =IF(CP3/$D$16-INT(CP3/$D$16)=0,ROUND($D$14*$D$20*((1+$D$17)^INT(CP3/12)),2),0) -> 0 | CU3: =ROUND(CT3*DH$2,2) -> 0 | CV3: =ROUND(CQ3*DH$2,2) -> 0 | CW3: =SUM(CV3:CV3) -> 0 | CX3: =IFERROR(ROUND(-SUM(CQ3,CV3)*'Allocation Detail'!$E$13/12,2),0) -> 0 | CY3: =IFERROR(ROUND(-SUM(CT3,CU3)*'Allocation Detail'!$H$13/12,2),0) -> 0 | CZ3: 0 | DA3: 0 | DB3: 0 | DC3: =SUM(CR3,CT3,CU3,CY3,DA3) -> 0 | DD3: =SUM(CQ3,CV3,CX3,CZ3) -> 0 | DE3: =IFERROR(DF3*('Allocation Detail'!#REF!/'Allocation Detail'!#REF!),0) -> 0 | DF3: =IF($D$39="",0,MAX(-IF($D$41="",0,IF((CP3/$D$41)-INT(CP3/$D$41)=0,$D$39*((1+$D$42)^INT(CP3/12)),0)),-DD3)) -> 0 | DG3: =IF(OR($D$8=0,$D$39=0,$D$8="",$D$39=""),DD3+DC3,MAX(DC3+DD3+DF3,0)) -> 0
F4: =F3+1 -> 2 | G4: =G3+1 -> 1 | H4: =ROUND(SUM(H3,L3,M3,O3,T3),2) -> 0 | I4: =SUM(I3,J3,K3,N3,P3) -> 0 | J4: 0 | K4: =ROUND((J4+I4)*((1+$B$45)^(1/12)-1),2) -> 0 | L4: 0 | M4: =IFERROR(ROUND(-SUM(H4,L4)*'Allocation Detail'!$E$13/12,2),0) -> 0 | N4: =IFERROR(ROUND(-SUM(I4,J4,K4)*'Allocation Detail'!$E$13/12,2),0) -> 0 | O4: =ROUND(-(H4+L4)*$B$11/12*1.15,2) -> 0 | P4: =ROUND(-(I4+J4+K4)*$B$11/12*1.15,2) -> 0 | Q4: =-SUM(H4:I4,L4:L4)*$B$11/12*1.15 -> 0 | R4: =SUM(I4,J4,K4,N4,P4) -> 0 | S4: =SUM(H4,L4,M4,O4) -> 0 | T4: =IFERROR(U4*('Allocation Detail'!#REF!/'Allocation Detail'!#REF!),0) -> 0 | U4: 0 | V4: =IF(OR($D$8=0,$D$39=0,$D$8="",$D$39=""),S4+R4,MAX(R3+S4+U4,0)) -> 0 | W4: =SUM(M4:N4,Q4)/(S4)*-12 ->  | Y4: =Y3+1 -> 2 | Z4: =Z3+1 -> 1 | AA4: =AE3 -> 0 | AB4: 0 | AC4: =(AA4+AB4)*$AF$2 -> 0 | AD4: 0 | AE4: =MAX(SUM(AA4:AD4),0) -> 0 | AF4: =IF(AE4=0,AA4,0) -> 0 | AH4: =AH3+1 -> 2 | AI4: =AI3+1 -> 1 | AJ4: =ROUND(SUM(AJ3,AO3,AQ3,AS3,AX3),2) -> 0 | AK4: =SUM(AK3,AM3,AN3,AR3,AT3) -> 0 | AL4: 0 | AM4: =IF(AI4/$D$16-INT(AI4/$D$16)=0,ROUND($D$14*$D$20*((1+$D$17)^INT(AI4/12)),2),0) -> 0 | AN4: =ROUND((AM4+AK4)*BA$2,2) -> 0 | AO4: 0 | AP4: 0 | AQ4: =IFERROR(ROUND(-SUM(AJ4,AO4)*'Allocation Detail'!$E$13/12,2),0) -> 0 | AR4: =IFERROR(ROUND(-SUM(AK4,AM4,AN4)*'Allocation Detail'!$H$13/12,2),0) -> 0 | AS4: 0 | AT4: 0 | AU4: 0 | AV4: =SUM(AK4,AM4,AN4,AR4,AT4) -> 0 | AW4: =SUM(AJ4,AO4,AQ4,AS4) -> 0 | AX4: =IFERROR(AY4*('Allocation Detail'!#REF!/'Allocation Detail'!#REF!),0) -> 0 | AY4: 0 | AZ4: =IF(OR($D$8=0,$D$39=0,$D$8="",$D$39=""),AW4+AV4,MAX(AV3+AW4+AY4,0)) -> 0 | BB4: =BB3+1 -> 2 | BC4: =BC3+1 -> 1 | BD4: =ROUND(SUM(BD3,BI3,BK3,BM3,BR3),2) -> 0 | BE4: =SUM(BE3,BG3,BH3,BL3,BN3) -> 0 | BF4: 0 | BG4: 0 | BH4: =ROUND((BE4+BG4)*BU$2,2) -> 0 | BI4: =ROUND(BD4*BU$2,2) -> 0 | BJ4: 0 | BK4: =IFERROR(ROUND(-SUM(BD4,BI4)*'Allocation Detail'!$E$13/12,2),0) -> 0 | BL4: =IFERROR(ROUND(-SUM(BE4,BG4,BH4)*'Allocation Detail'!$H$13/12,2),0) -> 0 | BM4: 0 | BN4: 0 | BO4: =-SUM(BD4:BE4,BI4)*$B$11/12*1.15 -> 0 | BP4: =SUM(BE4,BG4,BH4,BL4,BN4) -> 0 | BQ4: =SUM(BD4,BI4,BK4,BM4) -> 0 | BR4: =IFERROR(BS4*('Allocation Detail'!#REF!/'Allocation Detail'!#REF!),0) -> 0 | BS4: 0 | BT4: 0 | BV4: =BV3+1 -> 2 | BW4: =BW3+1 -> 1 | BX4: =ROUND(SUM(BX3,CC3,CD3,CF3,CK3),2) -> 0 | BY4: =SUM(BY3,CA3,CB3,CE3,CG3) -> 0 | BZ4: 0 | CA4: 0 | CB4: =ROUND((CA4+BY4)*CN$2,2) -> 0 | CC4: 0 | CD4: =IFERROR(ROUND(-SUM(BX4,CC4)*'Allocation Detail'!$E$13/12,2),0) -> 0 | CE4: =IFERROR(ROUND(-SUM(BY4,CA4,CB4)*'Allocation Detail'!$H$13/12,2),0) -> 0 | CF4: 0 | CG4: 0 | CH4: =-SUM(BX4:BY4,CC4)*$B$11/12*1.14 -> 0 | CI4: =SUM(BY4,CA4,CB4,CE4) -> 0 | CJ4: =SUM(BX4,CC4,CD4) -> 0 | CK4: =IFERROR(CL4*('Allocation Detail'!#REF!/'Allocation Detail'!#REF!),0) -> 0 | CL4: 0 | CM4: 0 | CO4: =CO3+1 -> 2 | CP4: =CP3+1 -> 1 | CQ4: =ROUND(SUM(CQ3,CV3,CX3,CZ3,DE3),2) -> 0 | CR4: =SUM(CR3,CT3,CU3,CY3,DA3) -> 0 | CS4: 0 | CT4: 0 | CU4: =ROUND((CT4+CR4)*DH$2,2) -> 0 | CV4: 0 | CW4: 0 | CX4: =IFERROR(ROUND(-SUM(CQ4,CV4)*'Allocation Detail'!$E$13/12,2),0) -> 0 | CY4: =IFERROR(ROUND(-SUM(CR4,CT4,CU4)*'Allocation Detail'!$H$13/12,2),0) -> 0 | CZ4: 0 | DA4: 0 | DB4: 0 | DC4: =SUM(CR4,CT4,CU4,CY4,DA4) -> 0 | DD4: =SUM(CQ4,CV4,CX4,CZ4) -> 0 | DE4: =IFERROR(DF4*('Allocation Detail'!#REF!/'Allocation Detail'!#REF!),0) -> 0 | DF4: 0 | DG4: 0
F5: =F4+1 -> 3 | G5: =G4+1 -> 2 | H5: 0 | I5: 0 | J5: 0 | K5: 0 | L5: 0 | M5: =IFERROR(ROUND(-SUM(H5,L5)*'Allocation Detail'!$E$13/12,2),0) -> 0 | N5: =IFERROR(ROUND(-SUM(I5,J5,K5)*'Allocation Detail'!$E$13/12,2),0) -> 0 | O5: =ROUND(-(H5+L5)*$B$11/12*1.15,2) -> 0 | P5: =ROUND(-(I5+J5+K5)*$B$11/12*1.15,2) -> 0 | Q5: =-SUM(H5:I5,L5:L5)*$B$11/12*1.15 -> 0 | R5: 0 | S5: 0 | T5: =IFERROR(U5*('Allocation Detail'!#REF!/'Allocation Detail'!#REF!),0) -> 0 | U5: 0 | V5: 0 | Y5: =Y4+1 -> 3 | Z5: 2 | AA5: =AE4 -> 0 | AB5: 0 | AC5: 0 | AD5: 0 | AE5: 0 | AF5: 0 | AH5: =AH4+1 -> 3 | AI5: 2 | AJ5: 0 | AK5: 0 | AL5: 0 | AM5: 0 | AN5: 0 | AO5: 0 | AP5: 0 | AQ5: =IFERROR(ROUND(-SUM(AJ5,AO5)*'Allocation Detail'!$E$13/12,2),0) -> 0 | AR5: =IFERROR(ROUND(-SUM(AK5,AM5,AN5)*'Allocation Detail'!$H$13/12,2),0) -> 0 | AS5: 0 | AT5: 0 | AU5: 0 | AV5: 0 | AW5: 0 | AX5: =IFERROR(AY5*('Allocation Detail'!#REF!/'Allocation Detail'!#REF!),0) -> 0 | AY5: 0 | AZ5: 0 | BB5: =BB4+1 -> 3 | BC5: 2 | BD5: 0 | BE5: 0 | BF5: 0 | BG5: 0 | BH5: =ROUND((BE5+BG5)*BU$2,2) -> 0 | BI5: 0 | BJ5: 0 | BK5: =IFERROR(ROUND(-SUM(BD5,BI5)*'Allocation Detail'!$E$13/12,2),0) -> 0 | BL5: =IFERROR(ROUND(-SUM(BE5,BG5,BH5)*'Allocation Detail'!$H$13/12,2),0) -> 0 | BM5: 0 | BN5: 0 | BO5: =-SUM(BD5:BE5,BI5)*$B$11/12*1.15 -> 0 | BP5: 0 | BQ5: 0 | BR5: =IFERROR(BS5*('Allocation Detail'!#REF!/'Allocation Detail'!#REF!),0) -> 0 | BS5: 0 | BT5: 0 | BV5: =BV4+1 -> 3 | BW5: 2 | BX5: 0 | BY5: 0 | BZ5: 0 | CA5: 0 | CB5: 0 | CC5: 0 | CD5: =IFERROR(ROUND(-SUM(BX5,CC5)*'Allocation Detail'!$E$13/12,2),0) -> 0 | CE5: =IFERROR(ROUND(-SUM(BY5,CA5,CB5)*'Allocation Detail'!$H$13/12,2),0) -> 0 | CF5: 0 | CG5: 0 | CH5: 0 | CI5: =SUM(BY5,CA5,CB5,CE5) -> 0 | CJ5: =SUM(BX5,CC5,CD5) -> 0 | CK5: =IFERROR(CL5*('Allocation Detail'!#REF!/'Allocation Detail'!#REF!),0) -> 0 | CL5: 0 | CM5: 0 | CO5: =CO4+1 -> 3 | CP5: 2 | CQ5: 0 | CR5: 0 | CS5: 0 | CT5: 0 | CU5: 0 | CV5: 0 | CW5: 0 | CX5: =IFERROR(ROUND(-SUM(CQ5,CV5)*'Allocation Detail'!$E$13/12,2),0) -> 0 | CY5: =IFERROR(ROUND(-SUM(CR5,CT5,CU5)*'Allocation Detail'!$H$13/12,2),0) -> 0 | CZ5: 0 | DA5: 0 | DB5: 0 | DC5: 0 | DD5: 0 | DE5: =IFERROR(DF5*('Allocation Detail'!#REF!/'Allocation Detail'!#REF!),0) -> 0 | DF5: 0 | DG5: 0
F6: 4 | G6: 3 | H6: 0 | I6: 0 | J6: 0 | K6: 0 | L6: 0 | M6: =IFERROR(ROUND(-SUM(H6,L6)*'Allocation Detail'!$E$13/12,2),0) -> 0 | N6: =IFERROR(ROUND(-SUM(I6,J6,K6)*'Allocation Detail'!$E$13/12,2),0) -> 0 | O6: 0 | P6: 0 | Q6: 0 | R6: 0 | S6: 0 | T6: =IFERROR(U6*('Allocation Detail'!#REF!/'Allocation Detail'!#REF!),0) -> 0 | U6: 0 | V6: 0 | Y6: 4 | Z6: 3 | AA6: 0 | AB6: 0 | AC6: 0 | AD6: 0 | AE6: 0 | AF6: 0 | AH6: 4 | AI6: 3 | AJ6: 0 | AK6: 0 | AL6: 0 | AM6: 0 | AN6: 0 | AO6: 0 | AP6: 0 | AQ6: =IFERROR(ROUND(-SUM(AJ6,AO6)*'Allocation Detail'!$E$13/12,2),0) -> 0 | AR6: =IFERROR(ROUND(-SUM(AK6,AM6,AN6)*'Allocation Detail'!$H$13/12,2),0) -> 0 | AS6: 0 | AT6: 0 | AU6: 0 | AV6: 0 | AW6: 0 | AX6: =IFERROR(AY6*('Allocation Detail'!#REF!/'Allocation Detail'!#REF!),0) -> 0 | AY6: 0 | AZ6: 0 | BB6: =BB5+1 -> 4 | BC6: 3 | BD6: 0 | BE6: 0 | BF6: 0 | BG6: 0 | BH6: 0 | BI6: 0 | BJ6: 0 | BK6: =IFERROR(ROUND(-SUM(BD6,BI6)*'Allocation Detail'!$E$13/12,2),0) -> 0 | BL6: =IFERROR(ROUND(-SUM(BE6,BG6,BH6)*'Allocation Detail'!$H$13/12,2),0) -> 0 | BM6: 0 | BN6: 0 | BO6: 0 | BP6: 0 | BQ6: 0 | BR6: =IFERROR(BS6*('Allocation Detail'!#REF!/'Allocation Detail'!#REF!),0) -> 0 | BS6: 0 | BT6: 0 | BV6: 4 | BW6: 3 | BX6: 0 | BY6: 0 | BZ6: 0 | CA6: 0 | CB6: 0 | CC6: 0 | CD6: =IFERROR(ROUND(-SUM(BX6,CC6)*'Allocation Detail'!$E$13/12,2),0) -> 0 | CE6: =IFERROR(ROUND(-SUM(BY6,CA6,CB6)*'Allocation Detail'!$H$13/12,2),0) -> 0 | CF6: 0 | CG6: 0 | CH6: 0 | CI6: 0 | CJ6: 0 | CK6: =IFERROR(CL6*('Allocation Detail'!#REF!/'Allocation Detail'!#REF!),0) -> 0 | CL6: 0 | CM6: 0 | CO6: 4 | CP6: 3 | CQ6: 0 | CR6: 0 | CS6: 0 | CT6: 0 | CU6: 0 | CV6: 0 | CW6: 0 | CX6: =IFERROR(ROUND(-SUM(CQ6,CV6)*'Allocation Detail'!$E$13/12,2),0) -> 0 | CY6: =IFERROR(ROUND(-SUM(CR6,CT6,CU6)*'Allocation Detail'!$H$13/12,2),0) -> 0 | CZ6: 0 | DA6: 0 | DB6: 0 | DC6: 0 | DD6: 0 | DE6: =IFERROR(DF6*('Allocation Detail'!#REF!/'Allocation Detail'!#REF!),0) -> 0 | DF6: 0 | DG6: 0
A7: Lump Sum Investment | F7: 5 | G7: 4 | H7: 0 | I7: 0 | J7: 0 | K7: 0 | L7: 0 | M7: =IFERROR(ROUND(-SUM(H7,L7)*'Allocation Detail'!$E$13/12,2),0) -> 0 | N7: =IFERROR(ROUND(-SUM(I7,J7,K7)*'Allocation Detail'!$E$13/12,2),0) -> 0 | O7: 0 | P7: 0 | Q7: 0 | R7: 0 | S7: 0 | T7: =IFERROR(U7*('Allocation Detail'!#REF!/'Allocation Detail'!#REF!),0) -> 0 | U7: 0 | V7: 0 | Y7: 5 | Z7: 4 | AA7: 0 | AB7: 0 | AC7: 0 | AD7: 0 | AE7: 0 | AF7: 0 | AH7: 5 | AI7: 4 | AJ7: 0 | AK7: 0 | AL7: 0 | AM7: 0 | AN7: 0 | AO7: 0 | AP7: 0 | AQ7: =IFERROR(ROUND(-SUM(AJ7,AO7)*'Allocation Detail'!$E$13/12,2),0) -> 0 | AR7: =IFERROR(ROUND(-SUM(AK7,AM7,AN7)*'Allocation Detail'!$H$13/12,2),0) -> 0 | AS7: 0 | AT7: 0 | AU7: 0 | AV7: 0 | AW7: 0 | AX7: =IFERROR(AY7*('Allocation Detail'!#REF!/'Allocation Detail'!#REF!),0) -> 0 | AY7: 0 | AZ7: 0 | BB7: =BB6+1 -> 5 | BC7: 4 | BD7: 0 | BE7: 0 | BF7: 0 | BG7: 0 | BH7: 0 | BI7: 0 | BJ7: 0 | BK7: =IFERROR(ROUND(-SUM(BD7,BI7)*'Allocation Detail'!$E$13/12,2),0) -> 0 | BL7: =IFERROR(ROUND(-SUM(BE7,BG7,BH7)*'Allocation Detail'!$H$13/12,2),0) -> 0 | BM7: 0 | BN7: 0 | BO7: 0 | BP7: 0 | BQ7: 0 | BR7: =IFERROR(BS7*('Allocation Detail'!#REF!/'Allocation Detail'!#REF!),0) -> 0 | BS7: 0 | BT7: 0 | BV7: 5 | BW7: 4 | BX7: 0 | BY7: 0 | BZ7: 0 | CA7: 0 | CB7: 0 | CC7: 0 | CD7: =IFERROR(ROUND(-SUM(BX7,CC7)*'Allocation Detail'!$E$13/12,2),0) -> 0 | CE7: =IFERROR(ROUND(-SUM(BY7,CA7,CB7)*'Allocation Detail'!$H$13/12,2),0) -> 0 | CF7: 0 | CG7: 0 | CH7: 0 | CI7: 0 | CJ7: 0 | CK7: =IFERROR(CL7*('Allocation Detail'!#REF!/'Allocation Detail'!#REF!),0) -> 0 | CL7: 0 | CM7: 0 | CO7: 5 | CP7: 4 | CQ7: 0 | CR7: 0 | CS7: 0 | CT7: 0 | CU7: 0 | CV7: 0 | CW7: 0 | CX7: =IFERROR(ROUND(-SUM(CQ7,CV7)*'Allocation Detail'!$E$13/12,2),0) -> 0 | CY7: =IFERROR(ROUND(-SUM(CR7,CT7,CU7)*'Allocation Detail'!$H$13/12,2),0) -> 0 | CZ7: 0 | DA7: 0 | DB7: 0 | DC7: 0 | DD7: 0 | DE7: =IFERROR(DF7*('Allocation Detail'!#REF!/'Allocation Detail'!#REF!),0) -> 0 | DF7: 0 | DG7: 0
A8: Investment Amount | D8: ='Ashburton EAC'!E7 -> 0 | F8: 6 | G8: 5 | H8: 0 | I8: 0 | J8: 0 | K8: 0 | L8: 0 | M8: =IFERROR(ROUND(-SUM(H8,L8)*'Allocation Detail'!$E$13/12,2),0) -> 0 | N8: =IFERROR(ROUND(-SUM(I8,J8,K8)*'Allocation Detail'!$E$13/12,2),0) -> 0 | O8: 0 | P8: 0 | Q8: 0 | R8: 0 | S8: 0 | T8: =IFERROR(U8*('Allocation Detail'!#REF!/'Allocation Detail'!#REF!),0) -> 0 | U8: 0 | V8: 0 | Y8: 6 | Z8: 5 | AA8: 0 | AB8: 0 | AC8: 0 | AD8: 0 | AE8: 0 | AF8: 0 | AH8: 6 | AI8: 5 | AJ8: 0 | AK8: 0 | AL8: 0 | AM8: 0 | AN8: 0 | AO8: 0 | AP8: 0 | AQ8: =IFERROR(ROUND(-SUM(AJ8,AO8)*'Allocation Detail'!$E$13/12,2),0) -> 0 | AR8: =IFERROR(ROUND(-SUM(AK8,AM8,AN8)*'Allocation Detail'!$H$13/12,2),0) -> 0 | AS8: 0 | AT8: 0 | AU8: 0 | AV8: 0 | AW8: 0 | AX8: =IFERROR(AY8*('Allocation Detail'!#REF!/'Allocation Detail'!#REF!),0) -> 0 | AY8: 0 | AZ8: 0 | BB8: =BB7+1 -> 6 | BC8: 5 | BD8: 0 | BE8: 0 | BF8: 0 | BG8: 0 | BH8: 0 | BI8: 0 | BJ8: 0 | BK8: =IFERROR(ROUND(-SUM(BD8,BI8)*'Allocation Detail'!$E$13/12,2),0) -> 0 | BL8: =IFERROR(ROUND(-SUM(BE8,BG8,BH8)*'Allocation Detail'!$H$13/12,2),0) -> 0 | BM8: 0 | BN8: 0 | BO8: 0 | BP8: 0 | BQ8: 0 | BR8: =IFERROR(BS8*('Allocation Detail'!#REF!/'Allocation Detail'!#REF!),0) -> 0 | BS8: 0 | BT8: 0 | BV8: 6 | BW8: 5 | BX8: 0 | BY8: 0 | BZ8: 0 | CA8: 0 | CB8: 0 | CC8: 0 | CD8: =IFERROR(ROUND(-SUM(BX8,CC8)*'Allocation Detail'!$E$13/12,2),0) -> 0 | CE8: =IFERROR(ROUND(-SUM(BY8,CA8,CB8)*'Allocation Detail'!$H$13/12,2),0) -> 0 | CF8: 0 | CG8: 0 | CH8: 0 | CI8: 0 | CJ8: 0 | CK8: =IFERROR(CL8*('Allocation Detail'!#REF!/'Allocation Detail'!#REF!),0) -> 0 | CL8: 0 | CM8: 0 | CO8: 6 | CP8: 5 | CQ8: 0 | CR8: 0 | CS8: 0 | CT8: 0 | CU8: 0 | CV8: 0 | CW8: 0 | CX8: =IFERROR(ROUND(-SUM(CQ8,CV8)*'Allocation Detail'!$E$13/12,2),0) -> 0 | CY8: =IFERROR(ROUND(-SUM(CR8,CT8,CU8)*'Allocation Detail'!$H$13/12,2),0) -> 0 | CZ8: 0 | DA8: 0 | DB8: 0 | DC8: 0 | DD8: 0 | DE8: =IFERROR(DF8*('Allocation Detail'!#REF!/'Allocation Detail'!#REF!),0) -> 0 | DF8: 0 | DG8: 0
A9: Initial Advice Fee | B9: ='Ashburton EAC'!E8 -> 0 | C9: 0.15 | D9: =B9*D8*(1+C9) -> 0 | F9: 7 | G9: 6 | H9: 0 | I9: 0 | J9: 0 | K9: 0 | L9: 0 | M9: =IFERROR(ROUND(-SUM(H9,L9)*'Allocation Detail'!$E$13/12,2),0) -> 0 | N9: =IFERROR(ROUND(-SUM(I9,J9,K9)*'Allocation Detail'!$E$13/12,2),0) -> 0 | O9: 0 | P9: 0 | Q9: 0 | R9: 0 | S9: 0 | T9: =IFERROR(U9*('Allocation Detail'!#REF!/'Allocation Detail'!#REF!),0) -> 0 | U9: 0 | V9: 0 | Y9: 7 | Z9: 6 | AA9: 0 | AB9: 0 | AC9: 0 | AD9: 0 | AE9: 0 | AF9: 0 | AH9: 7 | AI9: 6 | AJ9: 0 | AK9: 0 | AL9: 0 | AM9: 0 | AN9: 0 | AO9: 0 | AP9: 0 | AQ9: =IFERROR(ROUND(-SUM(AJ9,AO9)*'Allocation Detail'!$E$13/12,2),0) -> 0 | AR9: =IFERROR(ROUND(-SUM(AK9,AM9,AN9)*'Allocation Detail'!$H$13/12,2),0) -> 0 | AS9: 0 | AT9: 0 | AU9: 0 | AV9: 0 | AW9: 0 | AX9: =IFERROR(AY9*('Allocation Detail'!#REF!/'Allocation Detail'!#REF!),0) -> 0 | AY9: 0 | AZ9: 0 | BB9: =BB8+1 -> 7 | BC9: 6 | BD9: 0 | BE9: 0 | BF9: 0 | BG9: 0 | BH9: 0 | BI9: 0 | BJ9: 0 | BK9: =IFERROR(ROUND(-SUM(BD9,BI9)*'Allocation Detail'!$E$13/12,2),0) -> 0 | BL9: =IFERROR(ROUND(-SUM(BE9,BG9,BH9)*'Allocation Detail'!$H$13/12,2),0) -> 0 | BM9: 0 | BN9: 0 | BO9: 0 | BP9: 0 | BQ9: 0 | BR9: =IFERROR(BS9*('Allocation Detail'!#REF!/'Allocation Detail'!#REF!),0) -> 0 | BS9: 0 | BT9: 0 | BV9: 7 | BW9: 6 | BX9: 0 | BY9: 0 | BZ9: 0 | CA9: 0 | CB9: 0 | CC9: 0 | CD9: =IFERROR(ROUND(-SUM(BX9,CC9)*'Allocation Detail'!$E$13/12,2),0) -> 0 | CE9: =IFERROR(ROUND(-SUM(BY9,CA9,CB9)*'Allocation Detail'!$H$13/12,2),0) -> 0 | CF9: 0 | CG9: 0 | CH9: 0 | CI9: 0 | CJ9: 0 | CK9: =IFERROR(CL9*('Allocation Detail'!#REF!/'Allocation Detail'!#REF!),0) -> 0 | CL9: 0 | CM9: 0 | CO9: 7 | CP9: 6 | CQ9: 0 | CR9: 0 | CS9: 0 | CT9: 0 | CU9: 0 | CV9: 0 | CW9: 0 | CX9: =IFERROR(ROUND(-SUM(CQ9,CV9)*'Allocation Detail'!$E$13/12,2),0) -> 0 | CY9: =IFERROR(ROUND(-SUM(CR9,CT9,CU9)*'Allocation Detail'!$H$13/12,2),0) -> 0 | CZ9: 0 | DA9: 0 | DB9: 0 | DC9: 0 | DD9: 0 | DE9: =IFERROR(DF9*('Allocation Detail'!#REF!/'Allocation Detail'!#REF!),0) -> 0 | DF9: 0 | DG9: 0
A10: Net Allocation | D10: =D8-D9 -> 0 | F10: 8 | G10: 7 | H10: 0 | I10: 0 | J10: 0 | K10: 0 | L10: 0 | M10: =IFERROR(ROUND(-SUM(H10,L10)*'Allocation Detail'!$E$13/12,2),0) -> 0 | N10: =IFERROR(ROUND(-SUM(I10,J10,K10)*'Allocation Detail'!$E$13/12,2),0) -> 0 | O10: 0 | P10: 0 | Q10: 0 | R10: 0 | S10: 0 | T10: =IFERROR(U10*('Allocation Detail'!#REF!/'Allocation Detail'!#REF!),0) -> 0 | U10: 0 | V10: 0 | Y10: 8 | Z10: 7 | AA10: 0 | AB10: 0 | AC10: 0 | AD10: 0 | AE10: 0 | AF10: 0 | AH10: 8 | AI10: 7 | AJ10: 0 | AK10: 0 | AL10: 0 | AM10: 0 | AN10: 0 | AO10: 0 | AP10: 0 | AQ10: =IFERROR(ROUND(-SUM(AJ10,AO10)*'Allocation Detail'!$E$13/12,2),0) -> 0 | AR10: =IFERROR(ROUND(-SUM(AK10,AM10,AN10)*'Allocation Detail'!$H$13/12,2),0) -> 0 | AS10: 0 | AT10: 0 | AU10: 0 | AV10: 0 | AW10: 0 | AX10: =IFERROR(AY10*('Allocation Detail'!#REF!/'Allocation Detail'!#REF!),0) -> 0 | AY10: 0 | AZ10: 0 | BB10: =BB9+1 -> 8 | BC10: 7 | BD10: 0 | BE10: 0 | BF10: 0 | BG10: 0 | BH10: 0 | BI10: 0 | BJ10: 0 | BK10: =IFERROR(ROUND(-SUM(BD10,BI10)*'Allocation Detail'!$E$13/12,2),0) -> 0 | BL10: =IFERROR(ROUND(-SUM(BE10,BG10,BH10)*'Allocation Detail'!$H$13/12,2),0) -> 0 | BM10: 0 | BN10: 0 | BO10: 0 | BP10: 0 | BQ10: 0 | BR10: =IFERROR(BS10*('Allocation Detail'!#REF!/'Allocation Detail'!#REF!),0) -> 0 | BS10: 0 | BT10: 0 | BV10: 8 | BW10: 7 | BX10: 0 | BY10: 0 | BZ10: 0 | CA10: 0 | CB10: 0 | CC10: 0 | CD10: =IFERROR(ROUND(-SUM(BX10,CC10)*'Allocation Detail'!$E$13/12,2),0) -> 0 | CE10: =IFERROR(ROUND(-SUM(BY10,CA10,CB10)*'Allocation Detail'!$H$13/12,2),0) -> 0 | CF10: 0 | CG10: 0 | CH10: 0 | CI10: 0 | CJ10: 0 | CK10: =IFERROR(CL10*('Allocation Detail'!#REF!/'Allocation Detail'!#REF!),0) -> 0 | CL10: 0 | CM10: 0 | CO10: 8 | CP10: 7 | CQ10: 0 | CR10: 0 | CS10: 0 | CT10: 0 | CU10: 0 | CV10: 0 | CW10: 0 | CX10: =IFERROR(ROUND(-SUM(CQ10,CV10)*'Allocation Detail'!$E$13/12,2),0) -> 0 | CY10: =IFERROR(ROUND(-SUM(CR10,CT10,CU10)*'Allocation Detail'!$H$13/12,2),0) -> 0 | CZ10: 0 | DA10: 0 | DB10: 0 | DC10: 0 | DD10: 0 | DE10: =IFERROR(DF10*('Allocation Detail'!#REF!/'Allocation Detail'!#REF!),0) -> 0 | DF10: 0 | DG10: 0
A11: Ongoing Advice Fee | B11: ='Ashburton EAC'!E15 -> 0 | F11: 9 | G11: 8 | H11: 0 | I11: 0 | J11: 0 | K11: 0 | L11: 0 | M11: =IFERROR(ROUND(-SUM(H11,L11)*'Allocation Detail'!$E$13/12,2),0) -> 0 | N11: =IFERROR(ROUND(-SUM(I11,J11,K11)*'Allocation Detail'!$E$13/12,2),0) -> 0 | O11: 0 | P11: 0 | Q11: 0 | R11: 0 | S11: 0 | T11: =IFERROR(U11*('Allocation Detail'!#REF!/'Allocation Detail'!#REF!),0) -> 0 | U11: 0 | V11: 0 | Y11: 9 | Z11: 8 | AA11: 0 | AB11: 0 | AC11: 0 | AD11: 0 | AE11: 0 | AF11: 0 | AH11: 9 | AI11: 8 | AJ11: 0 | AK11: 0 | AL11: 0 | AM11: 0 | AN11: 0 | AO11: 0 | AP11: 0 | AQ11: =IFERROR(ROUND(-SUM(AJ11,AO11)*'Allocation Detail'!$E$13/12,2),0) -> 0 | AR11: =IFERROR(ROUND(-SUM(AK11,AM11,AN11)*'Allocation Detail'!$H$13/12,2),0) -> 0 | AS11: 0 | AT11: 0 | AU11: 0 | AV11: 0 | AW11: 0 | AX11: =IFERROR(AY11*('Allocation Detail'!#REF!/'Allocation Detail'!#REF!),0) -> 0 | AY11: 0 | AZ11: 0 | BB11: =BB10+1 -> 9 | BC11: 8 | BD11: 0 | BE11: 0 | BF11: 0 | BG11: 0 | BH11: 0 | BI11: 0 | BJ11: 0 | BK11: =IFERROR(ROUND(-SUM(BD11,BI11)*'Allocation Detail'!$E$13/12,2),0) -> 0 | BL11: =IFERROR(ROUND(-SUM(BE11,BG11,BH11)*'Allocation Detail'!$H$13/12,2),0) -> 0 | BM11: 0 | BN11: 0 | BO11: 0 | BP11: 0 | BQ11: 0 | BR11: =IFERROR(BS11*('Allocation Detail'!#REF!/'Allocation Detail'!#REF!),0) -> 0 | BS11: 0 | BT11: 0 | BV11: 9 | BW11: 8 | BX11: 0 | BY11: 0 | BZ11: 0 | CA11: 0 | CB11: 0 | CC11: 0 | CD11: =IFERROR(ROUND(-SUM(BX11,CC11)*'Allocation Detail'!$E$13/12,2),0) -> 0 | CE11: =IFERROR(ROUND(-SUM(BY11,CA11,CB11)*'Allocation Detail'!$H$13/12,2),0) -> 0 | CF11: 0 | CG11: 0 | CH11: 0 | CI11: 0 | CJ11: 0 | CK11: =IFERROR(CL11*('Allocation Detail'!#REF!/'Allocation Detail'!#REF!),0) -> 0 | CL11: 0 | CM11: 0 | CO11: 9 | CP11: 8 | CQ11: 0 | CR11: 0 | CS11: 0 | CT11: 0 | CU11: 0 | CV11: 0 | CW11: 0 | CX11: =IFERROR(ROUND(-SUM(CQ11,CV11)*'Allocation Detail'!$E$13/12,2),0) -> 0 | CY11: =IFERROR(ROUND(-SUM(CR11,CT11,CU11)*'Allocation Detail'!$H$13/12,2),0) -> 0 | CZ11: 0 | DA11: 0 | DB11: 0 | DC11: 0 | DD11: 0 | DE11: =IFERROR(DF11*('Allocation Detail'!#REF!/'Allocation Detail'!#REF!),0) -> 0 | DF11: 0 | DG11: 0
F12: 10 | G12: 9 | H12: 0 | I12: 0 | J12: 0 | K12: 0 | L12: 0 | M12: =IFERROR(ROUND(-SUM(H12,L12)*'Allocation Detail'!$E$13/12,2),0) -> 0 | N12: =IFERROR(ROUND(-SUM(I12,J12,K12)*'Allocation Detail'!$E$13/12,2),0) -> 0 | O12: 0 | P12: 0 | Q12: 0 | R12: 0 | S12: 0 | T12: =IFERROR(U12*('Allocation Detail'!#REF!/'Allocation Detail'!#REF!),0) -> 0 | U12: 0 | V12: 0 | Y12: 10 | Z12: 9 | AA12: 0 | AB12: 0 | AC12: 0 | AD12: 0 | AE12: 0 | AF12: 0 | AH12: 10 | AI12: 9 | AJ12: 0 | AK12: 0 | AL12: 0 | AM12: 0 | AN12: 0 | AO12: 0 | AP12: 0 | AQ12: =IFERROR(ROUND(-SUM(AJ12,AO12)*'Allocation Detail'!$E$13/12,2),0) -> 0 | AR12: =IFERROR(ROUND(-SUM(AK12,AM12,AN12)*'Allocation Detail'!$H$13/12,2),0) -> 0 | AS12: 0 | AT12: 0 | AU12: 0 | AV12: 0 | AW12: 0 | AX12: =IFERROR(AY12*('Allocation Detail'!#REF!/'Allocation Detail'!#REF!),0) -> 0 | AY12: 0 | AZ12: 0 | BB12: =BB11+1 -> 10 | BC12: 9 | BD12: 0 | BE12: 0 | BF12: 0 | BG12: 0 | BH12: 0 | BI12: 0 | BJ12: 0 | BK12: =IFERROR(ROUND(-SUM(BD12,BI12)*'Allocation Detail'!$E$13/12,2),0) -> 0 | BL12: =IFERROR(ROUND(-SUM(BE12,BG12,BH12)*'Allocation Detail'!$H$13/12,2),0) -> 0 | BM12: 0 | BN12: 0 | BO12: 0 | BP12: 0 | BQ12: 0 | BR12: =IFERROR(BS12*('Allocation Detail'!#REF!/'Allocation Detail'!#REF!),0) -> 0 | BS12: 0 | BT12: 0 | BV12: 10 | BW12: 9 | BX12: 0 | BY12: 0 | BZ12: 0 | CA12: 0 | CB12: 0 | CC12: 0 | CD12: =IFERROR(ROUND(-SUM(BX12,CC12)*'Allocation Detail'!$E$13/12,2),0) -> 0 | CE12: =IFERROR(ROUND(-SUM(BY12,CA12,CB12)*'Allocation Detail'!$H$13/12,2),0) -> 0 | CF12: 0 | CG12: 0 | CH12: 0 | CI12: 0 | CJ12: 0 | CK12: =IFERROR(CL12*('Allocation Detail'!#REF!/'Allocation Detail'!#REF!),0) -> 0 | CL12: 0 | CM12: 0 | CO12: 10 | CP12: 9 | CQ12: 0 | CR12: 0 | CS12: 0 | CT12: 0 | CU12: 0 | CV12: 0 | CW12: 0 | CX12: =IFERROR(ROUND(-SUM(CQ12,CV12)*'Allocation Detail'!$E$13/12,2),0) -> 0 | CY12: =IFERROR(ROUND(-SUM(CR12,CT12,CU12)*'Allocation Detail'!$H$13/12,2),0) -> 0 | CZ12: 0 | DA12: 0 | DB12: 0 | DC12: 0 | DD12: 0 | DE12: =IFERROR(DF12*('Allocation Detail'!#REF!/'Allocation Detail'!#REF!),0) -> 0 | DF12: 0 | DG12: 0
A13: Recurring Debit Order Investment | F13: 11 | G13: 10 | H13: 0 | I13: 0 | J13: 0 | K13: 0 | L13: 0 | M13: =IFERROR(ROUND(-SUM(H13,L13)*'Allocation Detail'!$E$13/12,2),0) -> 0 | N13: =IFERROR(ROUND(-SUM(I13,J13,K13)*'Allocation Detail'!$E$13/12,2),0) -> 0 | O13: 0 | P13: 0 | Q13: 0 | R13: 0 | S13: 0 | T13: =IFERROR(U13*('Allocation Detail'!#REF!/'Allocation Detail'!#REF!),0) -> 0 | U13: 0 | V13: 0 | Y13: 11 | Z13: 10 | AA13: 0 | AB13: 0 | AC13: 0 | AD13: 0 | AE13: 0 | AF13: 0 | AH13: 11 | AI13: 10 | AJ13: 0 | AK13: 0 | AL13: 0 | AM13: 0 | AN13: 0 | AO13: 0 | AP13: 0 | AQ13: =IFERROR(ROUND(-SUM(AJ13,AO13)*'Allocation Detail'!$E$13/12,2),0) -> 0 | AR13: =IFERROR(ROUND(-SUM(AK13,AM13,AN13)*'Allocation Detail'!$H$13/12,2),0) -> 0 | AS13: 0 | AT13: 0 | AU13: 0 | AV13: 0 | AW13: 0 | AX13: =IFERROR(AY13*('Allocation Detail'!#REF!/'Allocation Detail'!#REF!),0) -> 0 | AY13: 0 | AZ13: 0 | BB13: =BB12+1 -> 11 | BC13: 10 | BD13: 0 | BE13: 0 | BF13: 0 | BG13: 0 | BH13: 0 | BI13: 0 | BJ13: 0 | BK13: =IFERROR(ROUND(-SUM(BD13,BI13)*'Allocation Detail'!$E$13/12,2),0) -> 0 | BL13: =IFERROR(ROUND(-SUM(BE13,BG13,BH13)*'Allocation Detail'!$H$13/12,2),0) -> 0 | BM13: 0 | BN13: 0 | BO13: 0 | BP13: 0 | BQ13: 0 | BR13: =IFERROR(BS13*('Allocation Detail'!#REF!/'Allocation Detail'!#REF!),0) -> 0 | BS13: 0 | BT13: 0 | BV13: 11 | BW13: 10 | BX13: 0 | BY13: 0 | BZ13: 0 | CA13: 0 | CB13: 0 | CC13: 0 | CD13: =IFERROR(ROUND(-SUM(BX13,CC13)*'Allocation Detail'!$E$13/12,2),0) -> 0 | CE13: =IFERROR(ROUND(-SUM(BY13,CA13,CB13)*'Allocation Detail'!$H$13/12,2),0) -> 0 | CF13: 0 | CG13: 0 | CH13: 0 | CI13: 0 | CJ13: 0 | CK13: =IFERROR(CL13*('Allocation Detail'!#REF!/'Allocation Detail'!#REF!),0) -> 0 | CL13: 0 | CM13: 0 | CO13: 11 | CP13: 10 | CQ13: 0 | CR13: 0 | CS13: 0 | CT13: 0 | CU13: 0 | CV13: 0 | CW13: 0 | CX13: =IFERROR(ROUND(-SUM(CQ13,CV13)*'Allocation Detail'!$E$13/12,2),0) -> 0 | CY13: =IFERROR(ROUND(-SUM(CR13,CT13,CU13)*'Allocation Detail'!$H$13/12,2),0) -> 0 | CZ13: 0 | DA13: 0 | DB13: 0 | DC13: 0 | DD13: 0 | DE13: =IFERROR(DF13*('Allocation Detail'!#REF!/'Allocation Detail'!#REF!),0) -> 0 | DF13: 0 | DG13: 0
A14: Investment Amount | D14: ='Ashburton EAC'!E11 -> 0 | F14: 12 | G14: 11 | H14: 0 | I14: 0 | J14: 0 | K14: 0 | L14: 0 | M14: =IFERROR(ROUND(-SUM(H14,L14)*'Allocation Detail'!$E$13/12,2),0) -> 0 | N14: =IFERROR(ROUND(-SUM(I14,J14,K14)*'Allocation Detail'!$E$13/12,2),0) -> 0 | O14: 0 | P14: 0 | Q14: 0 | R14: 0 | S14: 0 | T14: =IFERROR(U14*('Allocation Detail'!#REF!/'Allocation Detail'!#REF!),0) -> 0 | U14: 0 | V14: 0 | Y14: 12 | Z14: 11 | AA14: 0 | AB14: 0 | AC14: 0 | AD14: 0 | AE14: 0 | AF14: 0 | AH14: 12 | AI14: 11 | AJ14: 0 | AK14: 0 | AL14: 0 | AM14: 0 | AN14: 0 | AO14: 0 | AP14: 0 | AQ14: =IFERROR(ROUND(-SUM(AJ14,AO14)*'Allocation Detail'!$E$13/12,2),0) -> 0 | AR14: =IFERROR(ROUND(-SUM(AK14,AM14,AN14)*'Allocation Detail'!$H$13/12,2),0) -> 0 | AS14: 0 | AT14: 0 | AU14: 0 | AV14: 0 | AW14: 0 | AX14: =IFERROR(AY14*('Allocation Detail'!#REF!/'Allocation Detail'!#REF!),0) -> 0 | AY14: 0 | AZ14: 0 | BB14: =BB13+1 -> 12 | BC14: 11 | BD14: 0 | BE14: 0 | BF14: 0 | BG14: 0 | BH14: 0 | BI14: 0 | BJ14: 0 | BK14: =IFERROR(ROUND(-SUM(BD14,BI14)*'Allocation Detail'!$E$13/12,2),0) -> 0 | BL14: =IFERROR(ROUND(-SUM(BE14,BG14,BH14)*'Allocation Detail'!$H$13/12,2),0) -> 0 | BM14: 0 | BN14: 0 | BO14: 0 | BP14: 0 | BQ14: 0 | BR14: =IFERROR(BS14*('Allocation Detail'!#REF!/'Allocation Detail'!#REF!),0) -> 0 | BS14: 0 | BT14: 0 | BV14: 12 | BW14: 11 | BX14: 0 | BY14: 0 | BZ14: 0 | CA14: 0 | CB14: 0 | CC14: 0 | CD14: =IFERROR(ROUND(-SUM(BX14,CC14)*'Allocation Detail'!$E$13/12,2),0) -> 0 | CE14: =IFERROR(ROUND(-SUM(BY14,CA14,CB14)*'Allocation Detail'!$H$13/12,2),0) -> 0 | CF14: 0 | CG14: 0 | CH14: 0 | CI14: 0 | CJ14: 0 | CK14: =IFERROR(CL14*('Allocation Detail'!#REF!/'Allocation Detail'!#REF!),0) -> 0 | CL14: 0 | CM14: 0 | CO14: 12 | CP14: 11 | CQ14: 0 | CR14: 0 | CS14: 0 | CT14: 0 | CU14: 0 | CV14: 0 | CW14: 0 | CX14: =IFERROR(ROUND(-SUM(CQ14,CV14)*'Allocation Detail'!$E$13/12,2),0) -> 0 | CY14: =IFERROR(ROUND(-SUM(CR14,CT14,CU14)*'Allocation Detail'!$H$13/12,2),0) -> 0 | CZ14: 0 | DA14: 0 | DB14: 0 | DC14: 0 | DD14: 0 | DE14: =IFERROR(DF14*('Allocation Detail'!#REF!/'Allocation Detail'!#REF!),0) -> 0 | DF14: 0 | DG14: 0
A15: Frequency | D15: Monthly | F15: 13 | G15: 12 | H15: 0 | I15: 0 | J15: 0 | K15: 0 | L15: 0 | M15: =IFERROR(ROUND(-SUM(H15,L15)*'Allocation Detail'!$E$13/12,2),0) -> 0 | N15: =IFERROR(ROUND(-SUM(I15,J15,K15)*'Allocation Detail'!$E$13/12,2),0) -> 0 | O15: 0 | P15: 0 | Q15: 0 | R15: 0 | S15: 0 | T15: =IFERROR(U15*('Allocation Detail'!#REF!/'Allocation Detail'!#REF!),0) -> 0 | U15: 0 | V15: 0 | Y15: 13 | Z15: 12 | AA15: 0 | AB15: 0 | AC15: 0 | AD15: 0 | AE15: 0 | AF15: 0 | AH15: 13 | AI15: 12 | AJ15: 0 | AK15: 0 | AL15: 0 | AM15: 0 | AN15: 0 | AO15: 0 | AP15: 0 | AQ15: =IFERROR(ROUND(-SUM(AJ15,AO15)*'Allocation Detail'!$E$13/12,2),0) -> 0 | AR15: =IFERROR(ROUND(-SUM(AK15,AM15,AN15)*'Allocation Detail'!$H$13/12,2),0) -> 0 | AS15: 0 | AT15: 0 | AU15: 0 | AV15: 0 | AW15: 0 | AX15: =IFERROR(AY15*('Allocation Detail'!#REF!/'Allocation Detail'!#REF!),0) -> 0 | AY15: 0 | AZ15: 0 | BB15: =BB14+1 -> 13 | BC15: 12 | BD15: 0 | BE15: 0 | BF15: 0 | BG15: 0 | BH15: 0 | BI15: 0 | BJ15: 0 | BK15: =IFERROR(ROUND(-SUM(BD15,BI15)*'Allocation Detail'!$E$13/12,2),0) -> 0 | BL15: =IFERROR(ROUND(-SUM(BE15,BG15,BH15)*'Allocation Detail'!$H$13/12,2),0) -> 0 | BM15: 0 | BN15: 0 | BO15: 0 | BP15: 0 | BQ15: 0 | BR15: =IFERROR(BS15*('Allocation Detail'!#REF!/'Allocation Detail'!#REF!),0) -> 0 | BS15: 0 | BT15: 0 | BV15: 13 | BW15: 12 | BX15: 0 | BY15: 0 | BZ15: 0 | CA15: 0 | CB15: 0 | CC15: 0 | CD15: =IFERROR(ROUND(-SUM(BX15,CC15)*'Allocation Detail'!$E$13/12,2),0) -> 0 | CE15: =IFERROR(ROUND(-SUM(BY15,CA15,CB15)*'Allocation Detail'!$H$13/12,2),0) -> 0 | CF15: 0 | CG15: 0 | CH15: 0 | CI15: 0 | CJ15: 0 | CK15: =IFERROR(CL15*('Allocation Detail'!#REF!/'Allocation Detail'!#REF!),0) -> 0 | CL15: 0 | CM15: 0
A16: Frequency multiple | D16: =IF(D15="Monthly",1,IF(D15="Quarterly",3,IF(D15="Half-yearly",6,IF(D15="Annually",12,"")))) -> 1 | F16: 14 | G16: 13 | H16: 0 | I16: 0 | J16: 0 | K16: 0 | L16: 0 | M16: =IFERROR(ROUND(-SUM(H16,L16)*'Allocation Detail'!$E$13/12,2),0) -> 0 | N16: =IFERROR(ROUND(-SUM(I16,J16,K16)*'Allocation Detail'!$E$13/12,2),0) -> 0 | O16: 0 | P16: 0 | Q16: 0 | R16: 0 | S16: 0 | T16: =IFERROR(U16*('Allocation Detail'!#REF!/'Allocation Detail'!#REF!),0) -> 0 | U16: 0 | V16: 0 | Y16: 14 | Z16: 13 | AA16: 0 | AB16: 0 | AC16: 0 | AD16: 0 | AE16: 0 | AF16: 0 | AH16: 14 | AI16: 13 | AJ16: 0 | AK16: 0 | AL16: 0 | AM16: 0 | AN16: 0 | AO16: 0 | AP16: 0 | AQ16: =IFERROR(ROUND(-SUM(AJ16,AO16)*'Allocation Detail'!$E$13/12,2),0) -> 0 | AR16: =IFERROR(ROUND(-SUM(AK16,AM16,AN16)*'Allocation Detail'!$H$13/12,2),0) -> 0 | AS16: 0 | AT16: 0 | AU16: 0 | AV16: 0 | AW16: 0 | AX16: =IFERROR(AY16*('Allocation Detail'!#REF!/'Allocation Detail'!#REF!),0) -> 0 | AY16: 0 | AZ16: 0 | BB16: =BB15+1 -> 14 | BC16: 13 | BD16: 0 | BE16: 0 | BF16: 0 | BG16: 0 | BH16: 0 | BI16: 0 | BJ16: 0 | BK16: =IFERROR(ROUND(-SUM(BD16,BI16)*'Allocation Detail'!$E$13/12,2),0) -> 0 | BL16: =IFERROR(ROUND(-SUM(BE16,BG16,BH16)*'Allocation Detail'!$H$13/12,2),0) -> 0 | BM16: 0 | BN16: 0 | BO16: 0 | BP16: 0 | BQ16: 0 | BR16: =IFERROR(BS16*('Allocation Detail'!#REF!/'Allocation Detail'!#REF!),0) -> 0 | BS16: 0 | BT16: 0 | BV16: 14 | BW16: 13 | BX16: 0 | BY16: 0 | BZ16: 0 | CA16: 0 | CB16: 0 | CC16: 0 | CD16: =IFERROR(ROUND(-SUM(BX16,CC16)*'Allocation Detail'!$E$13/12,2),0) -> 0 | CE16: =IFERROR(ROUND(-SUM(BY16,CA16,CB16)*'Allocation Detail'!$H$13/12,2),0) -> 0 | CF16: 0 | CG16: 0 | CH16: 0 | CI16: 0 | CJ16: 0 | CK16: =IFERROR(CL16*('Allocation Detail'!#REF!/'Allocation Detail'!#REF!),0) -> 0 | CL16: 0 | CM16: 0 | DF16: 1 year | DG16: =ROUND(DG14,0) -> 0
A17: Annual Escalation | D17: ='Ashburton EAC'!E12 -> 0 | F17: 15 | G17: 14 | H17: 0 | I17: 0 | J17: 0 | K17: 0 | L17: 0 | M17: =IFERROR(ROUND(-SUM(H17,L17)*'Allocation Detail'!$E$13/12,2),0) -> 0 | N17: =IFERROR(ROUND(-SUM(I17,J17,K17)*'Allocation Detail'!$E$13/12,2),0) -> 0 | O17: 0 | P17: 0 | Q17: 0 | R17: 0 | S17: 0 | T17: =IFERROR(U17*('Allocation Detail'!#REF!/'Allocation Detail'!#REF!),0) -> 0 | U17: 0 | V17: 0 | Y17: 15 | Z17: 14 | AA17: 0 | AB17: 0 | AC17: 0 | AD17: 0 | AE17: 0 | AF17: 0 | AH17: 15 | AI17: 14 | AJ17: 0 | AK17: 0 | AL17: 0 | AM17: 0 | AN17: 0 | AO17: 0 | AP17: 0 | AQ17: =IFERROR(ROUND(-SUM(AJ17,AO17)*'Allocation Detail'!$E$13/12,2),0) -> 0 | AR17: =IFERROR(ROUND(-SUM(AK17,AM17,AN17)*'Allocation Detail'!$H$13/12,2),0) -> 0 | AS17: 0 | AT17: 0 | AU17: 0 | AV17: 0 | AW17: 0 | AX17: =IFERROR(AY17*('Allocation Detail'!#REF!/'Allocation Detail'!#REF!),0) -> 0 | AY17: 0 | AZ17: 0 | BB17: =BB16+1 -> 15 | BC17: 14 | BD17: 0 | BE17: 0 | BF17: 0 | BG17: 0 | BH17: 0 | BI17: 0 | BJ17: 0 | BK17: =IFERROR(ROUND(-SUM(BD17,BI17)*'Allocation Detail'!$E$13/12,2),0) -> 0 | BL17: =IFERROR(ROUND(-SUM(BE17,BG17,BH17)*'Allocation Detail'!$H$13/12,2),0) -> 0 | BM17: 0 | BN17: 0 | BO17: 0 | BP17: 0 | BQ17: 0 | BR17: =IFERROR(BS17*('Allocation Detail'!#REF!/'Allocation Detail'!#REF!),0) -> 0 | BS17: 0 | BT17: 0 | BV17: 15 | BW17: 14 | BX17: 0 | BY17: 0 | BZ17: 0 | CA17: 0 | CB17: 0 | CC17: 0 | CD17: =IFERROR(ROUND(-SUM(BX17,CC17)*'Allocation Detail'!$E$13/12,2),0) -> 0 | CE17: =IFERROR(ROUND(-SUM(BY17,CA17,CB17)*'Allocation Detail'!$H$13/12,2),0) -> 0 | CF17: 0 | CG17: 0 | CH17: 0 | CI17: 0 | CJ17: 0 | CK17: =IFERROR(CL17*('Allocation Detail'!#REF!/'Allocation Detail'!#REF!),0) -> 0 | CL17: 0 | CM17: 0 | DG17: =ROUND($V$14,0) -> 0
A18: Initial Advice Fee | B18: ='Ashburton EAC'!E13 -> 0 | C18: 0.15 | D18: =D14*B18*(1+C18) -> 0 | F18: 16 | G18: 15 | H18: 0 | I18: 0 | J18: 0 | K18: 0 | L18: 0 | M18: =IFERROR(ROUND(-SUM(H18,L18)*'Allocation Detail'!$E$13/12,2),0) -> 0 | N18: =IFERROR(ROUND(-SUM(I18,J18,K18)*'Allocation Detail'!$E$13/12,2),0) -> 0 | O18: 0 | P18: 0 | Q18: 0 | R18: 0 | S18: 0 | T18: =IFERROR(U18*('Allocation Detail'!#REF!/'Allocation Detail'!#REF!),0) -> 0 | U18: 0 | V18: 0 | Y18: 16 | Z18: 15 | AA18: 0 | AB18: 0 | AC18: 0 | AD18: 0 | AE18: 0 | AF18: 0 | AH18: 16 | AI18: 15 | AJ18: 0 | AK18: 0 | AL18: 0 | AM18: 0 | AN18: 0 | AO18: 0 | AP18: 0 | AQ18: =IFERROR(ROUND(-SUM(AJ18,AO18)*'Allocation Detail'!$E$13/12,2),0) -> 0 | AR18: =IFERROR(ROUND(-SUM(AK18,AM18,AN18)*'Allocation Detail'!$H$13/12,2),0) -> 0 | AS18: 0 | AT18: 0 | AU18: 0 | AV18: 0 | AW18: 0 | AX18: =IFERROR(AY18*('Allocation Detail'!#REF!/'Allocation Detail'!#REF!),0) -> 0 | AY18: 0 | AZ18: 0 | BB18: =BB17+1 -> 16 | BC18: 15 | BD18: 0 | BE18: 0 | BF18: 0 | BG18: 0 | BH18: 0 | BI18: 0 | BJ18: 0 | BK18: =IFERROR(ROUND(-SUM(BD18,BI18)*'Allocation Detail'!$E$13/12,2),0) -> 0 | BL18: =IFERROR(ROUND(-SUM(BE18,BG18,BH18)*'Allocation Detail'!$H$13/12,2),0) -> 0 | BM18: 0 | BN18: 0 | BO18: 0 | BP18: 0 | BQ18: 0 | BR18: =IFERROR(BS18*('Allocation Detail'!#REF!/'Allocation Detail'!#REF!),0) -> 0 | BS18: 0 | BT18: 0 | BV18: 16 | BW18: 15 | BX18: 0 | BY18: 0 | BZ18: 0 | CA18: 0 | CB18: 0 | CC18: 0 | CD18: =IFERROR(ROUND(-SUM(BX18,CC18)*'Allocation Detail'!$E$13/12,2),0) -> 0 | CE18: =IFERROR(ROUND(-SUM(BY18,CA18,CB18)*'Allocation Detail'!$H$13/12,2),0) -> 0 | CF18: 0 | CG18: 0 | CH18: 0 | CI18: 0 | CJ18: 0 | CK18: =IFERROR(CL18*('Allocation Detail'!#REF!/'Allocation Detail'!#REF!),0) -> 0 | CL18: 0 | CM18: 0 | DG18: =DG16-DG17 -> 0
A19: Net Allocation | D19: =D14-D18 -> 0 | F19: 17 | G19: 16 | H19: 0 | I19: 0 | J19: 0 | K19: 0 | L19: 0 | M19: =IFERROR(ROUND(-SUM(H19,L19)*'Allocation Detail'!$E$13/12,2),0) -> 0 | N19: =IFERROR(ROUND(-SUM(I19,J19,K19)*'Allocation Detail'!$E$13/12,2),0) -> 0 | O19: 0 | P19: 0 | Q19: 0 | R19: 0 | S19: 0 | T19: =IFERROR(U19*('Allocation Detail'!#REF!/'Allocation Detail'!#REF!),0) -> 0 | U19: 0 | V19: 0 | Y19: 17 | Z19: 16 | AA19: 0 | AB19: 0 | AC19: 0 | AD19: 0 | AE19: 0 | AF19: 0 | AH19: 17 | AI19: 16 | AJ19: 0 | AK19: 0 | AL19: 0 | AM19: 0 | AN19: 0 | AO19: 0 | AP19: 0 | AQ19: =IFERROR(ROUND(-SUM(AJ19,AO19)*'Allocation Detail'!$E$13/12,2),0) -> 0 | AR19: =IFERROR(ROUND(-SUM(AK19,AM19,AN19)*'Allocation Detail'!$H$13/12,2),0) -> 0 | AS19: 0 | AT19: 0 | AU19: 0 | AV19: 0 | AW19: 0 | AX19: =IFERROR(AY19*('Allocation Detail'!#REF!/'Allocation Detail'!#REF!),0) -> 0 | AY19: 0 | AZ19: 0 | BB19: =BB18+1 -> 17 | BC19: 16 | BD19: 0 | BE19: 0 | BF19: 0 | BG19: 0 | BH19: 0 | BI19: 0 | BJ19: 0 | BK19: =IFERROR(ROUND(-SUM(BD19,BI19)*'Allocation Detail'!$E$13/12,2),0) -> 0 | BL19: =IFERROR(ROUND(-SUM(BE19,BG19,BH19)*'Allocation Detail'!$H$13/12,2),0) -> 0 | BM19: 0 | BN19: 0 | BO19: 0 | BP19: 0 | BQ19: 0 | BR19: =IFERROR(BS19*('Allocation Detail'!#REF!/'Allocation Detail'!#REF!),0) -> 0 | BS19: 0 | BT19: 0 | BV19: 17 | BW19: 16 | BX19: 0 | BY19: 0 | BZ19: 0 | CA19: 0 | CB19: 0 | CC19: 0 | CD19: =IFERROR(ROUND(-SUM(BX19,CC19)*'Allocation Detail'!$E$13/12,2),0) -> 0 | CE19: =IFERROR(ROUND(-SUM(BY19,CA19,CB19)*'Allocation Detail'!$H$13/12,2),0) -> 0 | CF19: 0 | CG19: 0 | CH19: 0 | CI19: 0 | CJ19: 0 | CK19: =IFERROR(CL19*('Allocation Detail'!#REF!/'Allocation Detail'!#REF!),0) -> 0 | CL19: 0 | CM19: 0
A20: Internal u/t allocation | D20: 1 | F20: 18 | G20: 17 | H20: 0 | I20: 0 | J20: 0 | K20: 0 | L20: 0 | M20: =IFERROR(ROUND(-SUM(H20,L20)*'Allocation Detail'!$E$13/12,2),0) -> 0 | N20: =IFERROR(ROUND(-SUM(I20,J20,K20)*'Allocation Detail'!$E$13/12,2),0) -> 0 | O20: 0 | P20: 0 | Q20: 0 | R20: 0 | S20: 0 | T20: =IFERROR(U20*('Allocation Detail'!#REF!/'Allocation Detail'!#REF!),0) -> 0 | U20: 0 | V20: 0 | Y20: 18 | Z20: 17 | AA20: 0 | AB20: 0 | AC20: 0 | AD20: 0 | AE20: 0 | AF20: 0 | AH20: 18 | AI20: 17 | AJ20: 0 | AK20: 0 | AL20: 0 | AM20: 0 | AN20: 0 | AO20: 0 | AP20: 0 | AQ20: =IFERROR(ROUND(-SUM(AJ20,AO20)*'Allocation Detail'!$E$13/12,2),0) -> 0 | AR20: =IFERROR(ROUND(-SUM(AK20,AM20,AN20)*'Allocation Detail'!$H$13/12,2),0) -> 0 | AS20: 0 | AT20: 0 | AU20: 0 | AV20: 0 | AW20: 0 | AX20: =IFERROR(AY20*('Allocation Detail'!#REF!/'Allocation Detail'!#REF!),0) -> 0 | AY20: 0 | AZ20: 0 | BB20: =BB19+1 -> 18 | BC20: 17 | BD20: 0 | BE20: 0 | BF20: 0 | BG20: 0 | BH20: 0 | BI20: 0 | BJ20: 0 | BK20: =IFERROR(ROUND(-SUM(BD20,BI20)*'Allocation Detail'!$E$13/12,2),0) -> 0 | BL20: =IFERROR(ROUND(-SUM(BE20,BG20,BH20)*'Allocation Detail'!$H$13/12,2),0) -> 0 | BM20: 0 | BN20: 0 | BO20: 0 | BP20: 0 | BQ20: 0 | BR20: =IFERROR(BS20*('Allocation Detail'!#REF!/'Allocation Detail'!#REF!),0) -> 0 | BS20: 0 | BT20: 0 | BV20: 18 | BW20: 17 | BX20: 0 | BY20: 0 | BZ20: 0 | CA20: 0 | CB20: 0 | CC20: 0 | CD20: =IFERROR(ROUND(-SUM(BX20,CC20)*'Allocation Detail'!$E$13/12,2),0) -> 0 | CE20: =IFERROR(ROUND(-SUM(BY20,CA20,CB20)*'Allocation Detail'!$H$13/12,2),0) -> 0 | CF20: 0 | CG20: 0 | CH20: 0 | CI20: 0 | CJ20: 0 | CK20: =IFERROR(CL20*('Allocation Detail'!#REF!/'Allocation Detail'!#REF!),0) -> 0 | CL20: 0 | CM20: 0
F21: 19 | G21: 18 | H21: 0 | I21: 0 | J21: 0 | K21: 0 | L21: 0 | M21: =IFERROR(ROUND(-SUM(H21,L21)*'Allocation Detail'!$E$13/12,2),0) -> 0 | N21: =IFERROR(ROUND(-SUM(I21,J21,K21)*'Allocation Detail'!$E$13/12,2),0) -> 0 | O21: 0 | P21: 0 | Q21: 0 | R21: 0 | S21: 0 | T21: =IFERROR(U21*('Allocation Detail'!#REF!/'Allocation Detail'!#REF!),0) -> 0 | U21: 0 | V21: 0 | Y21: =Y20+1 -> 19 | Z21: 18 | AA21: 0 | AB21: 0 | AC21: 0 | AD21: 0 | AE21: 0 | AF21: 0 | AH21: =AH20+1 -> 19 | AI21: 18 | AJ21: 0 | AK21: 0 | AL21: 0 | AM21: 0 | AN21: 0 | AO21: 0 | AP21: 0 | AQ21: =IFERROR(ROUND(-SUM(AJ21,AO21)*'Allocation Detail'!$E$13/12,2),0) -> 0 | AR21: =IFERROR(ROUND(-SUM(AK21,AM21,AN21)*'Allocation Detail'!$H$13/12,2),0) -> 0 | AS21: 0 | AT21: 0 | AU21: 0 | AV21: 0 | AW21: 0 | AX21: =IFERROR(AY21*('Allocation Detail'!#REF!/'Allocation Detail'!#REF!),0) -> 0 | AY21: 0 | AZ21: 0 | BB21: =BB20+1 -> 19 | BC21: 18 | BD21: 0 | BE21: 0 | BF21: 0 | BG21: 0 | BH21: 0 | BI21: 0 | BJ21: 0 | BK21: =IFERROR(ROUND(-SUM(BD21,BI21)*'Allocation Detail'!$E$13/12,2),0) -> 0 | BL21: =IFERROR(ROUND(-SUM(BE21,BG21,BH21)*'Allocation Detail'!$H$13/12,2),0) -> 0 | BM21: 0 | BN21: 0 | BO21: 0 | BP21: 0 | BQ21: 0 | BR21: =IFERROR(BS21*('Allocation Detail'!#REF!/'Allocation Detail'!#REF!),0) -> 0 | BS21: 0 | BT21: 0 | BV21: =BV20+1 -> 19 | BW21: 18 | BX21: 0 | BY21: 0 | BZ21: 0 | CA21: 0 | CB21: 0 | CC21: 0 | CD21: =IFERROR(ROUND(-SUM(BX21,CC21)*'Allocation Detail'!$E$13/12,2),0) -> 0 | CE21: =IFERROR(ROUND(-SUM(BY21,CA21,CB21)*'Allocation Detail'!$H$13/12,2),0) -> 0 | CF21: 0 | CG21: 0 | CH21: 0 | CI21: 0 | CJ21: 0 | CK21: =IFERROR(CL21*('Allocation Detail'!#REF!/'Allocation Detail'!#REF!),0) -> 0 | CL21: 0 | CM21: 0
F22: 20 | G22: 19 | H22: 0 | I22: 0 | J22: 0 | K22: 0 | L22: 0 | M22: =IFERROR(ROUND(-SUM(H22,L22)*'Allocation Detail'!$E$13/12,2),0) -> 0 | N22: =IFERROR(ROUND(-SUM(I22,J22,K22)*'Allocation Detail'!$E$13/12,2),0) -> 0 | O22: 0 | P22: 0 | Q22: 0 | R22: 0 | S22: 0 | T22: =IFERROR(U22*('Allocation Detail'!#REF!/'Allocation Detail'!#REF!),0) -> 0 | U22: 0 | V22: 0 | Y22: 20 | Z22: 19 | AA22: 0 | AB22: 0 | AC22: 0 | AD22: 0 | AE22: 0 | AF22: 0 | AH22: 20 | AI22: 19 | AJ22: 0 | AK22: 0 | AL22: 0 | AM22: 0 | AN22: 0 | AO22: 0 | AP22: 0 | AQ22: =IFERROR(ROUND(-SUM(AJ22,AO22)*'Allocation Detail'!$E$13/12,2),0) -> 0 | AR22: =IFERROR(ROUND(-SUM(AK22,AM22,AN22)*'Allocation Detail'!$H$13/12,2),0) -> 0 | AS22: 0 | AT22: 0 | AU22: 0 | AV22: 0 | AW22: 0 | AX22: =IFERROR(AY22*('Allocation Detail'!#REF!/'Allocation Detail'!#REF!),0) -> 0 | AY22: 0 | AZ22: 0 | BB22: =BB21+1 -> 20 | BC22: 19 | BD22: 0 | BE22: 0 | BF22: 0 | BG22: 0 | BH22: 0 | BI22: 0 | BJ22: 0 | BK22: =IFERROR(ROUND(-SUM(BD22,BI22)*'Allocation Detail'!$E$13/12,2),0) -> 0 | BL22: =IFERROR(ROUND(-SUM(BE22,BG22,BH22)*'Allocation Detail'!$H$13/12,2),0) -> 0 | BM22: 0 | BN22: 0 | BO22: 0 | BP22: 0 | BQ22: 0 | BR22: =IFERROR(BS22*('Allocation Detail'!#REF!/'Allocation Detail'!#REF!),0) -> 0 | BS22: 0 | BT22: 0 | BV22: 20 | BW22: 19 | BX22: 0 | BY22: 0 | BZ22: 0 | CA22: 0 | CB22: 0 | CC22: 0 | CD22: =IFERROR(ROUND(-SUM(BX22,CC22)*'Allocation Detail'!$E$13/12,2),0) -> 0 | CE22: =IFERROR(ROUND(-SUM(BY22,CA22,CB22)*'Allocation Detail'!$H$13/12,2),0) -> 0 | CF22: 0 | CG22: 0 | CH22: 0 | CI22: 0 | CJ22: 0 | CK22: =IFERROR(CL22*('Allocation Detail'!#REF!/'Allocation Detail'!#REF!),0) -> 0 | CL22: 0 | CM22: 0
A23: Investment Allocation | F23: 21 | G23: 20 | H23: 0 | I23: 0 | J23: 0 | K23: 0 | L23: 0 | M23: =IFERROR(ROUND(-SUM(H23,L23)*'Allocation Detail'!$E$13/12,2),0) -> 0 | N23: =IFERROR(ROUND(-SUM(I23,J23,K23)*'Allocation Detail'!$E$13/12,2),0) -> 0 | O23: 0 | P23: 0 | Q23: 0 | R23: 0 | S23: 0 | T23: =IFERROR(U23*('Allocation Detail'!#REF!/'Allocation Detail'!#REF!),0) -> 0 | U23: 0 | V23: 0 | Y23: 21 | Z23: 20 | AA23: 0 | AB23: 0 | AC23: 0 | AD23: 0 | AE23: 0 | AF23: 0 | AH23: 21 | AI23: 20 | AJ23: 0 | AK23: 0 | AL23: 0 | AM23: 0 | AN23: 0 | AO23: 0 | AP23: 0 | AQ23: =IFERROR(ROUND(-SUM(AJ23,AO23)*'Allocation Detail'!$E$13/12,2),0) -> 0 | AR23: =IFERROR(ROUND(-SUM(AK23,AM23,AN23)*'Allocation Detail'!$H$13/12,2),0) -> 0 | AS23: 0 | AT23: 0 | AU23: 0 | AV23: 0 | AW23: 0 | AX23: =IFERROR(AY23*('Allocation Detail'!#REF!/'Allocation Detail'!#REF!),0) -> 0 | AY23: 0 | AZ23: 0 | BB23: =BB22+1 -> 21 | BC23: 20 | BD23: 0 | BE23: 0 | BF23: 0 | BG23: 0 | BH23: 0 | BI23: 0 | BJ23: 0 | BK23: =IFERROR(ROUND(-SUM(BD23,BI23)*'Allocation Detail'!$E$13/12,2),0) -> 0 | BL23: =IFERROR(ROUND(-SUM(BE23,BG23,BH23)*'Allocation Detail'!$H$13/12,2),0) -> 0 | BM23: 0 | BN23: 0 | BO23: 0 | BP23: 0 | BQ23: 0 | BR23: =IFERROR(BS23*('Allocation Detail'!#REF!/'Allocation Detail'!#REF!),0) -> 0 | BS23: 0 | BT23: 0 | BV23: 21 | BW23: 20 | BX23: 0 | BY23: 0 | BZ23: 0 | CA23: 0 | CB23: 0 | CC23: 0 | CD23: =IFERROR(ROUND(-SUM(BX23,CC23)*'Allocation Detail'!$E$13/12,2),0) -> 0 | CE23: =IFERROR(ROUND(-SUM(BY23,CA23,CB23)*'Allocation Detail'!$H$13/12,2),0) -> 0 | CF23: 0 | CG23: 0 | CH23: 0 | CI23: 0 | CJ23: 0 | CK23: =IFERROR(CL23*('Allocation Detail'!#REF!/'Allocation Detail'!#REF!),0) -> 0 | CL23: 0 | CM23: 0
A24: Instrument Name | B24: LS Annual WAF | C24: Lump sum % | D24: Recurring % | E24: Recurring Annual WAF | F24: 22 | G24: 21 | H24: 0 | I24: 0 | J24: 0 | K24: 0 | L24: 0 | M24: =IFERROR(ROUND(-SUM(H24,L24)*'Allocation Detail'!$E$13/12,2),0) -> 0 | N24: =IFERROR(ROUND(-SUM(I24,J24,K24)*'Allocation Detail'!$E$13/12,2),0) -> 0 | O24: 0 | P24: 0 | Q24: 0 | R24: 0 | S24: 0 | T24: =IFERROR(U24*('Allocation Detail'!#REF!/'Allocation Detail'!#REF!),0) -> 0 | U24: 0 | V24: 0 | Y24: 22 | Z24: 21 | AA24: 0 | AB24: 0 | AC24: 0 | AD24: 0 | AE24: 0 | AF24: 0 | AH24: 22 | AI24: 21 | AJ24: 0 | AK24: 0 | AL24: 0 | AM24: 0 | AN24: 0 | AO24: 0 | AP24: 0 | AQ24: =IFERROR(ROUND(-SUM(AJ24,AO24)*'Allocation Detail'!$E$13/12,2),0) -> 0 | AR24: =IFERROR(ROUND(-SUM(AK24,AM24,AN24)*'Allocation Detail'!$H$13/12,2),0) -> 0 | AS24: 0 | AT24: 0 | AU24: 0 | AV24: 0 | AW24: 0 | AX24: =IFERROR(AY24*('Allocation Detail'!#REF!/'Allocation Detail'!#REF!),0) -> 0 | AY24: 0 | AZ24: 0 | BB24: =BB23+1 -> 22 | BC24: 21 | BD24: 0 | BE24: 0 | BF24: 0 | BG24: 0 | BH24: 0 | BI24: 0 | BJ24: 0 | BK24: =IFERROR(ROUND(-SUM(BD24,BI24)*'Allocation Detail'!$E$13/12,2),0) -> 0 | BL24: =IFERROR(ROUND(-SUM(BE24,BG24,BH24)*'Allocation Detail'!$H$13/12,2),0) -> 0 | BM24: 0 | BN24: 0 | BO24: 0 | BP24: 0 | BQ24: 0 | BR24: =IFERROR(BS24*('Allocation Detail'!#REF!/'Allocation Detail'!#REF!),0) -> 0 | BS24: 0 | BT24: 0 | BV24: 22 | BW24: 21 | BX24: 0 | BY24: 0 | BZ24: 0 | CA24: 0 | CB24: 0 | CC24: 0 | CD24: =IFERROR(ROUND(-SUM(BX24,CC24)*'Allocation Detail'!$E$13/12,2),0) -> 0 | CE24: =IFERROR(ROUND(-SUM(BY24,CA24,CB24)*'Allocation Detail'!$H$13/12,2),0) -> 0 | CF24: 0 | CG24: 0 | CH24: 0 | CI24: 0 | CJ24: 0 | CK24: =IFERROR(CL24*('Allocation Detail'!#REF!/'Allocation Detail'!#REF!),0) -> 0 | CL24: 0 | CM24: 0
A25: =IF('Ashburton EAC'!A23="","",'Ashburton EAC'!A23) ->  | B25: =IFERROR(VLOOKUP(A25,'Allocation Detail'!$A$3:$E$12,5,FALSE),0) -> 0 | C25: =IFERROR(VLOOKUP(A25,'Ashburton EAC'!$A$23:$E$33,5,FALSE),0) -> 0 | D25: =IFERROR(VLOOKUP(A25,'Ashburton EAC'!$A$23:$F$33,6,FALSE),0) -> 0 | E25: =IFERROR(VLOOKUP(A25,'Allocation Detail'!$A$3:$H$12,8),0) -> 0 | F25: 23 | G25: 22 | H25: 0 | I25: 0 | J25: 0 | K25: 0 | L25: 0 | M25: =IFERROR(ROUND(-SUM(H25,L25)*'Allocation Detail'!$E$13/12,2),0) -> 0 | N25: =IFERROR(ROUND(-SUM(I25,J25,K25)*'Allocation Detail'!$E$13/12,2),0) -> 0 | O25: 0 | P25: 0 | Q25: 0 | R25: 0 | S25: 0 | T25: =IFERROR(U25*('Allocation Detail'!#REF!/'Allocation Detail'!#REF!),0) -> 0 | U25: 0 | V25: 0 | Y25: 23 | Z25: 22 | AA25: 0 | AB25: 0 | AC25: 0 | AD25: 0 | AE25: 0 | AF25: 0 | AH25: 23 | AI25: 22 | AJ25: 0 | AK25: 0 | AL25: 0 | AM25: 0 | AN25: 0 | AO25: 0 | AP25: 0 | AQ25: =IFERROR(ROUND(-SUM(AJ25,AO25)*'Allocation Detail'!$E$13/12,2),0) -> 0 | AR25: =IFERROR(ROUND(-SUM(AK25,AM25,AN25)*'Allocation Detail'!$H$13/12,2),0) -> 0 | AS25: 0 | AT25: 0 | AU25: 0 | AV25: 0 | AW25: 0 | AX25: =IFERROR(AY25*('Allocation Detail'!#REF!/'Allocation Detail'!#REF!),0) -> 0 | AY25: 0 | AZ25: 0 | BB25: =BB24+1 -> 23 | BC25: 22 | BD25: 0 | BE25: 0 | BF25: 0 | BG25: 0 | BH25: 0 | BI25: 0 | BJ25: 0 | BK25: =IFERROR(ROUND(-SUM(BD25,BI25)*'Allocation Detail'!$E$13/12,2),0) -> 0 | BL25: =IFERROR(ROUND(-SUM(BE25,BG25,BH25)*'Allocation Detail'!$H$13/12,2),0) -> 0 | BM25: 0 | BN25: 0 | BO25: 0 | BP25: 0 | BQ25: 0 | BR25: =IFERROR(BS25*('Allocation Detail'!#REF!/'Allocation Detail'!#REF!),0) -> 0 | BS25: 0 | BT25: 0 | BV25: 23 | BW25: 22 | BX25: 0 | BY25: 0 | BZ25: 0 | CA25: 0 | CB25: 0 | CC25: 0 | CD25: =IFERROR(ROUND(-SUM(BX25,CC25)*'Allocation Detail'!$E$13/12,2),0) -> 0 | CE25: =IFERROR(ROUND(-SUM(BY25,CA25,CB25)*'Allocation Detail'!$H$13/12,2),0) -> 0 | CF25: 0 | CG25: 0 | CH25: 0 | CI25: 0 | CJ25: 0 | CK25: =IFERROR(CL25*('Allocation Detail'!#REF!/'Allocation Detail'!#REF!),0) -> 0 | CL25: 0 | CM25: 0
A26: =IF('Ashburton EAC'!A24="","",'Ashburton EAC'!A24) ->  | B26: =IFERROR(VLOOKUP(A26,'Allocation Detail'!$A$3:$E$12,5,FALSE),0) -> 0 | C26: =IFERROR(VLOOKUP(A26,'Ashburton EAC'!$A$23:$E$33,5,FALSE),0) -> 0 | D26: =IFERROR(VLOOKUP(A26,'Ashburton EAC'!$A$23:$F$33,6,FALSE),0) -> 0 | E26: =IFERROR(VLOOKUP(A26,'Allocation Detail'!$A$3:$H$12,8),0) -> 0 | F26: 24 | G26: 23 | H26: 0 | I26: 0 | J26: 0 | K26: 0 | L26: 0 | M26: =IFERROR(ROUND(-SUM(H26,L26)*'Allocation Detail'!$E$13/12,2),0) -> 0 | N26: =IFERROR(ROUND(-SUM(I26,J26,K26)*'Allocation Detail'!$E$13/12,2),0) -> 0 | O26: 0 | P26: 0 | Q26: 0 | R26: 0 | S26: 0 | T26: =IFERROR(U26*('Allocation Detail'!#REF!/'Allocation Detail'!#REF!),0) -> 0 | U26: 0 | V26: 0 | Y26: 24 | Z26: 23 | AA26: 0 | AB26: 0 | AC26: 0 | AD26: 0 | AE26: 0 | AF26: 0 | AH26: 24 | AI26: 23 | AJ26: 0 | AK26: 0 | AL26: 0 | AM26: 0 | AN26: 0 | AO26: 0 | AP26: 0 | AQ26: =IFERROR(ROUND(-SUM(AJ26,AO26)*'Allocation Detail'!$E$13/12,2),0) -> 0 | AR26: =IFERROR(ROUND(-SUM(AK26,AM26,AN26)*'Allocation Detail'!$H$13/12,2),0) -> 0 | AS26: 0 | AT26: 0 | AU26: 0 | AV26: 0 | AW26: 0 | AX26: =IFERROR(AY26*('Allocation Detail'!#REF!/'Allocation Detail'!#REF!),0) -> 0 | AY26: 0 | AZ26: 0 | BB26: =BB25+1 -> 24 | BC26: 23 | BD26: 0 | BE26: 0 | BF26: 0 | BG26: 0 | BH26: 0 | BI26: 0 | BJ26: 0 | BK26: =IFERROR(ROUND(-SUM(BD26,BI26)*'Allocation Detail'!$E$13/12,2),0) -> 0 | BL26: =IFERROR(ROUND(-SUM(BE26,BG26,BH26)*'Allocation Detail'!$H$13/12,2),0) -> 0 | BM26: 0 | BN26: 0 | BO26: 0 | BP26: 0 | BQ26: 0 | BR26: =IFERROR(BS26*('Allocation Detail'!#REF!/'Allocation Detail'!#REF!),0) -> 0 | BS26: 0 | BT26: 0 | BV26: 24 | BW26: 23 | BX26: 0 | BY26: 0 | BZ26: 0 | CA26: 0 | CB26: 0 | CC26: 0 | CD26: =IFERROR(ROUND(-SUM(BX26,CC26)*'Allocation Detail'!$E$13/12,2),0) -> 0 | CE26: =IFERROR(ROUND(-SUM(BY26,CA26,CB26)*'Allocation Detail'!$H$13/12,2),0) -> 0 | CF26: 0 | CG26: 0 | CH26: 0 | CI26: 0 | CJ26: 0 | CK26: =IFERROR(CL26*('Allocation Detail'!#REF!/'Allocation Detail'!#REF!),0) -> 0 | CL26: 0 | CM26: 0
A27: =IF('Ashburton EAC'!A25="","",'Ashburton EAC'!A25) ->  | B27: =IFERROR(VLOOKUP(A27,'Allocation Detail'!$A$3:$E$12,5,FALSE),0) -> 0 | C27: =IFERROR(VLOOKUP(A27,'Ashburton EAC'!$A$23:$E$33,5,FALSE),0) -> 0 | D27: =IFERROR(VLOOKUP(A27,'Ashburton EAC'!$A$23:$F$33,6,FALSE),0) -> 0 | E27: =IFERROR(VLOOKUP(A27,'Allocation Detail'!$A$3:$H$12,8),0) -> 0 | F27: 25 | G27: 24 | H27: 0 | I27: 0 | J27: 0 | K27: 0 | L27: 0 | M27: =IFERROR(ROUND(-SUM(H27,L27)*'Allocation Detail'!$E$13/12,2),0) -> 0 | N27: =IFERROR(ROUND(-SUM(I27,J27,K27)*'Allocation Detail'!$E$13/12,2),0) -> 0 | O27: 0 | P27: 0 | Q27: 0 | R27: 0 | S27: 0 | T27: =IFERROR(U27*('Allocation Detail'!#REF!/'Allocation Detail'!#REF!),0) -> 0 | U27: 0 | V27: 0 | Y27: 25 | Z27: 24 | AA27: 0 | AB27: 0 | AC27: 0 | AD27: 0 | AE27: 0 | AF27: 0 | AH27: 25 | AI27: 24 | AJ27: 0 | AK27: 0 | AL27: 0 | AM27: 0 | AN27: 0 | AO27: 0 | AP27: 0 | AQ27: =IFERROR(ROUND(-SUM(AJ27,AO27)*'Allocation Detail'!$E$13/12,2),0) -> 0 | AR27: =IFERROR(ROUND(-SUM(AK27,AM27,AN27)*'Allocation Detail'!$H$13/12,2),0) -> 0 | AS27: 0 | AT27: 0 | AU27: 0 | AV27: 0 | AW27: 0 | AX27: =IFERROR(AY27*('Allocation Detail'!#REF!/'Allocation Detail'!#REF!),0) -> 0 | AY27: 0 | AZ27: 0 | BB27: =BB26+1 -> 25 | BC27: 24 | BD27: 0 | BE27: 0 | BF27: 0 | BG27: 0 | BH27: 0 | BI27: 0 | BJ27: 0 | BK27: =IFERROR(ROUND(-SUM(BD27,BI27)*'Allocation Detail'!$E$13/12,2),0) -> 0 | BL27: =IFERROR(ROUND(-SUM(BE27,BG27,BH27)*'Allocation Detail'!$H$13/12,2),0) -> 0 | BM27: 0 | BN27: 0 | BO27: 0 | BP27: 0 | BQ27: 0 | BR27: =IFERROR(BS27*('Allocation Detail'!#REF!/'Allocation Detail'!#REF!),0) -> 0 | BS27: 0 | BT27: 0 | BV27: 25 | BW27: 24 | BX27: 0 | BY27: 0 | BZ27: 0 | CA27: 0 | CB27: 0 | CC27: 0 | CD27: =IFERROR(ROUND(-SUM(BX27,CC27)*'Allocation Detail'!$E$13/12,2),0) -> 0 | CE27: =IFERROR(ROUND(-SUM(BY27,CA27,CB27)*'Allocation Detail'!$H$13/12,2),0) -> 0 | CF27: 0 | CG27: 0 | CH27: 0 | CI27: 0 | CJ27: 0 | CK27: =IFERROR(CL27*('Allocation Detail'!#REF!/'Allocation Detail'!#REF!),0) -> 0 | CL27: 0 | CM27: 0
A28: =IF('Ashburton EAC'!A26="","",'Ashburton EAC'!A26) ->  | B28: =IFERROR(VLOOKUP(A28,'Allocation Detail'!$A$3:$E$12,5,FALSE),0) -> 0 | C28: =IFERROR(VLOOKUP(A28,'Ashburton EAC'!$A$23:$E$33,5,FALSE),0) -> 0 | D28: =IFERROR(VLOOKUP(A28,'Ashburton EAC'!$A$23:$F$33,6,FALSE),0) -> 0 | E28: =IFERROR(VLOOKUP(A28,'Allocation Detail'!$A$3:$H$12,8),0) -> 0 | F28: 26 | G28: 25 | H28: 0 | I28: 0 | J28: 0 | K28: 0 | L28: 0 | M28: =IFERROR(ROUND(-SUM(H28,L28)*'Allocation Detail'!$E$13/12,2),0) -> 0 | N28: =IFERROR(ROUND(-SUM(I28,J28,K28)*'Allocation Detail'!$E$13/12,2),0) -> 0 | O28: 0 | P28: 0 | Q28: 0 | R28: 0 | S28: 0 | T28: =IFERROR(U28*('Allocation Detail'!#REF!/'Allocation Detail'!#REF!),0) -> 0 | U28: 0 | V28: 0 | Y28: 26 | Z28: 25 | AA28: 0 | AB28: 0 | AC28: 0 | AD28: 0 | AE28: 0 | AF28: 0 | AH28: 26 | AI28: 25 | AJ28: 0 | AK28: 0 | AL28: 0 | AM28: 0 | AN28: 0 | AO28: 0 | AP28: 0 | AQ28: =IFERROR(ROUND(-SUM(AJ28,AO28)*'Allocation Detail'!$E$13/12,2),0) -> 0 | AR28: =IFERROR(ROUND(-SUM(AK28,AM28,AN28)*'Allocation Detail'!$H$13/12,2),0) -> 0 | AS28: 0 | AT28: 0 | AU28: 0 | AV28: 0 | AW28: 0 | AX28: =IFERROR(AY28*('Allocation Detail'!#REF!/'Allocation Detail'!#REF!),0) -> 0 | AY28: 0 | AZ28: 0 | BB28: =BB27+1 -> 26 | BC28: 25 | BD28: 0 | BE28: 0 | BF28: 0 | BG28: 0 | BH28: 0 | BI28: 0 | BJ28: 0 | BK28: =IFERROR(ROUND(-SUM(BD28,BI28)*'Allocation Detail'!$E$13/12,2),0) -> 0 | BL28: =IFERROR(ROUND(-SUM(BE28,BG28,BH28)*'Allocation Detail'!$H$13/12,2),0) -> 0 | BM28: 0 | BN28: 0 | BO28: 0 | BP28: 0 | BQ28: 0 | BR28: =IFERROR(BS28*('Allocation Detail'!#REF!/'Allocation Detail'!#REF!),0) -> 0 | BS28: 0 | BT28: 0 | BV28: 26 | BW28: 25 | BX28: 0 | BY28: 0 | BZ28: 0 | CA28: 0 | CB28: 0 | CC28: 0 | CD28: =IFERROR(ROUND(-SUM(BX28,CC28)*'Allocation Detail'!$E$13/12,2),0) -> 0 | CE28: =IFERROR(ROUND(-SUM(BY28,CA28,CB28)*'Allocation Detail'!$H$13/12,2),0) -> 0 | CF28: 0 | CG28: 0 | CH28: 0 | CI28: 0 | CJ28: 0 | CK28: =IFERROR(CL28*('Allocation Detail'!#REF!/'Allocation Detail'!#REF!),0) -> 0 | CL28: 0 | CM28: 0
A29: =IF('Ashburton EAC'!A27="","",'Ashburton EAC'!A27) ->  | B29: =IFERROR(VLOOKUP(A29,'Allocation Detail'!$A$3:$E$12,5,FALSE),0) -> 0 | C29: =IFERROR(VLOOKUP(A29,'Ashburton EAC'!$A$23:$E$33,5,FALSE),0) -> 0 | D29: =IFERROR(VLOOKUP(A29,'Ashburton EAC'!$A$23:$F$33,6,FALSE),0) -> 0 | E29: =IFERROR(VLOOKUP(A29,'Allocation Detail'!$A$3:$H$12,8),0) -> 0 | F29: 27 | G29: 26 | H29: 0 | I29: 0 | J29: 0 | K29: 0 | L29: 0 | M29: =IFERROR(ROUND(-SUM(H29,L29)*'Allocation Detail'!$E$13/12,2),0) -> 0 | N29: =IFERROR(ROUND(-SUM(I29,J29,K29)*'Allocation Detail'!$E$13/12,2),0) -> 0 | O29: 0 | P29: 0 | Q29: 0 | R29: 0 | S29: 0 | T29: =IFERROR(U29*('Allocation Detail'!#REF!/'Allocation Detail'!#REF!),0) -> 0 | U29: 0 | V29: 0 | Y29: 27 | Z29: 26 | AA29: 0 | AB29: 0 | AC29: 0 | AD29: 0 | AE29: 0 | AF29: 0 | AH29: 27 | AI29: 26 | AJ29: 0 | AK29: 0 | AL29: 0 | AM29: 0 | AN29: 0 | AO29: 0 | AP29: 0 | AQ29: =IFERROR(ROUND(-SUM(AJ29,AO29)*'Allocation Detail'!$E$13/12,2),0) -> 0 | AR29: =IFERROR(ROUND(-SUM(AK29,AM29,AN29)*'Allocation Detail'!$H$13/12,2),0) -> 0 | AS29: 0 | AT29: 0 | AU29: 0 | AV29: 0 | AW29: 0 | AX29: =IFERROR(AY29*('Allocation Detail'!#REF!/'Allocation Detail'!#REF!),0) -> 0 | AY29: 0 | AZ29: 0 | BB29: =BB28+1 -> 27 | BC29: 26 | BD29: 0 | BE29: 0 | BF29: 0 | BG29: 0 | BH29: 0 | BI29: 0 | BJ29: 0 | BK29: =IFERROR(ROUND(-SUM(BD29,BI29)*'Allocation Detail'!$E$13/12,2),0) -> 0 | BL29: =IFERROR(ROUND(-SUM(BE29,BG29,BH29)*'Allocation Detail'!$H$13/12,2),0) -> 0 | BM29: 0 | BN29: 0 | BO29: 0 | BP29: 0 | BQ29: 0 | BR29: =IFERROR(BS29*('Allocation Detail'!#REF!/'Allocation Detail'!#REF!),0) -> 0 | BS29: 0 | BT29: 0 | BV29: 27 | BW29: 26 | BX29: 0 | BY29: 0 | BZ29: 0 | CA29: 0 | CB29: 0 | CC29: 0 | CD29: =IFERROR(ROUND(-SUM(BX29,CC29)*'Allocation Detail'!$E$13/12,2),0) -> 0 | CE29: =IFERROR(ROUND(-SUM(BY29,CA29,CB29)*'Allocation Detail'!$H$13/12,2),0) -> 0 | CF29: 0 | CG29: 0 | CH29: 0 | CI29: 0 | CJ29: 0 | CK29: =IFERROR(CL29*('Allocation Detail'!#REF!/'Allocation Detail'!#REF!),0) -> 0 | CL29: 0 | CM29: 0
A30: =IF('Ashburton EAC'!A28="","",'Ashburton EAC'!A28) ->  | B30: =IFERROR(VLOOKUP(A30,'Allocation Detail'!$A$3:$E$12,5,FALSE),0) -> 0 | C30: =IFERROR(VLOOKUP(A30,'Ashburton EAC'!$A$23:$E$33,5,FALSE),0) -> 0 | D30: =IFERROR(VLOOKUP(A30,'Ashburton EAC'!$A$23:$F$33,6,FALSE),0) -> 0 | E30: =IFERROR(VLOOKUP(A30,'Allocation Detail'!$A$3:$H$12,8),0) -> 0 | F30: 28 | G30: 27 | H30: 0 | I30: 0 | J30: 0 | K30: 0 | L30: 0 | M30: =IFERROR(ROUND(-SUM(H30,L30)*'Allocation Detail'!$E$13/12,2),0) -> 0 | N30: =IFERROR(ROUND(-SUM(I30,J30,K30)*'Allocation Detail'!$E$13/12,2),0) -> 0 | O30: 0 | P30: 0 | Q30: 0 | R30: 0 | S30: 0 | T30: =IFERROR(U30*('Allocation Detail'!#REF!/'Allocation Detail'!#REF!),0) -> 0 | U30: 0 | V30: 0 | Y30: 28 | Z30: 27 | AA30: 0 | AB30: 0 | AC30: 0 | AD30: 0 | AE30: 0 | AF30: 0 | AH30: 28 | AI30: 27 | AJ30: 0 | AK30: 0 | AL30: 0 | AM30: 0 | AN30: 0 | AO30: 0 | AP30: 0 | AQ30: =IFERROR(ROUND(-SUM(AJ30,AO30)*'Allocation Detail'!$E$13/12,2),0) -> 0 | AR30: =IFERROR(ROUND(-SUM(AK30,AM30,AN30)*'Allocation Detail'!$H$13/12,2),0) -> 0 | AS30: 0 | AT30: 0 | AU30: 0 | AV30: 0 | AW30: 0 | AX30: =IFERROR(AY30*('Allocation Detail'!#REF!/'Allocation Detail'!#REF!),0) -> 0 | AY30: 0 | AZ30: 0 | BB30: =BB29+1 -> 28 | BC30: 27 | BD30: 0 | BE30: 0 | BF30: 0 | BG30: 0 | BH30: 0 | BI30: 0 | BJ30: 0 | BK30: =IFERROR(ROUND(-SUM(BD30,BI30)*'Allocation Detail'!$E$13/12,2),0) -> 0 | BL30: =IFERROR(ROUND(-SUM(BE30,BG30,BH30)*'Allocation Detail'!$H$13/12,2),0) -> 0 | BM30: 0 | BN30: 0 | BO30: 0 | BP30: 0 | BQ30: 0 | BR30: =IFERROR(BS30*('Allocation Detail'!#REF!/'Allocation Detail'!#REF!),0) -> 0 | BS30: 0 | BT30: 0 | BV30: 28 | BW30: 27 | BX30: 0 | BY30: 0 | BZ30: 0 | CA30: 0 | CB30: 0 | CC30: 0 | CD30: =IFERROR(ROUND(-SUM(BX30,CC30)*'Allocation Detail'!$E$13/12,2),0) -> 0 | CE30: =IFERROR(ROUND(-SUM(BY30,CA30,CB30)*'Allocation Detail'!$H$13/12,2),0) -> 0 | CF30: 0 | CG30: 0 | CH30: 0 | CI30: 0 | CJ30: 0 | CK30: =IFERROR(CL30*('Allocation Detail'!#REF!/'Allocation Detail'!#REF!),0) -> 0 | CL30: 0 | CM30: 0
A31: =IF('Ashburton EAC'!A29="","",'Ashburton EAC'!A29) ->  | B31: =IFERROR(VLOOKUP(A31,'Allocation Detail'!$A$3:$E$12,5,FALSE),0) -> 0 | C31: =IFERROR(VLOOKUP(A31,'Ashburton EAC'!$A$23:$E$33,5,FALSE),0) -> 0 | D31: =IFERROR(VLOOKUP(A31,'Ashburton EAC'!$A$23:$F$33,6,FALSE),0) -> 0 | E31: =IFERROR(VLOOKUP(A31,'Allocation Detail'!$A$3:$H$12,8),0) -> 0 | F31: 29 | G31: 28 | H31: 0 | I31: 0 | J31: 0 | K31: 0 | L31: 0 | M31: =IFERROR(ROUND(-SUM(H31,L31)*'Allocation Detail'!$E$13/12,2),0) -> 0 | N31: =IFERROR(ROUND(-SUM(I31,J31,K31)*'Allocation Detail'!$E$13/12,2),0) -> 0 | O31: 0 | P31: 0 | Q31: 0 | R31: 0 | S31: 0 | T31: =IFERROR(U31*('Allocation Detail'!#REF!/'Allocation Detail'!#REF!),0) -> 0 | U31: 0 | V31: 0 | Y31: 29 | Z31: 28 | AA31: 0 | AB31: 0 | AC31: 0 | AD31: 0 | AE31: 0 | AF31: 0 | AH31: 29 | AI31: 28 | AJ31: 0 | AK31: 0 | AL31: 0 | AM31: 0 | AN31: 0 | AO31: 0 | AP31: 0 | AQ31: =IFERROR(ROUND(-SUM(AJ31,AO31)*'Allocation Detail'!$E$13/12,2),0) -> 0 | AR31: =IFERROR(ROUND(-SUM(AK31,AM31,AN31)*'Allocation Detail'!$H$13/12,2),0) -> 0 | AS31: 0 | AT31: 0 | AU31: 0 | AV31: 0 | AW31: 0 | AX31: =IFERROR(AY31*('Allocation Detail'!#REF!/'Allocation Detail'!#REF!),0) -> 0 | AY31: 0 | AZ31: 0 | BB31: =BB30+1 -> 29 | BC31: 28 | BD31: 0 | BE31: 0 | BF31: 0 | BG31: 0 | BH31: 0 | BI31: 0 | BJ31: 0 | BK31: =IFERROR(ROUND(-SUM(BD31,BI31)*'Allocation Detail'!$E$13/12,2),0) -> 0 | BL31: =IFERROR(ROUND(-SUM(BE31,BG31,BH31)*'Allocation Detail'!$H$13/12,2),0) -> 0 | BM31: 0 | BN31: 0 | BO31: 0 | BP31: 0 | BQ31: 0 | BR31: =IFERROR(BS31*('Allocation Detail'!#REF!/'Allocation Detail'!#REF!),0) -> 0 | BS31: 0 | BT31: 0 | BV31: 29 | BW31: 28 | BX31: 0 | BY31: 0 | BZ31: 0 | CA31: 0 | CB31: 0 | CC31: 0 | CD31: =IFERROR(ROUND(-SUM(BX31,CC31)*'Allocation Detail'!$E$13/12,2),0) -> 0 | CE31: =IFERROR(ROUND(-SUM(BY31,CA31,CB31)*'Allocation Detail'!$H$13/12,2),0) -> 0 | CF31: 0 | CG31: 0 | CH31: 0 | CI31: 0 | CJ31: 0 | CK31: =IFERROR(CL31*('Allocation Detail'!#REF!/'Allocation Detail'!#REF!),0) -> 0 | CL31: 0 | CM31: 0
A32: =IF('Ashburton EAC'!A30="","",'Ashburton EAC'!A30) ->  | B32: =IFERROR(VLOOKUP(A32,'Allocation Detail'!$A$3:$E$12,5,FALSE),0) -> 0 | C32: =IFERROR(VLOOKUP(A32,'Ashburton EAC'!$A$23:$E$33,5,FALSE),0) -> 0 | D32: =IFERROR(VLOOKUP(A32,'Ashburton EAC'!$A$23:$F$33,6,FALSE),0) -> 0 | E32: =IFERROR(VLOOKUP(A32,'Allocation Detail'!$A$3:$H$12,8),0) -> 0 | F32: 30 | G32: 29 | H32: 0 | I32: 0 | J32: 0 | K32: 0 | L32: 0 | M32: =IFERROR(ROUND(-SUM(H32,L32)*'Allocation Detail'!$E$13/12,2),0) -> 0 | N32: =IFERROR(ROUND(-SUM(I32,J32,K32)*'Allocation Detail'!$E$13/12,2),0) -> 0 | O32: 0 | P32: 0 | Q32: 0 | R32: 0 | S32: 0 | T32: =IFERROR(U32*('Allocation Detail'!#REF!/'Allocation Detail'!#REF!),0) -> 0 | U32: 0 | V32: 0 | Y32: 30 | Z32: 29 | AA32: 0 | AB32: 0 | AC32: 0 | AD32: 0 | AE32: 0 | AF32: 0 | AH32: 30 | AI32: 29 | AJ32: 0 | AK32: 0 | AL32: 0 | AM32: 0 | AN32: 0 | AO32: 0 | AP32: 0 | AQ32: =IFERROR(ROUND(-SUM(AJ32,AO32)*'Allocation Detail'!$E$13/12,2),0) -> 0 | AR32: =IFERROR(ROUND(-SUM(AK32,AM32,AN32)*'Allocation Detail'!$H$13/12,2),0) -> 0 | AS32: 0 | AT32: 0 | AU32: 0 | AV32: 0 | AW32: 0 | AX32: =IFERROR(AY32*('Allocation Detail'!#REF!/'Allocation Detail'!#REF!),0) -> 0 | AY32: 0 | AZ32: 0 | BB32: =BB31+1 -> 30 | BC32: 29 | BD32: 0 | BE32: 0 | BF32: 0 | BG32: 0 | BH32: 0 | BI32: 0 | BJ32: 0 | BK32: =IFERROR(ROUND(-SUM(BD32,BI32)*'Allocation Detail'!$E$13/12,2),0) -> 0 | BL32: =IFERROR(ROUND(-SUM(BE32,BG32,BH32)*'Allocation Detail'!$H$13/12,2),0) -> 0 | BM32: 0 | BN32: 0 | BO32: 0 | BP32: 0 | BQ32: 0 | BR32: =IFERROR(BS32*('Allocation Detail'!#REF!/'Allocation Detail'!#REF!),0) -> 0 | BS32: 0 | BT32: 0 | BV32: 30 | BW32: 29 | BX32: 0 | BY32: 0 | BZ32: 0 | CA32: 0 | CB32: 0 | CC32: 0 | CD32: =IFERROR(ROUND(-SUM(BX32,CC32)*'Allocation Detail'!$E$13/12,2),0) -> 0 | CE32: =IFERROR(ROUND(-SUM(BY32,CA32,CB32)*'Allocation Detail'!$H$13/12,2),0) -> 0 | CF32: 0 | CG32: 0 | CH32: 0 | CI32: 0 | CJ32: 0 | CK32: =IFERROR(CL32*('Allocation Detail'!#REF!/'Allocation Detail'!#REF!),0) -> 0 | CL32: 0 | CM32: 0
A33: =IF('Ashburton EAC'!A31="","",'Ashburton EAC'!A31) ->  | B33: =IFERROR(VLOOKUP(A33,'Allocation Detail'!$A$3:$E$12,5,FALSE),0) -> 0 | C33: =IFERROR(VLOOKUP(A33,'Ashburton EAC'!$A$23:$E$33,5,FALSE),0) -> 0 | D33: =IFERROR(VLOOKUP(A33,'Ashburton EAC'!$A$23:$F$33,6,FALSE),0) -> 0 | E33: =IFERROR(VLOOKUP(A33,'Allocation Detail'!$A$3:$H$12,8),0) -> 0 | F33: 31 | G33: 30 | H33: 0 | I33: 0 | J33: 0 | K33: 0 | L33: 0 | M33: =IFERROR(ROUND(-SUM(H33,L33)*'Allocation Detail'!$E$13/12,2),0) -> 0 | N33: =IFERROR(ROUND(-SUM(I33,J33,K33)*'Allocation Detail'!$E$13/12,2),0) -> 0 | O33: 0 | P33: 0 | Q33: 0 | R33: 0 | S33: 0 | T33: =IFERROR(U33*('Allocation Detail'!#REF!/'Allocation Detail'!#REF!),0) -> 0 | U33: 0 | V33: 0 | Y33: 31 | Z33: 30 | AA33: 0 | AB33: 0 | AC33: 0 | AD33: 0 | AE33: 0 | AF33: 0 | AH33: 31 | AI33: 30 | AJ33: 0 | AK33: 0 | AL33: 0 | AM33: 0 | AN33: 0 | AO33: 0 | AP33: 0 | AQ33: =IFERROR(ROUND(-SUM(AJ33,AO33)*'Allocation Detail'!$E$13/12,2),0) -> 0 | AR33: =IFERROR(ROUND(-SUM(AK33,AM33,AN33)*'Allocation Detail'!$H$13/12,2),0) -> 0 | AS33: 0 | AT33: 0 | AU33: 0 | AV33: 0 | AW33: 0 | AX33: =IFERROR(AY33*('Allocation Detail'!#REF!/'Allocation Detail'!#REF!),0) -> 0 | AY33: 0 | AZ33: 0 | BB33: =BB32+1 -> 31 | BC33: 30 | BD33: 0 | BE33: 0 | BF33: 0 | BG33: 0 | BH33: 0 | BI33: 0 | BJ33: 0 | BK33: =IFERROR(ROUND(-SUM(BD33,BI33)*'Allocation Detail'!$E$13/12,2),0) -> 0 | BL33: =IFERROR(ROUND(-SUM(BE33,BG33,BH33)*'Allocation Detail'!$H$13/12,2),0) -> 0 | BM33: 0 | BN33: 0 | BO33: 0 | BP33: 0 | BQ33: 0 | BR33: =IFERROR(BS33*('Allocation Detail'!#REF!/'Allocation Detail'!#REF!),0) -> 0 | BS33: 0 | BT33: 0 | BV33: 31 | BW33: 30 | BX33: 0 | BY33: 0 | BZ33: 0 | CA33: 0 | CB33: 0 | CC33: 0 | CD33: =IFERROR(ROUND(-SUM(BX33,CC33)*'Allocation Detail'!$E$13/12,2),0) -> 0 | CE33: =IFERROR(ROUND(-SUM(BY33,CA33,CB33)*'Allocation Detail'!$H$13/12,2),0) -> 0 | CF33: 0 | CG33: 0 | CH33: 0 | CI33: 0 | CJ33: 0 | CK33: =IFERROR(CL33*('Allocation Detail'!#REF!/'Allocation Detail'!#REF!),0) -> 0 | CL33: 0 | CM33: 0
A34: =IF('Ashburton EAC'!A32="","",'Ashburton EAC'!A32) ->  | B34: =IFERROR(VLOOKUP(A34,'Allocation Detail'!$A$3:$E$12,5,FALSE),0) -> 0 | C34: =IFERROR(VLOOKUP(A34,'Ashburton EAC'!$A$23:$E$33,5,FALSE),0) -> 0 | D34: =IFERROR(VLOOKUP(A34,'Ashburton EAC'!$A$23:$F$33,6,FALSE),0) -> 0 | E34: =IFERROR(VLOOKUP(A34,'Allocation Detail'!$A$3:$H$12,8),0) -> 0 | F34: 32 | G34: 31 | H34: 0 | I34: 0 | J34: 0 | K34: 0 | L34: 0 | M34: =IFERROR(ROUND(-SUM(H34,L34)*'Allocation Detail'!$E$13/12,2),0) -> 0 | N34: =IFERROR(ROUND(-SUM(I34,J34,K34)*'Allocation Detail'!$E$13/12,2),0) -> 0 | O34: 0 | P34: 0 | Q34: 0 | R34: 0 | S34: 0 | T34: =IFERROR(U34*('Allocation Detail'!#REF!/'Allocation Detail'!#REF!),0) -> 0 | U34: 0 | V34: 0 | Y34: 32 | Z34: 31 | AA34: 0 | AB34: 0 | AC34: 0 | AD34: 0 | AE34: 0 | AF34: 0 | AH34: 32 | AI34: 31 | AJ34: 0 | AK34: 0 | AL34: 0 | AM34: 0 | AN34: 0 | AO34: 0 | AP34: 0 | AQ34: =IFERROR(ROUND(-SUM(AJ34,AO34)*'Allocation Detail'!$E$13/12,2),0) -> 0 | AR34: =IFERROR(ROUND(-SUM(AK34,AM34,AN34)*'Allocation Detail'!$H$13/12,2),0) -> 0 | AS34: 0 | AT34: 0 | AU34: 0 | AV34: 0 | AW34: 0 | AX34: =IFERROR(AY34*('Allocation Detail'!#REF!/'Allocation Detail'!#REF!),0) -> 0 | AY34: 0 | AZ34: 0 | BB34: =BB33+1 -> 32 | BC34: 31 | BD34: 0 | BE34: 0 | BF34: 0 | BG34: 0 | BH34: 0 | BI34: 0 | BJ34: 0 | BK34: =IFERROR(ROUND(-SUM(BD34,BI34)*'Allocation Detail'!$E$13/12,2),0) -> 0 | BL34: =IFERROR(ROUND(-SUM(BE34,BG34,BH34)*'Allocation Detail'!$H$13/12,2),0) -> 0 | BM34: 0 | BN34: 0 | BO34: 0 | BP34: 0 | BQ34: 0 | BR34: =IFERROR(BS34*('Allocation Detail'!#REF!/'Allocation Detail'!#REF!),0) -> 0 | BS34: 0 | BT34: 0 | BV34: 32 | BW34: 31 | BX34: 0 | BY34: 0 | BZ34: 0 | CA34: 0 | CB34: 0 | CC34: 0 | CD34: =IFERROR(ROUND(-SUM(BX34,CC34)*'Allocation Detail'!$E$13/12,2),0) -> 0 | CE34: =IFERROR(ROUND(-SUM(BY34,CA34,CB34)*'Allocation Detail'!$H$13/12,2),0) -> 0 | CF34: 0 | CG34: 0 | CH34: 0 | CI34: 0 | CJ34: 0 | CK34: =IFERROR(CL34*('Allocation Detail'!#REF!/'Allocation Detail'!#REF!),0) -> 0 | CL34: 0 | CM34: 0
A35: =IF('Ashburton EAC'!A33="","",'Ashburton EAC'!A33) ->  | B35: =IFERROR(VLOOKUP(A35,'Allocation Detail'!$A$3:$E$12,5,FALSE),0) -> 0 | C35: =IFERROR(VLOOKUP(A35,'Ashburton EAC'!$A$23:$E$33,5,FALSE),0) -> 0 | D35: =IFERROR(VLOOKUP(A35,'Ashburton EAC'!$A$23:$F$33,6,FALSE),0) -> 0 | E35: =IFERROR(VLOOKUP(A35,'Allocation Detail'!$A$3:$H$12,8),0) -> 0 | F35: 33 | G35: 32 | H35: 0 | I35: 0 | J35: =IF(G35/$D$16-INT(G35/$D$16)=0,ROUND($D$19*$D$20*((1+$D$17)^INT(G35/12)),2),0) -> 0 | K35: 0 | L35: =ROUND(H35*((1+$B$45)^(1/12)-1),2) -> 0 | M35: =IFERROR(ROUND(-SUM(H35,L35)*'Allocation Detail'!$E$13/12,2),0) -> 0 | N35: =IFERROR(ROUND(-SUM(I35,J35,K35)*'Allocation Detail'!$E$13/12,2),0) -> 0 | O35: 0 | P35: 0 | Q35: 0 | R35: 0 | S35: 0 | T35: =IFERROR(U35*('Allocation Detail'!#REF!/'Allocation Detail'!#REF!),0) -> 0 | U35: =IF($D$39="",0,MAX(-IF($D$41="",0,IF((G35/$D$41)-INT(G35/$D$41)=0,$D$39*((1+$D$42)^INT(G35/12)),0)),-S35)) -> 0 | V35: 0 | Y35: 33 | Z35: 32 | AA35: 0 | AB35: =IF(G35/$D$16-INT(G35/$D$16)=0,ROUND($D$14*((1+$D$17)^INT(G35/12)),2),0) -> 0 | AC35: 0 | AD35: =MAX(-IF($D$41="",0,IF((Z35/$D$41)-INT(Z35/$D$41)=0,$D$39*((1+$D$42)^INT(Z35/12)),0)),-SUM(AA35,AB35,AC35)) -> 0 | AE35: 0 | AF35: 0 | AH35: 33 | AI35: 32 | AJ35: 0 | AK35: 0 | AL35: =SUM(AJ35:AK35) -> 0 | AM35: =IF(AI35/$D$16-INT(AI35/$D$16)=0,ROUND($D$14*$D$20*((1+$D$17)^INT(AI35/12)),2),0) -> 0 | AN35: 0 | AO35: =ROUND(AJ35*BA$2,2) -> 0 | AP35: =SUM(AO35:AO35) -> 0 | AQ35: =IFERROR(ROUND(-SUM(AJ35,AO35)*'Allocation Detail'!$E$13/12,2),0) -> 0 | AR35: =IFERROR(ROUND(-SUM(AK35,AM35,AN35)*'Allocation Detail'!$H$13/12,2),0) -> 0 | AS35: 0 | AT35: 0 | AU35: 0 | AV35: 0 | AW35: 0 | AX35: =IFERROR(AY35*('Allocation Detail'!#REF!/'Allocation Detail'!#REF!),0) -> 0 | AY35: =IF($D$39="",0,MAX(-IF($D$41="",0,IF((AI35/$D$41)-INT(AI35/$D$41)=0,$D$39*((1+$D$42)^INT(AI35/12)),0)),-AW35)) -> 0 | AZ35: 0 | BB35: =BB34+1 -> 33 | BC35: 32 | BD35: 0 | BE35: 0 | BF35: =SUM(BD35:BE35) -> 0 | BG35: =IF(BC35/$D$16-INT(BC35/$D$16)=0,ROUND($D$14*$D$20*((1+$D$17)^INT(BC35/12)),2),0) -> 0 | BH35: 0 | BI35: 0 | BJ35: =SUM(BI35:BI35) -> 0 | BK35: =IFERROR(ROUND(-SUM(BD35,BI35)*'Allocation Detail'!$E$13/12,2),0) -> 0 | BL35: =IFERROR(ROUND(-SUM(BE35,BG35,BH35)*'Allocation Detail'!$H$13/12,2),0) -> 0 | BM35: 0 | BN35: 0 | BO35: 0 | BP35: 0 | BQ35: 0 | BR35: =IFERROR(BS35*('Allocation Detail'!#REF!/'Allocation Detail'!#REF!),0) -> 0 | BS35: =IF($D$39="",0,MAX(-IF($D$41="",0,IF((BC35/$D$41)-INT(BC35/$D$41)=0,$D$39*((1+$D$42)^INT(BC35/12)),0)),-BQ35)) -> 0 | BT35: =IF(OR($D$8=0,$D$39=0,$D$8="",$D$39=""),BQ35+BP35,MAX(BP35+BQ35+BS35,0)) -> 0 | BV35: 33 | BW35: 32 | BX35: 0 | BY35: 0 | BZ35: 0 | CA35: 0 | CB35: 0 | CC35: 0 | CD35: =IFERROR(ROUND(-SUM(BX35,CC35)*'Allocation Detail'!$E$13/12,2),0) -> 0 | CE35: =IFERROR(ROUND(-SUM(BY35,CA35,CB35)*'Allocation Detail'!$H$13/12,2),0) -> 0 | CF35: 0 | CG35: 0 | CH35: 0 | CI35: 0 | CJ35: 0 | CK35: =IFERROR(CL35*('Allocation Detail'!#REF!/'Allocation Detail'!#REF!),0) -> 0 | CL35: 0 | CM35: 0
B36: =SUMPRODUCT(B25:B35,C25:C35) -> 0 | C36: =SUM(C25:C35) -> 0 | D36: =SUM(D25:D35) -> 0 | F36: 34 | G36: 33 | H36: =ROUND(SUM(H35,L35,M35,O35,T35),2) -> 0 | I36: =SUM(I35,J35,K35,N35,P35) -> 0 | J36: 0 | K36: =ROUND((J36+I36)*((1+$B$45)^(1/12)-1),2) -> 0 | L36: 0 | M36: =IFERROR(ROUND(-SUM(H36,L36)*'Allocation Detail'!$E$13/12,2),0) -> 0 | N36: =IFERROR(ROUND(-SUM(I36,J36,K36)*'Allocation Detail'!$E$13/12,2),0) -> 0 | O36: 0 | P36: 0 | Q36: 0 | R36: 0 | S36: 0 | T36: =IFERROR(U36*('Allocation Detail'!#REF!/'Allocation Detail'!#REF!),0) -> 0 | U36: 0 | V36: =IF(OR($D$8=0,$D$39=0,$D$8="",$D$39=""),S36+R36,MAX(R35+S36+U36,0)) -> 0 | Y36: 34 | Z36: 33 | AA36: 0 | AB36: 0 | AC36: 0 | AD36: 0 | AE36: 0 | AF36: 0 | AH36: 34 | AI36: 33 | AJ36: =ROUND(SUM(AJ35,AO35,AQ35,AS35,AX35),2) -> 0 | AK36: =SUM(AK35,AM35,AN35,AR35,AT35) -> 0 | AL36: 0 | AM36: 0 | AN36: =ROUND((AM36+AK36)*BA$2,2) -> 0 | AO36: 0 | AP36: 0 | AQ36: =IFERROR(ROUND(-SUM(AJ36,AO36)*'Allocation Detail'!$E$13/12,2),0) -> 0 | AR36: =IFERROR(ROUND(-SUM(AK36,AM36,AN36)*'Allocation Detail'!$H$13/12,2),0) -> 0 | AS36: 0 | AT36: 0 | AU36: 0 | AV36: 0 | AW36: 0 | AX36: =IFERROR(AY36*('Allocation Detail'!#REF!/'Allocation Detail'!#REF!),0) -> 0 | AY36: 0 | AZ36: =IF(OR($D$8=0,$D$39=0,$D$8="",$D$39=""),AW36+AV36,MAX(AV35+AW36+AY36,0)) -> 0 | BB36: =BB35+1 -> 34 | BC36: 33 | BD36: =ROUND(SUM(BD35,BI35,BK35,BM35,BR35),2) -> 0 | BE36: =SUM(BE35,BG35,BH35,BL35,BN35) -> 0 | BF36: 0 | BG36: 0 | BH36: 0 | BI36: 0 | BJ36: 0 | BK36: =IFERROR(ROUND(-SUM(BD36,BI36)*'Allocation Detail'!$E$13/12,2),0) -> 0 | BL36: =IFERROR(ROUND(-SUM(BE36,BG36,BH36)*'Allocation Detail'!$H$13/12,2),0) -> 0 | BM36: 0 | BN36: 0 | BO36: 0 | BP36: 0 | BQ36: 0 | BR36: =IFERROR(BS36*('Allocation Detail'!#REF!/'Allocation Detail'!#REF!),0) -> 0 | BS36: 0 | BT36: 0 | BV36: 34 | BW36: 33 | BX36: 0 | BY36: 0 | BZ36: 0 | CA36: 0 | CB36: 0 | CC36: 0 | CD36: =IFERROR(ROUND(-SUM(BX36,CC36)*'Allocation Detail'!$E$13/12,2),0) -> 0 | CE36: =IFERROR(ROUND(-SUM(BY36,CA36,CB36)*'Allocation Detail'!$H$13/12,2),0) -> 0 | CF36: 0 | CG36: 0 | CH36: 0 | CI36: 0 | CJ36: 0 | CK36: =IFERROR(CL36*('Allocation Detail'!#REF!/'Allocation Detail'!#REF!),0) -> 0 | CL36: 0 | CM36: 0
F37: 35 | G37: 34 | H37: 0 | I37: 0 | J37: 0 | K37: 0 | L37: 0 | M37: =IFERROR(ROUND(-SUM(H37,L37)*'Allocation Detail'!$E$13/12,2),0) -> 0 | N37: =IFERROR(ROUND(-SUM(I37,J37,K37)*'Allocation Detail'!$E$13/12,2),0) -> 0 | O37: 0 | P37: 0 | Q37: 0 | R37: 0 | S37: 0 | T37: =IFERROR(U37*('Allocation Detail'!#REF!/'Allocation Detail'!#REF!),0) -> 0 | U37: 0 | V37: 0 | Y37: =Y36+1 -> 35 | Z37: 34 | AA37: 0 | AB37: 0 | AC37: 0 | AD37: 0 | AE37: 0 | AF37: 0 | AH37: =AH36+1 -> 35 | AI37: 34 | AJ37: 0 | AK37: 0 | AL37: 0 | AM37: 0 | AN37: 0 | AO37: 0 | AP37: 0 | AQ37: =IFERROR(ROUND(-SUM(AJ37,AO37)*'Allocation Detail'!$E$13/12,2),0) -> 0 | AR37: =IFERROR(ROUND(-SUM(AK37,AM37,AN37)*'Allocation Detail'!$H$13/12,2),0) -> 0 | AS37: 0 | AT37: 0 | AU37: 0 | AV37: 0 | AW37: 0 | AX37: =IFERROR(AY37*('Allocation Detail'!#REF!/'Allocation Detail'!#REF!),0) -> 0 | AY37: 0 | AZ37: 0 | BB37: =BB36+1 -> 35 | BC37: 34 | BD37: 0 | BE37: 0 | BF37: 0 | BG37: 0 | BH37: 0 | BI37: 0 | BJ37: 0 | BK37: =IFERROR(ROUND(-SUM(BD37,BI37)*'Allocation Detail'!$E$13/12,2),0) -> 0 | BL37: =IFERROR(ROUND(-SUM(BE37,BG37,BH37)*'Allocation Detail'!$H$13/12,2),0) -> 0 | BM37: 0 | BN37: 0 | BO37: 0 | BP37: 0 | BQ37: 0 | BR37: =IFERROR(BS37*('Allocation Detail'!#REF!/'Allocation Detail'!#REF!),0) -> 0 | BS37: 0 | BT37: 0 | BV37: =BV36+1 -> 35 | BW37: 34 | BX37: 0 | BY37: 0 | BZ37: 0 | CA37: 0 | CB37: 0 | CC37: 0 | CD37: =IFERROR(ROUND(-SUM(BX37,CC37)*'Allocation Detail'!$E$13/12,2),0) -> 0 | CE37: =IFERROR(ROUND(-SUM(BY37,CA37,CB37)*'Allocation Detail'!$H$13/12,2),0) -> 0 | CF37: 0 | CG37: 0 | CH37: 0 | CI37: 0 | CJ37: 0 | CK37: =IFERROR(CL37*('Allocation Detail'!#REF!/'Allocation Detail'!#REF!),0) -> 0 | CL37: 0 | CM37: 0
A38: Regular Disinvestment | F38: 36 | G38: 35 | H38: 0 | I38: 0 | J38: 0 | K38: 0 | L38: 0 | M38: =IFERROR(ROUND(-SUM(H38,L38)*'Allocation Detail'!$E$13/12,2),0) -> 0 | N38: =IFERROR(ROUND(-SUM(I38,J38,K38)*'Allocation Detail'!$E$13/12,2),0) -> 0 | O38: 0 | P38: 0 | Q38: 0 | R38: 0 | S38: 0 | T38: =IFERROR(U38*('Allocation Detail'!#REF!/'Allocation Detail'!#REF!),0) -> 0 | U38: 0 | V38: 0 | Y38: 36 | Z38: 35 | AA38: 0 | AB38: 0 | AC38: 0 | AD38: 0 | AE38: 0 | AF38: 0 | AH38: 36 | AI38: 35 | AJ38: 0 | AK38: 0 | AL38: 0 | AM38: 0 | AN38: 0 | AO38: 0 | AP38: 0 | AQ38: =IFERROR(ROUND(-SUM(AJ38,AO38)*'Allocation Detail'!$E$13/12,2),0) -> 0 | AR38: =IFERROR(ROUND(-SUM(AK38,AM38,AN38)*'Allocation Detail'!$H$13/12,2),0) -> 0 | AS38: 0 | AT38: 0 | AU38: 0 | AV38: 0 | AW38: 0 | AX38: =IFERROR(AY38*('Allocation Detail'!#REF!/'Allocation Detail'!#REF!),0) -> 0 | AY38: 0 | AZ38: 0 | BB38: =BB37+1 -> 36 | BC38: 35 | BD38: 0 | BE38: 0 | BF38: 0 | BG38: 0 | BH38: 0 | BI38: 0 | BJ38: 0 | BK38: =IFERROR(ROUND(-SUM(BD38,BI38)*'Allocation Detail'!$E$13/12,2),0) -> 0 | BL38: =IFERROR(ROUND(-SUM(BE38,BG38,BH38)*'Allocation Detail'!$H$13/12,2),0) -> 0 | BM38: 0 | BN38: 0 | BO38: 0 | BP38: 0 | BQ38: 0 | BR38: =IFERROR(BS38*('Allocation Detail'!#REF!/'Allocation Detail'!#REF!),0) -> 0 | BS38: 0 | BT38: 0 | BV38: 36 | BW38: 35 | BX38: 0 | BY38: 0 | BZ38: 0 | CA38: 0 | CB38: 0 | CC38: 0 | CD38: =IFERROR(ROUND(-SUM(BX38,CC38)*'Allocation Detail'!$E$13/12,2),0) -> 0 | CE38: =IFERROR(ROUND(-SUM(BY38,CA38,CB38)*'Allocation Detail'!$H$13/12,2),0) -> 0 | CF38: 0 | CG38: 0 | CH38: 0 | CI38: 0 | CJ38: 0 | CK38: =IFERROR(CL38*('Allocation Detail'!#REF!/'Allocation Detail'!#REF!),0) -> 0 | CL38: 0 | CM38: 0
A39: Income Amount per Frequency | D39: =IF(OR('Ashburton EAC'!E18="",'Ashburton EAC'!E18=0),"",'Ashburton EAC'!E18) ->  | F39: 37 | G39: 36 | H39: 0 | I39: 0 | J39: 0 | K39: 0 | L39: 0 | M39: =IFERROR(ROUND(-SUM(H39,L39)*'Allocation Detail'!$E$13/12,2),0) -> 0 | N39: =IFERROR(ROUND(-SUM(I39,J39,K39)*'Allocation Detail'!$E$13/12,2),0) -> 0 | O39: 0 | P39: 0 | Q39: 0 | R39: 0 | S39: 0 | T39: =IFERROR(U39*('Allocation Detail'!#REF!/'Allocation Detail'!#REF!),0) -> 0 | U39: 0 | V39: 0 | Y39: 37 | Z39: 36 | AA39: 0 | AB39: 0 | AC39: 0 | AD39: 0 | AE39: 0 | AF39: 0 | AH39: 37 | AI39: 36 | AJ39: 0 | AK39: 0 | AL39: 0 | AM39: 0 | AN39: 0 | AO39: 0 | AP39: 0 | AQ39: =IFERROR(ROUND(-SUM(AJ39,AO39)*'Allocation Detail'!$E$13/12,2),0) -> 0 | AR39: =IFERROR(ROUND(-SUM(AK39,AM39,AN39)*'Allocation Detail'!$H$13/12,2),0) -> 0 | AS39: 0 | AT39: 0 | AU39: 0 | AV39: 0 | AW39: 0 | AX39: =IFERROR(AY39*('Allocation Detail'!#REF!/'Allocation Detail'!#REF!),0) -> 0 | AY39: 0 | AZ39: 0 | BB39: =BB38+1 -> 37 | BC39: 36 | BD39: 0 | BE39: 0 | BF39: 0 | BG39: 0 | BH39: 0 | BI39: 0 | BJ39: 0 | BK39: =IFERROR(ROUND(-SUM(BD39,BI39)*'Allocation Detail'!$E$13/12,2),0) -> 0 | BL39: =IFERROR(ROUND(-SUM(BE39,BG39,BH39)*'Allocation Detail'!$H$13/12,2),0) -> 0 | BM39: 0 | BN39: 0 | BO39: 0 | BP39: 0 | BQ39: 0 | BR39: =IFERROR(BS39*('Allocation Detail'!#REF!/'Allocation Detail'!#REF!),0) -> 0 | BS39: 0 | BT39: 0
A40: Income Frequency | D40: ='Ashburton EAC'!E19 -> Select: | F40: 38 | G40: 37 | H40: 0 | I40: 0 | J40: 0 | K40: 0 | L40: 0 | M40: =IFERROR(ROUND(-SUM(H40,L40)*'Allocation Detail'!$E$13/12,2),0) -> 0 | N40: =IFERROR(ROUND(-SUM(I40,J40,K40)*'Allocation Detail'!$E$13/12,2),0) -> 0 | O40: 0 | P40: 0 | Q40: 0 | R40: 0 | S40: 0 | T40: =IFERROR(U40*('Allocation Detail'!#REF!/'Allocation Detail'!#REF!),0) -> 0 | U40: 0 | V40: 0 | Y40: 38 | Z40: 37 | AA40: 0 | AB40: 0 | AC40: 0 | AD40: 0 | AE40: 0 | AF40: 0 | AH40: 38 | AI40: 37 | AJ40: 0 | AK40: 0 | AL40: 0 | AM40: 0 | AN40: 0 | AO40: 0 | AP40: 0 | AQ40: =IFERROR(ROUND(-SUM(AJ40,AO40)*'Allocation Detail'!$E$13/12,2),0) -> 0 | AR40: =IFERROR(ROUND(-SUM(AK40,AM40,AN40)*'Allocation Detail'!$H$13/12,2),0) -> 0 | AS40: 0 | AT40: 0 | AU40: 0 | AV40: 0 | AW40: 0 | AX40: =IFERROR(AY40*('Allocation Detail'!#REF!/'Allocation Detail'!#REF!),0) -> 0 | AY40: 0 | AZ40: 0 | BB40: =BB39+1 -> 38 | BC40: 37 | BD40: 0 | BE40: 0 | BF40: 0 | BG40: 0 | BH40: 0 | BI40: 0 | BJ40: 0 | BK40: =IFERROR(ROUND(-SUM(BD40,BI40)*'Allocation Detail'!$E$13/12,2),0) -> 0 | BL40: =IFERROR(ROUND(-SUM(BE40,BG40,BH40)*'Allocation Detail'!$H$13/12,2),0) -> 0 | BM40: 0 | BN40: 0 | BO40: 0 | BP40: 0 | BQ40: 0 | BR40: =IFERROR(BS40*('Allocation Detail'!#REF!/'Allocation Detail'!#REF!),0) -> 0 | BS40: 0 | BT40: 0 | CL40: 3 YEARS | CM40: =ROUND(CM38,0) -> 0
A41: Frequency multiple | D41: =IF(D40="Monthly",1,IF(D40="Quarterly",3,IF(D40="Half-yearly",6,IF(D40="Annually",12,"")))) ->  | F41: 39 | G41: 38 | H41: 0 | I41: 0 | J41: 0 | K41: 0 | L41: 0 | M41: =IFERROR(ROUND(-SUM(H41,L41)*'Allocation Detail'!$E$13/12,2),0) -> 0 | N41: =IFERROR(ROUND(-SUM(I41,J41,K41)*'Allocation Detail'!$E$13/12,2),0) -> 0 | O41: 0 | P41: 0 | Q41: 0 | R41: 0 | S41: 0 | T41: =IFERROR(U41*('Allocation Detail'!#REF!/'Allocation Detail'!#REF!),0) -> 0 | U41: 0 | V41: 0 | Y41: 39 | Z41: 38 | AA41: 0 | AB41: 0 | AC41: 0 | AD41: 0 | AE41: 0 | AF41: 0 | AH41: 39 | AI41: 38 | AJ41: 0 | AK41: 0 | AL41: 0 | AM41: 0 | AN41: 0 | AO41: 0 | AP41: 0 | AQ41: =IFERROR(ROUND(-SUM(AJ41,AO41)*'Allocation Detail'!$E$13/12,2),0) -> 0 | AR41: =IFERROR(ROUND(-SUM(AK41,AM41,AN41)*'Allocation Detail'!$H$13/12,2),0) -> 0 | AS41: 0 | AT41: 0 | AU41: 0 | AV41: 0 | AW41: 0 | AX41: =IFERROR(AY41*('Allocation Detail'!#REF!/'Allocation Detail'!#REF!),0) -> 0 | AY41: 0 | AZ41: 0 | BB41: =BB40+1 -> 39 | BC41: 38 | BD41: 0 | BE41: 0 | BF41: 0 | BG41: 0 | BH41: 0 | BI41: 0 | BJ41: 0 | BK41: =IFERROR(ROUND(-SUM(BD41,BI41)*'Allocation Detail'!$E$13/12,2),0) -> 0 | BL41: =IFERROR(ROUND(-SUM(BE41,BG41,BH41)*'Allocation Detail'!$H$13/12,2),0) -> 0 | BM41: 0 | BN41: 0 | BO41: 0 | BP41: 0 | BQ41: 0 | BR41: =IFERROR(BS41*('Allocation Detail'!#REF!/'Allocation Detail'!#REF!),0) -> 0 | BS41: 0 | BT41: 0 | CM41: =ROUND(V38,0) -> 0
A42: Income escalation | D42: ='Ashburton EAC'!E20 -> 0 | F42: 40 | G42: 39 | H42: 0 | I42: 0 | J42: 0 | K42: 0 | L42: 0 | M42: =IFERROR(ROUND(-SUM(H42,L42)*'Allocation Detail'!$E$13/12,2),0) -> 0 | N42: =IFERROR(ROUND(-SUM(I42,J42,K42)*'Allocation Detail'!$E$13/12,2),0) -> 0 | O42: 0 | P42: 0 | Q42: 0 | R42: 0 | S42: 0 | T42: =IFERROR(U42*('Allocation Detail'!#REF!/'Allocation Detail'!#REF!),0) -> 0 | U42: 0 | V42: 0 | Y42: 40 | Z42: 39 | AA42: 0 | AB42: 0 | AC42: 0 | AD42: 0 | AE42: 0 | AF42: 0 | AH42: 40 | AI42: 39 | AJ42: 0 | AK42: 0 | AL42: 0 | AM42: 0 | AN42: 0 | AO42: 0 | AP42: 0 | AQ42: =IFERROR(ROUND(-SUM(AJ42,AO42)*'Allocation Detail'!$E$13/12,2),0) -> 0 | AR42: =IFERROR(ROUND(-SUM(AK42,AM42,AN42)*'Allocation Detail'!$H$13/12,2),0) -> 0 | AS42: 0 | AT42: 0 | AU42: 0 | AV42: 0 | AW42: 0 | AX42: =IFERROR(AY42*('Allocation Detail'!#REF!/'Allocation Detail'!#REF!),0) -> 0 | AY42: 0 | AZ42: 0 | BB42: =BB41+1 -> 40 | BC42: 39 | BD42: 0 | BE42: 0 | BF42: 0 | BG42: 0 | BH42: 0 | BI42: 0 | BJ42: 0 | BK42: =IFERROR(ROUND(-SUM(BD42,BI42)*'Allocation Detail'!$E$13/12,2),0) -> 0 | BL42: =IFERROR(ROUND(-SUM(BE42,BG42,BH42)*'Allocation Detail'!$H$13/12,2),0) -> 0 | BM42: 0 | BN42: 0 | BO42: 0 | BP42: 0 | BQ42: 0 | BR42: =IFERROR(BS42*('Allocation Detail'!#REF!/'Allocation Detail'!#REF!),0) -> 0 | BS42: 0 | BT42: 0 | CM42: =CM41-CM40 -> 0
F43: 41 | G43: 40 | H43: 0 | I43: 0 | J43: 0 | K43: 0 | L43: 0 | M43: =IFERROR(ROUND(-SUM(H43,L43)*'Allocation Detail'!$E$13/12,2),0) -> 0 | N43: =IFERROR(ROUND(-SUM(I43,J43,K43)*'Allocation Detail'!$E$13/12,2),0) -> 0 | O43: 0 | P43: 0 | Q43: 0 | R43: 0 | S43: 0 | T43: =IFERROR(U43*('Allocation Detail'!#REF!/'Allocation Detail'!#REF!),0) -> 0 | U43: 0 | V43: 0 | Y43: 41 | Z43: 40 | AA43: 0 | AB43: 0 | AC43: 0 | AD43: 0 | AE43: 0 | AF43: 0 | AH43: 41 | AI43: 40 | AJ43: 0 | AK43: 0 | AL43: 0 | AM43: 0 | AN43: 0 | AO43: 0 | AP43: 0 | AQ43: =IFERROR(ROUND(-SUM(AJ43,AO43)*'Allocation Detail'!$E$13/12,2),0) -> 0 | AR43: =IFERROR(ROUND(-SUM(AK43,AM43,AN43)*'Allocation Detail'!$H$13/12,2),0) -> 0 | AS43: 0 | AT43: 0 | AU43: 0 | AV43: 0 | AW43: 0 | AX43: =IFERROR(AY43*('Allocation Detail'!#REF!/'Allocation Detail'!#REF!),0) -> 0 | AY43: 0 | AZ43: 0 | BB43: =BB42+1 -> 41 | BC43: 40 | BD43: 0 | BE43: 0 | BF43: 0 | BG43: 0 | BH43: 0 | BI43: 0 | BJ43: 0 | BK43: =IFERROR(ROUND(-SUM(BD43,BI43)*'Allocation Detail'!$E$13/12,2),0) -> 0 | BL43: =IFERROR(ROUND(-SUM(BE43,BG43,BH43)*'Allocation Detail'!$H$13/12,2),0) -> 0 | BM43: 0 | BN43: 0 | BO43: 0 | BP43: 0 | BQ43: 0 | BR43: =IFERROR(BS43*('Allocation Detail'!#REF!/'Allocation Detail'!#REF!),0) -> 0 | BS43: 0 | BT43: 0
A44: Reduction in Yield | B44: All Fees | F44: 42 | G44: 41 | H44: 0 | I44: 0 | J44: 0 | K44: 0 | L44: 0 | M44: =IFERROR(ROUND(-SUM(H44,L44)*'Allocation Detail'!$E$13/12,2),0) -> 0 | N44: =IFERROR(ROUND(-SUM(I44,J44,K44)*'Allocation Detail'!$E$13/12,2),0) -> 0 | O44: 0 | P44: 0 | Q44: 0 | R44: 0 | S44: 0 | T44: =IFERROR(U44*('Allocation Detail'!#REF!/'Allocation Detail'!#REF!),0) -> 0 | U44: 0 | V44: 0 | Y44: 42 | Z44: 41 | AA44: 0 | AB44: 0 | AC44: 0 | AD44: 0 | AE44: 0 | AF44: 0 | AH44: 42 | AI44: 41 | AJ44: 0 | AK44: 0 | AL44: 0 | AM44: 0 | AN44: 0 | AO44: 0 | AP44: 0 | AQ44: =IFERROR(ROUND(-SUM(AJ44,AO44)*'Allocation Detail'!$E$13/12,2),0) -> 0 | AR44: =IFERROR(ROUND(-SUM(AK44,AM44,AN44)*'Allocation Detail'!$H$13/12,2),0) -> 0 | AS44: 0 | AT44: 0 | AU44: 0 | AV44: 0 | AW44: 0 | AX44: =IFERROR(AY44*('Allocation Detail'!#REF!/'Allocation Detail'!#REF!),0) -> 0 | AY44: 0 | AZ44: 0 | BB44: =BB43+1 -> 42 | BC44: 41 | BD44: 0 | BE44: 0 | BF44: 0 | BG44: 0 | BH44: 0 | BI44: 0 | BJ44: 0 | BK44: =IFERROR(ROUND(-SUM(BD44,BI44)*'Allocation Detail'!$E$13/12,2),0) -> 0 | BL44: =IFERROR(ROUND(-SUM(BE44,BG44,BH44)*'Allocation Detail'!$H$13/12,2),0) -> 0 | BM44: 0 | BN44: 0 | BO44: 0 | BP44: 0 | BQ44: 0 | BR44: =IFERROR(BS44*('Allocation Detail'!#REF!/'Allocation Detail'!#REF!),0) -> 0 | BS44: 0 | BT44: 0
A45: Assumed Gross Return p.a. | B45: 0.06 | C45: =(1+B45)^(1/12)-1 -> 0.004867550565 | F45: 43 | G45: 42 | H45: 0 | I45: 0 | J45: 0 | K45: 0 | L45: 0 | M45: =IFERROR(ROUND(-SUM(H45,L45)*'Allocation Detail'!$E$13/12,2),0) -> 0 | N45: =IFERROR(ROUND(-SUM(I45,J45,K45)*'Allocation Detail'!$E$13/12,2),0) -> 0 | O45: 0 | P45: 0 | Q45: 0 | R45: 0 | S45: 0 | T45: =IFERROR(U45*('Allocation Detail'!#REF!/'Allocation Detail'!#REF!),0) -> 0 | U45: 0 | V45: 0 | Y45: 43 | Z45: 42 | AA45: 0 | AB45: 0 | AC45: 0 | AD45: 0 | AE45: 0 | AF45: 0 | AH45: 43 | AI45: 42 | AJ45: 0 | AK45: 0 | AL45: 0 | AM45: 0 | AN45: 0 | AO45: 0 | AP45: 0 | AQ45: =IFERROR(ROUND(-SUM(AJ45,AO45)*'Allocation Detail'!$E$13/12,2),0) -> 0 | AR45: =IFERROR(ROUND(-SUM(AK45,AM45,AN45)*'Allocation Detail'!$H$13/12,2),0) -> 0 | AS45: 0 | AT45: 0 | AU45: 0 | AV45: 0 | AW45: 0 | AX45: =IFERROR(AY45*('Allocation Detail'!#REF!/'Allocation Detail'!#REF!),0) -> 0 | AY45: 0 | AZ45: 0 | BB45: =BB44+1 -> 43 | BC45: 42 | BD45: 0 | BE45: 0 | BF45: 0 | BG45: 0 | BH45: 0 | BI45: 0 | BJ45: 0 | BK45: =IFERROR(ROUND(-SUM(BD45,BI45)*'Allocation Detail'!$E$13/12,2),0) -> 0 | BL45: =IFERROR(ROUND(-SUM(BE45,BG45,BH45)*'Allocation Detail'!$H$13/12,2),0) -> 0 | BM45: 0 | BN45: 0 | BO45: 0 | BP45: 0 | BQ45: 0 | BR45: =IFERROR(BS45*('Allocation Detail'!#REF!/'Allocation Detail'!#REF!),0) -> 0 | BS45: 0 | BT45: 0
A46: Return after all charges p.a. | B46: =(1+AF2)^12-1 -> 0.03990503237 | F46: 44 | G46: 43 | H46: 0 | I46: 0 | J46: 0 | K46: 0 | L46: 0 | M46: =IFERROR(ROUND(-SUM(H46,L46)*'Allocation Detail'!$E$13/12,2),0) -> 0 | N46: =IFERROR(ROUND(-SUM(I46,J46,K46)*'Allocation Detail'!$E$13/12,2),0) -> 0 | O46: 0 | P46: 0 | Q46: 0 | R46: 0 | S46: 0 | T46: =IFERROR(U46*('Allocation Detail'!#REF!/'Allocation Detail'!#REF!),0) -> 0 | U46: 0 | V46: 0 | Y46: 44 | Z46: 43 | AA46: 0 | AB46: 0 | AC46: 0 | AD46: 0 | AE46: 0 | AF46: 0 | AH46: 44 | AI46: 43 | AJ46: 0 | AK46: 0 | AL46: 0 | AM46: 0 | AN46: 0 | AO46: 0 | AP46: 0 | AQ46: =IFERROR(ROUND(-SUM(AJ46,AO46)*'Allocation Detail'!$E$13/12,2),0) -> 0 | AR46: =IFERROR(ROUND(-SUM(AK46,AM46,AN46)*'Allocation Detail'!$H$13/12,2),0) -> 0 | AS46: 0 | AT46: 0 | AU46: 0 | AV46: 0 | AW46: 0 | AX46: =IFERROR(AY46*('Allocation Detail'!#REF!/'Allocation Detail'!#REF!),0) -> 0 | AY46: 0 | AZ46: 0 | BB46: =BB45+1 -> 44 | BC46: 43 | BD46: 0 | BE46: 0 | BF46: 0 | BG46: 0 | BH46: 0 | BI46: 0 | BJ46: 0 | BK46: =IFERROR(ROUND(-SUM(BD46,BI46)*'Allocation Detail'!$E$13/12,2),0) -> 0 | BL46: =IFERROR(ROUND(-SUM(BE46,BG46,BH46)*'Allocation Detail'!$H$13/12,2),0) -> 0 | BM46: 0 | BN46: 0 | BO46: 0 | BP46: 0 | BQ46: 0 | BR46: =IFERROR(BS46*('Allocation Detail'!#REF!/'Allocation Detail'!#REF!),0) -> 0 | BS46: 0 | BT46: 0
A47: Reduction in Yield p.a. | B47: =B45-B46 -> 0.02009496763 | C47: Sanity check: | D47: =SUM(E50:E52)-B47 -> -0.01203362925 | F47: 45 | G47: 44 | H47: 0 | I47: 0 | J47: 0 | K47: 0 | L47: 0 | M47: =IFERROR(ROUND(-SUM(H47,L47)*'Allocation Detail'!$E$13/12,2),0) -> 0 | N47: =IFERROR(ROUND(-SUM(I47,J47,K47)*'Allocation Detail'!$E$13/12,2),0) -> 0 | O47: 0 | P47: 0 | Q47: 0 | R47: 0 | S47: 0 | T47: =IFERROR(U47*('Allocation Detail'!#REF!/'Allocation Detail'!#REF!),0) -> 0 | U47: 0 | V47: 0 | Y47: 45 | Z47: 44 | AA47: 0 | AB47: 0 | AC47: 0 | AD47: 0 | AE47: 0 | AF47: 0 | AH47: 45 | AI47: 44 | AJ47: 0 | AK47: 0 | AL47: 0 | AM47: 0 | AN47: 0 | AO47: 0 | AP47: 0 | AQ47: =IFERROR(ROUND(-SUM(AJ47,AO47)*'Allocation Detail'!$E$13/12,2),0) -> 0 | AR47: =IFERROR(ROUND(-SUM(AK47,AM47,AN47)*'Allocation Detail'!$H$13/12,2),0) -> 0 | AS47: 0 | AT47: 0 | AU47: 0 | AV47: 0 | AW47: 0 | AX47: =IFERROR(AY47*('Allocation Detail'!#REF!/'Allocation Detail'!#REF!),0) -> 0 | AY47: 0 | AZ47: 0 | BB47: =BB46+1 -> 45 | BC47: 44 | BD47: 0 | BE47: 0 | BF47: 0 | BG47: 0 | BH47: 0 | BI47: 0 | BJ47: 0 | BK47: =IFERROR(ROUND(-SUM(BD47,BI47)*'Allocation Detail'!$E$13/12,2),0) -> 0 | BL47: =IFERROR(ROUND(-SUM(BE47,BG47,BH47)*'Allocation Detail'!$H$13/12,2),0) -> 0 | BM47: 0 | BN47: 0 | BO47: 0 | BP47: 0 | BQ47: 0 | BR47: =IFERROR(BS47*('Allocation Detail'!#REF!/'Allocation Detail'!#REF!),0) -> 0 | BS47: 0 | BT47: 0
B48: =DH2 -> 0.002919856051 | F48: 46 | G48: 45 | H48: 0 | I48: 0 | J48: 0 | K48: 0 | L48: 0 | M48: =IFERROR(ROUND(-SUM(H48,L48)*'Allocation Detail'!$E$13/12,2),0) -> 0 | N48: =IFERROR(ROUND(-SUM(I48,J48,K48)*'Allocation Detail'!$E$13/12,2),0) -> 0 | O48: 0 | P48: 0 | Q48: 0 | R48: 0 | S48: 0 | T48: =IFERROR(U48*('Allocation Detail'!#REF!/'Allocation Detail'!#REF!),0) -> 0 | U48: 0 | V48: 0 | Y48: 46 | Z48: 45 | AA48: 0 | AB48: 0 | AC48: 0 | AD48: 0 | AE48: 0 | AF48: 0 | AH48: 46 | AI48: 45 | AJ48: 0 | AK48: 0 | AL48: 0 | AM48: 0 | AN48: 0 | AO48: 0 | AP48: 0 | AQ48: =IFERROR(ROUND(-SUM(AJ48,AO48)*'Allocation Detail'!$E$13/12,2),0) -> 0 | AR48: =IFERROR(ROUND(-SUM(AK48,AM48,AN48)*'Allocation Detail'!$H$13/12,2),0) -> 0 | AS48: 0 | AT48: 0 | AU48: 0 | AV48: 0 | AW48: 0 | AX48: =IFERROR(AY48*('Allocation Detail'!#REF!/'Allocation Detail'!#REF!),0) -> 0 | AY48: 0 | AZ48: 0 | BB48: =BB47+1 -> 46 | BC48: 45 | BD48: 0 | BE48: 0 | BF48: 0 | BG48: 0 | BH48: 0 | BI48: 0 | BJ48: 0 | BK48: =IFERROR(ROUND(-SUM(BD48,BI48)*'Allocation Detail'!$E$13/12,2),0) -> 0 | BL48: =IFERROR(ROUND(-SUM(BE48,BG48,BH48)*'Allocation Detail'!$H$13/12,2),0) -> 0 | BM48: 0 | BN48: 0 | BO48: 0 | BP48: 0 | BQ48: 0 | BR48: =IFERROR(BS48*('Allocation Detail'!#REF!/'Allocation Detail'!#REF!),0) -> 0 | BS48: 0 | BT48: 0
B49: 1 Year | C49: 3 Years | D49: 5 Years | E49: 10 Years | F49: 47 | G49: 46 | H49: 0 | I49: 0 | J49: 0 | K49: 0 | L49: 0 | M49: =IFERROR(ROUND(-SUM(H49,L49)*'Allocation Detail'!$E$13/12,2),0) -> 0 | N49: =IFERROR(ROUND(-SUM(I49,J49,K49)*'Allocation Detail'!$E$13/12,2),0) -> 0 | O49: 0 | P49: 0 | Q49: 0 | R49: 0 | S49: 0 | T49: =IFERROR(U49*('Allocation Detail'!#REF!/'Allocation Detail'!#REF!),0) -> 0 | U49: 0 | V49: 0 | Y49: 47 | Z49: 46 | AA49: 0 | AB49: 0 | AC49: 0 | AD49: 0 | AE49: 0 | AF49: 0 | AH49: 47 | AI49: 46 | AJ49: 0 | AK49: 0 | AL49: 0 | AM49: 0 | AN49: 0 | AO49: 0 | AP49: 0 | AQ49: =IFERROR(ROUND(-SUM(AJ49,AO49)*'Allocation Detail'!$E$13/12,2),0) -> 0 | AR49: =IFERROR(ROUND(-SUM(AK49,AM49,AN49)*'Allocation Detail'!$H$13/12,2),0) -> 0 | AS49: 0 | AT49: 0 | AU49: 0 | AV49: 0 | AW49: 0 | AX49: =IFERROR(AY49*('Allocation Detail'!#REF!/'Allocation Detail'!#REF!),0) -> 0 | AY49: 0 | AZ49: 0 | BB49: =BB48+1 -> 47 | BC49: 46 | BD49: 0 | BE49: 0 | BF49: 0 | BG49: 0 | BH49: 0 | BI49: 0 | BJ49: 0 | BK49: =IFERROR(ROUND(-SUM(BD49,BI49)*'Allocation Detail'!$E$13/12,2),0) -> 0 | BL49: =IFERROR(ROUND(-SUM(BE49,BG49,BH49)*'Allocation Detail'!$H$13/12,2),0) -> 0 | BM49: 0 | BN49: 0 | BO49: 0 | BP49: 0 | BQ49: 0 | BR49: =IFERROR(BS49*('Allocation Detail'!#REF!/'Allocation Detail'!#REF!),0) -> 0 | BS49: 0 | BT49: 0
A50: Investment Management Charge | B50: ='Allocation Detail'!$E$13 -> 0 | C50: ='Allocation Detail'!$E$13 -> 0 | D50: ='Allocation Detail'!$E$13 -> 0 | E50: ='Allocation Detail'!$E$13 -> 0 | F50: 48 | G50: 47 | H50: 0 | I50: 0 | J50: 0 | K50: 0 | L50: 0 | M50: =IFERROR(ROUND(-SUM(H50,L50)*'Allocation Detail'!$E$13/12,2),0) -> 0 | N50: =IFERROR(ROUND(-SUM(I50,J50,K50)*'Allocation Detail'!$E$13/12,2),0) -> 0 | O50: 0 | P50: 0 | Q50: 0 | R50: 0 | S50: 0 | T50: =IFERROR(U50*('Allocation Detail'!#REF!/'Allocation Detail'!#REF!),0) -> 0 | U50: 0 | V50: 0 | Y50: 48 | Z50: 47 | AA50: 0 | AB50: 0 | AC50: 0 | AD50: 0 | AE50: 0 | AF50: 0 | AH50: 48 | AI50: 47 | AJ50: 0 | AK50: 0 | AL50: 0 | AM50: 0 | AN50: 0 | AO50: 0 | AP50: 0 | AQ50: =IFERROR(ROUND(-SUM(AJ50,AO50)*'Allocation Detail'!$E$13/12,2),0) -> 0 | AR50: =IFERROR(ROUND(-SUM(AK50,AM50,AN50)*'Allocation Detail'!$H$13/12,2),0) -> 0 | AS50: 0 | AT50: 0 | AU50: 0 | AV50: 0 | AW50: 0 | AX50: =IFERROR(AY50*('Allocation Detail'!#REF!/'Allocation Detail'!#REF!),0) -> 0 | AY50: 0 | AZ50: 0 | BB50: =BB49+1 -> 48 | BC50: 47 | BD50: 0 | BE50: 0 | BF50: 0 | BG50: 0 | BH50: 0 | BI50: 0 | BJ50: 0 | BK50: =IFERROR(ROUND(-SUM(BD50,BI50)*'Allocation Detail'!$E$13/12,2),0) -> 0 | BL50: =IFERROR(ROUND(-SUM(BE50,BG50,BH50)*'Allocation Detail'!$H$13/12,2),0) -> 0 | BM50: 0 | BN50: 0 | BO50: 0 | BP50: 0 | BQ50: 0 | BR50: =IFERROR(BS50*('Allocation Detail'!#REF!/'Allocation Detail'!#REF!),0) -> 0 | BS50: 0 | BT50: 0
A51: Advice Charge | B51: =B45-((1+DH2)^12-1) -> 0.02439352777 | C51: =B45-((1+CN2)^12-1) -> 0.01233210739 | D51: =B45-((1+BU2)^12-1) -> 0.009898579174 | E51: =B45-((1+BA2)^12-1) -> 0.008061338375 | F51: 49 | G51: 48 | H51: 0 | I51: 0 | J51: 0 | K51: 0 | L51: 0 | M51: =IFERROR(ROUND(-SUM(H51,L51)*'Allocation Detail'!$E$13/12,2),0) -> 0 | N51: =IFERROR(ROUND(-SUM(I51,J51,K51)*'Allocation Detail'!$E$13/12,2),0) -> 0 | O51: 0 | P51: 0 | Q51: 0 | R51: 0 | S51: 0 | T51: =IFERROR(U51*('Allocation Detail'!#REF!/'Allocation Detail'!#REF!),0) -> 0 | U51: 0 | V51: 0 | Y51: 49 | Z51: 48 | AA51: 0 | AB51: 0 | AC51: 0 | AD51: 0 | AE51: 0 | AF51: 0 | AH51: 49 | AI51: 48 | AJ51: 0 | AK51: 0 | AL51: 0 | AM51: 0 | AN51: 0 | AO51: 0 | AP51: 0 | AQ51: =IFERROR(ROUND(-SUM(AJ51,AO51)*'Allocation Detail'!$E$13/12,2),0) -> 0 | AR51: =IFERROR(ROUND(-SUM(AK51,AM51,AN51)*'Allocation Detail'!$H$13/12,2),0) -> 0 | AS51: 0 | AT51: 0 | AU51: 0 | AV51: 0 | AW51: 0 | AX51: =IFERROR(AY51*('Allocation Detail'!#REF!/'Allocation Detail'!#REF!),0) -> 0 | AY51: 0 | AZ51: 0 | BB51: =BB50+1 -> 49 | BC51: 48 | BD51: 0 | BE51: 0 | BF51: 0 | BG51: 0 | BH51: 0 | BI51: 0 | BJ51: 0 | BK51: =IFERROR(ROUND(-SUM(BD51,BI51)*'Allocation Detail'!$E$13/12,2),0) -> 0 | BL51: =IFERROR(ROUND(-SUM(BE51,BG51,BH51)*'Allocation Detail'!$H$13/12,2),0) -> 0 | BM51: 0 | BN51: 0 | BO51: 0 | BP51: 0 | BQ51: 0 | BR51: =IFERROR(BS51*('Allocation Detail'!#REF!/'Allocation Detail'!#REF!),0) -> 0 | BS51: 0 | BT51: 0
A52: Administration Charge | B52: 0 | C52: 0 | D52: 0 | E52: 0 | F52: 50 | G52: 49 | H52: 0 | I52: 0 | J52: 0 | K52: 0 | L52: 0 | M52: =IFERROR(ROUND(-SUM(H52,L52)*'Allocation Detail'!$E$13/12,2),0) -> 0 | N52: =IFERROR(ROUND(-SUM(I52,J52,K52)*'Allocation Detail'!$E$13/12,2),0) -> 0 | O52: 0 | P52: 0 | Q52: 0 | R52: 0 | S52: 0 | T52: =IFERROR(U52*('Allocation Detail'!#REF!/'Allocation Detail'!#REF!),0) -> 0 | U52: 0 | V52: 0 | Y52: 50 | Z52: 49 | AA52: 0 | AB52: 0 | AC52: 0 | AD52: 0 | AE52: 0 | AF52: 0 | AH52: 50 | AI52: 49 | AJ52: 0 | AK52: 0 | AL52: 0 | AM52: 0 | AN52: 0 | AO52: 0 | AP52: 0 | AQ52: =IFERROR(ROUND(-SUM(AJ52,AO52)*'Allocation Detail'!$E$13/12,2),0) -> 0 | AR52: =IFERROR(ROUND(-SUM(AK52,AM52,AN52)*'Allocation Detail'!$H$13/12,2),0) -> 0 | AS52: 0 | AT52: 0 | AU52: 0 | AV52: 0 | AW52: 0 | AX52: =IFERROR(AY52*('Allocation Detail'!#REF!/'Allocation Detail'!#REF!),0) -> 0 | AY52: 0 | AZ52: 0 | BB52: =BB51+1 -> 50 | BC52: 49 | BD52: 0 | BE52: 0 | BF52: 0 | BG52: 0 | BH52: 0 | BI52: 0 | BJ52: 0 | BK52: =IFERROR(ROUND(-SUM(BD52,BI52)*'Allocation Detail'!$E$13/12,2),0) -> 0 | BL52: =IFERROR(ROUND(-SUM(BE52,BG52,BH52)*'Allocation Detail'!$H$13/12,2),0) -> 0 | BM52: 0 | BN52: 0 | BO52: 0 | BP52: 0 | BQ52: 0 | BR52: =IFERROR(BS52*('Allocation Detail'!#REF!/'Allocation Detail'!#REF!),0) -> 0 | BS52: 0 | BT52: 0
F53: 51 | G53: 50 | H53: 0 | I53: 0 | J53: 0 | K53: 0 | L53: 0 | M53: =IFERROR(ROUND(-SUM(H53,L53)*'Allocation Detail'!$E$13/12,2),0) -> 0 | N53: =IFERROR(ROUND(-SUM(I53,J53,K53)*'Allocation Detail'!$E$13/12,2),0) -> 0 | O53: 0 | P53: 0 | Q53: 0 | R53: 0 | S53: 0 | T53: =IFERROR(U53*('Allocation Detail'!#REF!/'Allocation Detail'!#REF!),0) -> 0 | U53: 0 | V53: 0 | Y53: =Y52+1 -> 51 | Z53: 50 | AA53: 0 | AB53: 0 | AC53: 0 | AD53: 0 | AE53: 0 | AF53: 0 | AH53: =AH52+1 -> 51 | AI53: 50 | AJ53: 0 | AK53: 0 | AL53: 0 | AM53: 0 | AN53: 0 | AO53: 0 | AP53: 0 | AQ53: =IFERROR(ROUND(-SUM(AJ53,AO53)*'Allocation Detail'!$E$13/12,2),0) -> 0 | AR53: =IFERROR(ROUND(-SUM(AK53,AM53,AN53)*'Allocation Detail'!$H$13/12,2),0) -> 0 | AS53: 0 | AT53: 0 | AU53: 0 | AV53: 0 | AW53: 0 | AX53: =IFERROR(AY53*('Allocation Detail'!#REF!/'Allocation Detail'!#REF!),0) -> 0 | AY53: 0 | AZ53: 0 | BB53: =BB52+1 -> 51 | BC53: 50 | BD53: 0 | BE53: 0 | BF53: 0 | BG53: 0 | BH53: 0 | BI53: 0 | BJ53: 0 | BK53: =IFERROR(ROUND(-SUM(BD53,BI53)*'Allocation Detail'!$E$13/12,2),0) -> 0 | BL53: =IFERROR(ROUND(-SUM(BE53,BG53,BH53)*'Allocation Detail'!$H$13/12,2),0) -> 0 | BM53: 0 | BN53: 0 | BO53: 0 | BP53: 0 | BQ53: 0 | BR53: =IFERROR(BS53*('Allocation Detail'!#REF!/'Allocation Detail'!#REF!),0) -> 0 | BS53: 0 | BT53: 0
A54: Investment Management Charge | B54: =W127 -> 0 | C54: =W126 -> 0 | D54: =W125 -> 0 | E54: =W124 -> 0 | F54: 52 | G54: 51 | H54: 0 | I54: 0 | J54: 0 | K54: 0 | L54: 0 | M54: =IFERROR(ROUND(-SUM(H54,L54)*'Allocation Detail'!$E$13/12,2),0) -> 0 | N54: =IFERROR(ROUND(-SUM(I54,J54,K54)*'Allocation Detail'!$E$13/12,2),0) -> 0 | O54: 0 | P54: 0 | Q54: 0 | R54: 0 | S54: 0 | T54: =IFERROR(U54*('Allocation Detail'!#REF!/'Allocation Detail'!#REF!),0) -> 0 | U54: 0 | V54: 0 | Y54: 52 | Z54: 51 | AA54: 0 | AB54: 0 | AC54: 0 | AD54: 0 | AE54: 0 | AF54: 0 | AH54: 52 | AI54: 51 | AJ54: 0 | AK54: 0 | AL54: 0 | AM54: 0 | AN54: 0 | AO54: 0 | AP54: 0 | AQ54: =IFERROR(ROUND(-SUM(AJ54,AO54)*'Allocation Detail'!$E$13/12,2),0) -> 0 | AR54: =IFERROR(ROUND(-SUM(AK54,AM54,AN54)*'Allocation Detail'!$H$13/12,2),0) -> 0 | AS54: 0 | AT54: 0 | AU54: 0 | AV54: 0 | AW54: 0 | AX54: =IFERROR(AY54*('Allocation Detail'!#REF!/'Allocation Detail'!#REF!),0) -> 0 | AY54: 0 | AZ54: 0 | BB54: =BB53+1 -> 52 | BC54: 51 | BD54: 0 | BE54: 0 | BF54: 0 | BG54: 0 | BH54: 0 | BI54: 0 | BJ54: 0 | BK54: =IFERROR(ROUND(-SUM(BD54,BI54)*'Allocation Detail'!$E$13/12,2),0) -> 0 | BL54: =IFERROR(ROUND(-SUM(BE54,BG54,BH54)*'Allocation Detail'!$H$13/12,2),0) -> 0 | BM54: 0 | BN54: 0 | BO54: 0 | BP54: 0 | BQ54: 0 | BR54: =IFERROR(BS54*('Allocation Detail'!#REF!/'Allocation Detail'!#REF!),0) -> 0 | BS54: 0 | BT54: 0
A55: Advice Charge | B55: =X127 -> 0 | C55: =X126 -> 0 | D55: =X125 -> 0 | E55: =X124 -> 0 | F55: 53 | G55: 52 | H55: 0 | I55: 0 | J55: 0 | K55: 0 | L55: 0 | M55: =IFERROR(ROUND(-SUM(H55,L55)*'Allocation Detail'!$E$13/12,2),0) -> 0 | N55: =IFERROR(ROUND(-SUM(I55,J55,K55)*'Allocation Detail'!$E$13/12,2),0) -> 0 | O55: 0 | P55: 0 | Q55: 0 | R55: 0 | S55: 0 | T55: =IFERROR(U55*('Allocation Detail'!#REF!/'Allocation Detail'!#REF!),0) -> 0 | U55: 0 | V55: 0 | Y55: 53 | Z55: 52 | AA55: 0 | AB55: 0 | AC55: 0 | AD55: 0 | AE55: 0 | AF55: 0 | AH55: 53 | AI55: 52 | AJ55: 0 | AK55: 0 | AL55: 0 | AM55: 0 | AN55: 0 | AO55: 0 | AP55: 0 | AQ55: =IFERROR(ROUND(-SUM(AJ55,AO55)*'Allocation Detail'!$E$13/12,2),0) -> 0 | AR55: =IFERROR(ROUND(-SUM(AK55,AM55,AN55)*'Allocation Detail'!$H$13/12,2),0) -> 0 | AS55: 0 | AT55: 0 | AU55: 0 | AV55: 0 | AW55: 0 | AX55: =IFERROR(AY55*('Allocation Detail'!#REF!/'Allocation Detail'!#REF!),0) -> 0 | AY55: 0 | AZ55: 0 | BB55: =BB54+1 -> 53 | BC55: 52 | BD55: 0 | BE55: 0 | BF55: 0 | BG55: 0 | BH55: 0 | BI55: 0 | BJ55: 0 | BK55: =IFERROR(ROUND(-SUM(BD55,BI55)*'Allocation Detail'!$E$13/12,2),0) -> 0 | BL55: =IFERROR(ROUND(-SUM(BE55,BG55,BH55)*'Allocation Detail'!$H$13/12,2),0) -> 0 | BM55: 0 | BN55: 0 | BO55: 0 | BP55: 0 | BQ55: 0 | BR55: =IFERROR(BS55*('Allocation Detail'!#REF!/'Allocation Detail'!#REF!),0) -> 0 | BS55: 0 | BT55: 0
A56: Administration Charge | B56: =Y127 -> 0 | C56: =Y126 -> 0 | D56: =Y125 -> 0 | E56: =Y124 -> 0 | F56: 54 | G56: 53 | H56: 0 | I56: 0 | J56: 0 | K56: 0 | L56: 0 | M56: =IFERROR(ROUND(-SUM(H56,L56)*'Allocation Detail'!$E$13/12,2),0) -> 0 | N56: =IFERROR(ROUND(-SUM(I56,J56,K56)*'Allocation Detail'!$E$13/12,2),0) -> 0 | O56: 0 | P56: 0 | Q56: 0 | R56: 0 | S56: 0 | T56: =IFERROR(U56*('Allocation Detail'!#REF!/'Allocation Detail'!#REF!),0) -> 0 | U56: 0 | V56: 0 | Y56: 54 | Z56: 53 | AA56: 0 | AB56: 0 | AC56: 0 | AD56: 0 | AE56: 0 | AF56: 0 | AH56: 54 | AI56: 53 | AJ56: 0 | AK56: 0 | AL56: 0 | AM56: 0 | AN56: 0 | AO56: 0 | AP56: 0 | AQ56: =IFERROR(ROUND(-SUM(AJ56,AO56)*'Allocation Detail'!$E$13/12,2),0) -> 0 | AR56: =IFERROR(ROUND(-SUM(AK56,AM56,AN56)*'Allocation Detail'!$H$13/12,2),0) -> 0 | AS56: 0 | AT56: 0 | AU56: 0 | AV56: 0 | AW56: 0 | AX56: =IFERROR(AY56*('Allocation Detail'!#REF!/'Allocation Detail'!#REF!),0) -> 0 | AY56: 0 | AZ56: 0 | BB56: =BB55+1 -> 54 | BC56: 53 | BD56: 0 | BE56: 0 | BF56: 0 | BG56: 0 | BH56: 0 | BI56: 0 | BJ56: 0 | BK56: =IFERROR(ROUND(-SUM(BD56,BI56)*'Allocation Detail'!$E$13/12,2),0) -> 0 | BL56: =IFERROR(ROUND(-SUM(BE56,BG56,BH56)*'Allocation Detail'!$H$13/12,2),0) -> 0 | BM56: 0 | BN56: 0 | BO56: 0 | BP56: 0 | BQ56: 0 | BR56: =IFERROR(BS56*('Allocation Detail'!#REF!/'Allocation Detail'!#REF!),0) -> 0 | BS56: 0 | BT56: 0
A57: All fees result | B57: =V127 -> 0 | C57: =V126 -> 0 | D57: =V125 -> 0 | E57: =V124 -> 0 | F57: 55 | G57: 54 | H57: 0 | I57: 0 | J57: 0 | K57: 0 | L57: 0 | M57: =IFERROR(ROUND(-SUM(H57,L57)*'Allocation Detail'!$E$13/12,2),0) -> 0 | N57: =IFERROR(ROUND(-SUM(I57,J57,K57)*'Allocation Detail'!$E$13/12,2),0) -> 0 | O57: 0 | P57: 0 | Q57: 0 | R57: 0 | S57: 0 | T57: =IFERROR(U57*('Allocation Detail'!#REF!/'Allocation Detail'!#REF!),0) -> 0 | U57: 0 | V57: 0 | Y57: 55 | Z57: 54 | AA57: 0 | AB57: 0 | AC57: 0 | AD57: 0 | AE57: 0 | AF57: 0 | AH57: 55 | AI57: 54 | AJ57: 0 | AK57: 0 | AL57: 0 | AM57: 0 | AN57: 0 | AO57: 0 | AP57: 0 | AQ57: =IFERROR(ROUND(-SUM(AJ57,AO57)*'Allocation Detail'!$E$13/12,2),0) -> 0 | AR57: =IFERROR(ROUND(-SUM(AK57,AM57,AN57)*'Allocation Detail'!$H$13/12,2),0) -> 0 | AS57: 0 | AT57: 0 | AU57: 0 | AV57: 0 | AW57: 0 | AX57: =IFERROR(AY57*('Allocation Detail'!#REF!/'Allocation Detail'!#REF!),0) -> 0 | AY57: 0 | AZ57: 0 | BB57: =BB56+1 -> 55 | BC57: 54 | BD57: 0 | BE57: 0 | BF57: 0 | BG57: 0 | BH57: 0 | BI57: 0 | BJ57: 0 | BK57: =IFERROR(ROUND(-SUM(BD57,BI57)*'Allocation Detail'!$E$13/12,2),0) -> 0 | BL57: =IFERROR(ROUND(-SUM(BE57,BG57,BH57)*'Allocation Detail'!$H$13/12,2),0) -> 0 | BM57: 0 | BN57: 0 | BO57: 0 | BP57: 0 | BQ57: 0 | BR57: =IFERROR(BS57*('Allocation Detail'!#REF!/'Allocation Detail'!#REF!),0) -> 0 | BS57: 0 | BT57: 0
F58: 56 | G58: 55 | H58: 0 | I58: 0 | J58: 0 | K58: 0 | L58: 0 | M58: =IFERROR(ROUND(-SUM(H58,L58)*'Allocation Detail'!$E$13/12,2),0) -> 0 | N58: =IFERROR(ROUND(-SUM(I58,J58,K58)*'Allocation Detail'!$E$13/12,2),0) -> 0 | O58: 0 | P58: 0 | Q58: 0 | R58: 0 | S58: 0 | T58: =IFERROR(U58*('Allocation Detail'!#REF!/'Allocation Detail'!#REF!),0) -> 0 | U58: 0 | V58: 0 | Y58: 56 | Z58: 55 | AA58: 0 | AB58: 0 | AC58: 0 | AD58: 0 | AE58: 0 | AF58: 0 | AH58: 56 | AI58: 55 | AJ58: 0 | AK58: 0 | AL58: 0 | AM58: 0 | AN58: 0 | AO58: 0 | AP58: 0 | AQ58: =IFERROR(ROUND(-SUM(AJ58,AO58)*'Allocation Detail'!$E$13/12,2),0) -> 0 | AR58: =IFERROR(ROUND(-SUM(AK58,AM58,AN58)*'Allocation Detail'!$H$13/12,2),0) -> 0 | AS58: 0 | AT58: 0 | AU58: 0 | AV58: 0 | AW58: 0 | AX58: =IFERROR(AY58*('Allocation Detail'!#REF!/'Allocation Detail'!#REF!),0) -> 0 | AY58: 0 | AZ58: 0 | BB58: =BB57+1 -> 56 | BC58: 55 | BD58: 0 | BE58: 0 | BF58: 0 | BG58: 0 | BH58: 0 | BI58: 0 | BJ58: 0 | BK58: =IFERROR(ROUND(-SUM(BD58,BI58)*'Allocation Detail'!$E$13/12,2),0) -> 0 | BL58: =IFERROR(ROUND(-SUM(BE58,BG58,BH58)*'Allocation Detail'!$H$13/12,2),0) -> 0 | BM58: 0 | BN58: 0 | BO58: 0 | BP58: 0 | BQ58: 0 | BR58: =IFERROR(BS58*('Allocation Detail'!#REF!/'Allocation Detail'!#REF!),0) -> 0 | BS58: 0 | BT58: 0
F59: 57 | G59: 56 | H59: 0 | I59: 0 | J59: 0 | K59: 0 | L59: 0 | M59: =IFERROR(ROUND(-SUM(H59,L59)*'Allocation Detail'!$E$13/12,2),0) -> 0 | N59: =IFERROR(ROUND(-SUM(I59,J59,K59)*'Allocation Detail'!$E$13/12,2),0) -> 0 | O59: 0 | P59: 0 | Q59: 0 | R59: 0 | S59: 0 | T59: =IFERROR(U59*('Allocation Detail'!#REF!/'Allocation Detail'!#REF!),0) -> 0 | U59: 0 | V59: 0 | Y59: 57 | Z59: 56 | AA59: 0 | AB59: 0 | AC59: 0 | AD59: 0 | AE59: 0 | AF59: 0 | AH59: 57 | AI59: 56 | AJ59: 0 | AK59: 0 | AL59: 0 | AM59: 0 | AN59: 0 | AO59: 0 | AP59: 0 | AQ59: =IFERROR(ROUND(-SUM(AJ59,AO59)*'Allocation Detail'!$E$13/12,2),0) -> 0 | AR59: =IFERROR(ROUND(-SUM(AK59,AM59,AN59)*'Allocation Detail'!$H$13/12,2),0) -> 0 | AS59: 0 | AT59: 0 | AU59: 0 | AV59: 0 | AW59: 0 | AX59: =IFERROR(AY59*('Allocation Detail'!#REF!/'Allocation Detail'!#REF!),0) -> 0 | AY59: 0 | AZ59: 0 | BB59: =BB58+1 -> 57 | BC59: 56 | BD59: 0 | BE59: 0 | BF59: 0 | BG59: 0 | BH59: 0 | BI59: 0 | BJ59: 0 | BK59: =IFERROR(ROUND(-SUM(BD59,BI59)*'Allocation Detail'!$E$13/12,2),0) -> 0 | BL59: =IFERROR(ROUND(-SUM(BE59,BG59,BH59)*'Allocation Detail'!$H$13/12,2),0) -> 0 | BM59: 0 | BN59: 0 | BO59: 0 | BP59: 0 | BQ59: 0 | BR59: =IFERROR(BS59*('Allocation Detail'!#REF!/'Allocation Detail'!#REF!),0) -> 0 | BS59: 0 | BT59: 0
F60: 58 | G60: 57 | H60: 0 | I60: 0 | J60: 0 | K60: 0 | L60: 0 | M60: =IFERROR(ROUND(-SUM(H60,L60)*'Allocation Detail'!$E$13/12,2),0) -> 0 | N60: =IFERROR(ROUND(-SUM(I60,J60,K60)*'Allocation Detail'!$E$13/12,2),0) -> 0 | O60: 0 | P60: 0 | Q60: 0 | R60: 0 | S60: 0 | T60: =IFERROR(U60*('Allocation Detail'!#REF!/'Allocation Detail'!#REF!),0) -> 0 | U60: 0 | V60: 0 | Y60: 58 | Z60: 57 | AA60: 0 | AB60: 0 | AC60: 0 | AD60: 0 | AE60: 0 | AF60: 0 | AH60: 58 | AI60: 57 | AJ60: 0 | AK60: 0 | AL60: 0 | AM60: 0 | AN60: 0 | AO60: 0 | AP60: 0 | AQ60: =IFERROR(ROUND(-SUM(AJ60,AO60)*'Allocation Detail'!$E$13/12,2),0) -> 0 | AR60: =IFERROR(ROUND(-SUM(AK60,AM60,AN60)*'Allocation Detail'!$H$13/12,2),0) -> 0 | AS60: 0 | AT60: 0 | AU60: 0 | AV60: 0 | AW60: 0 | AX60: =IFERROR(AY60*('Allocation Detail'!#REF!/'Allocation Detail'!#REF!),0) -> 0 | AY60: 0 | AZ60: 0 | BB60: =BB59+1 -> 58 | BC60: 57 | BD60: 0 | BE60: 0 | BF60: 0 | BG60: 0 | BH60: 0 | BI60: 0 | BJ60: 0 | BK60: =IFERROR(ROUND(-SUM(BD60,BI60)*'Allocation Detail'!$E$13/12,2),0) -> 0 | BL60: =IFERROR(ROUND(-SUM(BE60,BG60,BH60)*'Allocation Detail'!$H$13/12,2),0) -> 0 | BM60: 0 | BN60: 0 | BO60: 0 | BP60: 0 | BQ60: 0 | BR60: =IFERROR(BS60*('Allocation Detail'!#REF!/'Allocation Detail'!#REF!),0) -> 0 | BS60: 0 | BT60: 0
F61: 59 | G61: 58 | H61: 0 | I61: 0 | J61: 0 | K61: 0 | L61: 0 | M61: =IFERROR(ROUND(-SUM(H61,L61)*'Allocation Detail'!$E$13/12,2),0) -> 0 | N61: =IFERROR(ROUND(-SUM(I61,J61,K61)*'Allocation Detail'!$E$13/12,2),0) -> 0 | O61: 0 | P61: 0 | Q61: 0 | R61: 0 | S61: 0 | T61: =IFERROR(U61*('Allocation Detail'!#REF!/'Allocation Detail'!#REF!),0) -> 0 | U61: 0 | V61: 0 | Y61: 59 | Z61: 58 | AA61: 0 | AB61: 0 | AC61: 0 | AD61: 0 | AE61: 0 | AF61: 0 | AH61: 59 | AI61: 58 | AJ61: 0 | AK61: 0 | AL61: 0 | AM61: 0 | AN61: 0 | AO61: 0 | AP61: 0 | AQ61: =IFERROR(ROUND(-SUM(AJ61,AO61)*'Allocation Detail'!$E$13/12,2),0) -> 0 | AR61: =IFERROR(ROUND(-SUM(AK61,AM61,AN61)*'Allocation Detail'!$H$13/12,2),0) -> 0 | AS61: 0 | AT61: 0 | AU61: 0 | AV61: 0 | AW61: 0 | AX61: =IFERROR(AY61*('Allocation Detail'!#REF!/'Allocation Detail'!#REF!),0) -> 0 | AY61: 0 | AZ61: 0 | BB61: =BB60+1 -> 59 | BC61: 58 | BD61: 0 | BE61: 0 | BF61: 0 | BG61: 0 | BH61: 0 | BI61: 0 | BJ61: 0 | BK61: =IFERROR(ROUND(-SUM(BD61,BI61)*'Allocation Detail'!$E$13/12,2),0) -> 0 | BL61: =IFERROR(ROUND(-SUM(BE61,BG61,BH61)*'Allocation Detail'!$H$13/12,2),0) -> 0 | BM61: 0 | BN61: 0 | BO61: 0 | BP61: 0 | BQ61: 0 | BR61: =IFERROR(BS61*('Allocation Detail'!#REF!/'Allocation Detail'!#REF!),0) -> 0 | BS61: 0 | BT61: 0
F62: 60 | G62: 59 | H62: 0 | I62: 0 | J62: 0 | K62: 0 | L62: 0 | M62: =IFERROR(ROUND(-SUM(H62,L62)*'Allocation Detail'!$E$13/12,2),0) -> 0 | N62: =IFERROR(ROUND(-SUM(I62,J62,K62)*'Allocation Detail'!$E$13/12,2),0) -> 0 | O62: 0 | P62: 0 | Q62: 0 | R62: 0 | S62: 0 | T62: =IFERROR(U62*('Allocation Detail'!#REF!/'Allocation Detail'!#REF!),0) -> 0 | U62: 0 | V62: 0 | Y62: 60 | Z62: 59 | AA62: 0 | AB62: 0 | AC62: 0 | AD62: 0 | AE62: 0 | AF62: 0 | AH62: 60 | AI62: 59 | AJ62: 0 | AK62: 0 | AL62: 0 | AM62: 0 | AN62: 0 | AO62: 0 | AP62: 0 | AQ62: =IFERROR(ROUND(-SUM(AJ62,AO62)*'Allocation Detail'!$E$13/12,2),0) -> 0 | AR62: =IFERROR(ROUND(-SUM(AK62,AM62,AN62)*'Allocation Detail'!$H$13/12,2),0) -> 0 | AS62: 0 | AT62: 0 | AU62: 0 | AV62: 0 | AW62: 0 | AX62: =IFERROR(AY62*('Allocation Detail'!#REF!/'Allocation Detail'!#REF!),0) -> 0 | AY62: 0 | AZ62: 0 | BB62: =BB61+1 -> 60 | BC62: 59 | BD62: 0 | BE62: 0 | BF62: 0 | BG62: 0 | BH62: 0 | BI62: 0 | BJ62: 0 | BK62: =IFERROR(ROUND(-SUM(BD62,BI62)*'Allocation Detail'!$E$13/12,2),0) -> 0 | BL62: =IFERROR(ROUND(-SUM(BE62,BG62,BH62)*'Allocation Detail'!$H$13/12,2),0) -> 0 | BM62: 0 | BN62: 0 | BO62: 0 | BP62: 0 | BQ62: 0 | BR62: =IFERROR(BS62*('Allocation Detail'!#REF!/'Allocation Detail'!#REF!),0) -> 0 | BS62: 0 | BT62: 0
F63: 61 | G63: 60 | H63: 0 | I63: 0 | J63: 0 | K63: 0 | L63: 0 | M63: =IFERROR(ROUND(-SUM(H63,L63)*'Allocation Detail'!$E$13/12,2),0) -> 0 | N63: =IFERROR(ROUND(-SUM(I63,J63,K63)*'Allocation Detail'!$E$13/12,2),0) -> 0 | O63: 0 | P63: 0 | Q63: 0 | R63: 0 | S63: 0 | T63: =IFERROR(U63*('Allocation Detail'!#REF!/'Allocation Detail'!#REF!),0) -> 0 | U63: 0 | V63: 0 | Y63: 61 | Z63: 60 | AA63: 0 | AB63: 0 | AC63: 0 | AD63: 0 | AE63: 0 | AF63: 0 | AH63: 61 | AI63: 60 | AJ63: 0 | AK63: 0 | AL63: 0 | AM63: 0 | AN63: 0 | AO63: 0 | AP63: 0 | AQ63: =IFERROR(ROUND(-SUM(AJ63,AO63)*'Allocation Detail'!$E$13/12,2),0) -> 0 | AR63: =IFERROR(ROUND(-SUM(AK63,AM63,AN63)*'Allocation Detail'!$H$13/12,2),0) -> 0 | AS63: 0 | AT63: 0 | AU63: 0 | AV63: 0 | AW63: 0 | AX63: =IFERROR(AY63*('Allocation Detail'!#REF!/'Allocation Detail'!#REF!),0) -> 0 | AY63: 0 | AZ63: 0
F64: 62 | G64: 61 | H64: 0 | I64: 0 | J64: 0 | K64: 0 | L64: 0 | M64: =IFERROR(ROUND(-SUM(H64,L64)*'Allocation Detail'!$E$13/12,2),0) -> 0 | N64: =IFERROR(ROUND(-SUM(I64,J64,K64)*'Allocation Detail'!$E$13/12,2),0) -> 0 | O64: 0 | P64: 0 | Q64: 0 | R64: 0 | S64: 0 | T64: =IFERROR(U64*('Allocation Detail'!#REF!/'Allocation Detail'!#REF!),0) -> 0 | U64: 0 | V64: 0 | Y64: 62 | Z64: 61 | AA64: 0 | AB64: 0 | AC64: 0 | AD64: 0 | AE64: 0 | AF64: 0 | AH64: 62 | AI64: 61 | AJ64: 0 | AK64: 0 | AL64: 0 | AM64: 0 | AN64: 0 | AO64: 0 | AP64: 0 | AQ64: =IFERROR(ROUND(-SUM(AJ64,AO64)*'Allocation Detail'!$E$13/12,2),0) -> 0 | AR64: =IFERROR(ROUND(-SUM(AK64,AM64,AN64)*'Allocation Detail'!$H$13/12,2),0) -> 0 | AS64: 0 | AT64: 0 | AU64: 0 | AV64: 0 | AW64: 0 | AX64: =IFERROR(AY64*('Allocation Detail'!#REF!/'Allocation Detail'!#REF!),0) -> 0 | AY64: 0 | AZ64: 0 | BS64: 5 year | BT64: =ROUND(BT62,0) -> 0
F65: 63 | G65: 62 | H65: 0 | I65: 0 | J65: 0 | K65: 0 | L65: 0 | M65: =IFERROR(ROUND(-SUM(H65,L65)*'Allocation Detail'!$E$13/12,2),0) -> 0 | N65: =IFERROR(ROUND(-SUM(I65,J65,K65)*'Allocation Detail'!$E$13/12,2),0) -> 0 | O65: 0 | P65: 0 | Q65: 0 | R65: 0 | S65: 0 | T65: =IFERROR(U65*('Allocation Detail'!#REF!/'Allocation Detail'!#REF!),0) -> 0 | U65: 0 | V65: 0 | Y65: 63 | Z65: 62 | AA65: 0 | AB65: 0 | AC65: 0 | AD65: 0 | AE65: 0 | AF65: 0 | AH65: 63 | AI65: 62 | AJ65: 0 | AK65: 0 | AL65: 0 | AM65: 0 | AN65: 0 | AO65: 0 | AP65: 0 | AQ65: =IFERROR(ROUND(-SUM(AJ65,AO65)*'Allocation Detail'!$E$13/12,2),0) -> 0 | AR65: =IFERROR(ROUND(-SUM(AK65,AM65,AN65)*'Allocation Detail'!$H$13/12,2),0) -> 0 | AS65: 0 | AT65: 0 | AU65: 0 | AV65: 0 | AW65: 0 | AX65: =IFERROR(AY65*('Allocation Detail'!#REF!/'Allocation Detail'!#REF!),0) -> 0 | AY65: 0 | AZ65: 0 | BT65: =ROUND($V$62,0) -> 0
F66: 64 | G66: 63 | H66: 0 | I66: 0 | J66: 0 | K66: 0 | L66: 0 | M66: =IFERROR(ROUND(-SUM(H66,L66)*'Allocation Detail'!$E$13/12,2),0) -> 0 | N66: =IFERROR(ROUND(-SUM(I66,J66,K66)*'Allocation Detail'!$E$13/12,2),0) -> 0 | O66: 0 | P66: 0 | Q66: 0 | R66: 0 | S66: 0 | T66: =IFERROR(U66*('Allocation Detail'!#REF!/'Allocation Detail'!#REF!),0) -> 0 | U66: 0 | V66: 0 | Y66: 64 | Z66: 63 | AA66: 0 | AB66: 0 | AC66: 0 | AD66: 0 | AE66: 0 | AF66: 0 | AH66: 64 | AI66: 63 | AJ66: 0 | AK66: 0 | AL66: 0 | AM66: 0 | AN66: 0 | AO66: 0 | AP66: 0 | AQ66: =IFERROR(ROUND(-SUM(AJ66,AO66)*'Allocation Detail'!$E$13/12,2),0) -> 0 | AR66: =IFERROR(ROUND(-SUM(AK66,AM66,AN66)*'Allocation Detail'!$H$13/12,2),0) -> 0 | AS66: 0 | AT66: 0 | AU66: 0 | AV66: 0 | AW66: 0 | AX66: =IFERROR(AY66*('Allocation Detail'!#REF!/'Allocation Detail'!#REF!),0) -> 0 | AY66: 0 | AZ66: 0 | BT66: =BT64-BT65 -> 0
F67: 65 | G67: 64 | H67: 0 | I67: 0 | J67: =IF(G67/$D$16-INT(G67/$D$16)=0,ROUND($D$19*$D$20*((1+$D$17)^INT(G67/12)),2),0) -> 0 | K67: 0 | L67: =ROUND(H67*((1+$B$45)^(1/12)-1),2) -> 0 | M67: =IFERROR(ROUND(-SUM(H67,L67)*'Allocation Detail'!$E$13/12,2),0) -> 0 | N67: =IFERROR(ROUND(-SUM(I67,J67,K67)*'Allocation Detail'!$E$13/12,2),0) -> 0 | O67: 0 | P67: 0 | Q67: 0 | R67: 0 | S67: 0 | T67: =IFERROR(U67*('Allocation Detail'!#REF!/'Allocation Detail'!#REF!),0) -> 0 | U67: =IF($D$39="",0,MAX(-IF($D$41="",0,IF((G67/$D$41)-INT(G67/$D$41)=0,$D$39*((1+$D$42)^INT(G67/12)),0)),-S67)) -> 0 | V67: 0 | Y67: 65 | Z67: 64 | AA67: 0 | AB67: =IF(G67/$D$16-INT(G67/$D$16)=0,ROUND($D$14*((1+$D$17)^INT(G67/12)),2),0) -> 0 | AC67: 0 | AD67: =MAX(-IF($D$41="",0,IF((Z67/$D$41)-INT(Z67/$D$41)=0,$D$39*((1+$D$42)^INT(Z67/12)),0)),-SUM(AA67,AB67,AC67)) -> 0 | AE67: 0 | AF67: 0 | AH67: 65 | AI67: 64 | AJ67: 0 | AK67: 0 | AL67: =SUM(AJ67:AK67) -> 0 | AM67: =IF(AI67/$D$16-INT(AI67/$D$16)=0,ROUND($D$14*$D$20*((1+$D$17)^INT(AI67/12)),2),0) -> 0 | AN67: 0 | AO67: =ROUND(AJ67*BA$2,2) -> 0 | AP67: =SUM(AO67:AO67) -> 0 | AQ67: =IFERROR(ROUND(-SUM(AJ67,AO67)*'Allocation Detail'!$E$13/12,2),0) -> 0 | AR67: =IFERROR(ROUND(-SUM(AK67,AM67,AN67)*'Allocation Detail'!$H$13/12,2),0) -> 0 | AS67: 0 | AT67: 0 | AU67: 0 | AV67: 0 | AW67: 0 | AX67: =IFERROR(AY67*('Allocation Detail'!#REF!/'Allocation Detail'!#REF!),0) -> 0 | AY67: =IF($D$39="",0,MAX(-IF($D$41="",0,IF((AI67/$D$41)-INT(AI67/$D$41)=0,$D$39*((1+$D$42)^INT(AI67/12)),0)),-AW67)) -> 0 | AZ67: 0
F68: 66 | G68: 65 | H68: =ROUND(SUM(H67,L67,M67,O67,T67),2) -> 0 | I68: =SUM(I67,J67,K67,N67,P67) -> 0 | J68: 0 | K68: =ROUND((J68+I68)*((1+$B$45)^(1/12)-1),2) -> 0 | L68: 0 | M68: =IFERROR(ROUND(-SUM(H68,L68)*'Allocation Detail'!$E$13/12,2),0) -> 0 | N68: =IFERROR(ROUND(-SUM(I68,J68,K68)*'Allocation Detail'!$E$13/12,2),0) -> 0 | O68: 0 | P68: 0 | Q68: 0 | R68: =SUM(I68,J68,K68,N68,P68) -> 0 | S68: =SUM(H68,L68,M68,O68) -> 0 | T68: =IFERROR(U68*('Allocation Detail'!#REF!/'Allocation Detail'!#REF!),0) -> 0 | U68: 0 | V68: =IF(OR($D$8=0,$D$39=0,$D$8="",$D$39=""),S68+R68,MAX(R67+S68+U68,0)) -> 0 | W68: =SUM(M68:N68,Q68)/(S68)*-12 ->  | Y68: 66 | Z68: 65 | AA68: 0 | AB68: 0 | AC68: =(AA68+AB68)*$AF$2 -> 0 | AD68: 0 | AE68: =MAX(SUM(AA68:AD68),0) -> 0 | AF68: =IF(AE68=0,AA68,0) -> 0 | AH68: 66 | AI68: 65 | AJ68: =ROUND(SUM(AJ67,AO67,AQ67,AS67,AX67),2) -> 0 | AK68: =SUM(AK67,AM67,AN67,AR67,AT67) -> 0 | AL68: 0 | AM68: 0 | AN68: =ROUND((AM68+AK68)*BA$2,2) -> 0 | AO68: 0 | AP68: 0 | AQ68: =IFERROR(ROUND(-SUM(AJ68,AO68)*'Allocation Detail'!$E$13/12,2),0) -> 0 | AR68: =IFERROR(ROUND(-SUM(AK68,AM68,AN68)*'Allocation Detail'!$H$13/12,2),0) -> 0 | AS68: 0 | AT68: 0 | AU68: 0 | AV68: =SUM(AK68,AM68,AN68,AR68,AT68) -> 0 | AW68: =SUM(AJ68,AO68,AQ68,AS68) -> 0 | AX68: =IFERROR(AY68*('Allocation Detail'!#REF!/'Allocation Detail'!#REF!),0) -> 0 | AY68: 0 | AZ68: =IF(OR($D$8=0,$D$39=0,$D$8="",$D$39=""),AW68+AV68,MAX(AV67+AW68+AY68,0)) -> 0
F69: =F68+1 -> 67 | G69: =G68+1 -> 66 | H69: 0 | I69: 0 | J69: 0 | K69: 0 | L69: 0 | M69: =IFERROR(ROUND(-SUM(H69,L69)*'Allocation Detail'!$E$13/12,2),0) -> 0 | N69: =IFERROR(ROUND(-SUM(I69,J69,K69)*'Allocation Detail'!$E$13/12,2),0) -> 0 | O69: =ROUND(-(H69+L69)*$B$11/12*1.15,2) -> 0 | P69: =ROUND(-(I69+J69+K69)*$B$11/12*1.15,2) -> 0 | Q69: =-SUM(H69:I69,L69:L69)*$B$11/12*1.15 -> 0 | R69: 0 | S69: 0 | T69: =IFERROR(U69*('Allocation Detail'!#REF!/'Allocation Detail'!#REF!),0) -> 0 | U69: 0 | V69: 0 | Y69: =Y68+1 -> 67 | Z69: 66 | AA69: =AE68 -> 0 | AB69: 0 | AC69: 0 | AD69: 0 | AE69: 0 | AF69: 0 | AH69: =AH68+1 -> 67 | AI69: 66 | AJ69: 0 | AK69: 0 | AL69: 0 | AM69: 0 | AN69: 0 | AO69: 0 | AP69: 0 | AQ69: =IFERROR(ROUND(-SUM(AJ69,AO69)*'Allocation Detail'!$E$13/12,2),0) -> 0 | AR69: =IFERROR(ROUND(-SUM(AK69,AM69,AN69)*'Allocation Detail'!$H$13/12,2),0) -> 0 | AS69: 0 | AT69: 0 | AU69: 0 | AV69: 0 | AW69: 0 | AX69: =IFERROR(AY69*('Allocation Detail'!#REF!/'Allocation Detail'!#REF!),0) -> 0 | AY69: 0 | AZ69: 0
F70: 68 | G70: 67 | H70: 0 | I70: 0 | J70: 0 | K70: 0 | L70: 0 | M70: =IFERROR(ROUND(-SUM(H70,L70)*'Allocation Detail'!$E$13/12,2),0) -> 0 | N70: =IFERROR(ROUND(-SUM(I70,J70,K70)*'Allocation Detail'!$E$13/12,2),0) -> 0 | O70: 0 | P70: 0 | Q70: 0 | R70: 0 | S70: 0 | T70: =IFERROR(U70*('Allocation Detail'!#REF!/'Allocation Detail'!#REF!),0) -> 0 | U70: 0 | V70: 0 | Y70: 68 | Z70: 67 | AA70: 0 | AB70: 0 | AC70: 0 | AD70: 0 | AE70: 0 | AF70: 0 | AH70: 68 | AI70: 67 | AJ70: 0 | AK70: 0 | AL70: 0 | AM70: 0 | AN70: 0 | AO70: 0 | AP70: 0 | AQ70: =IFERROR(ROUND(-SUM(AJ70,AO70)*'Allocation Detail'!$E$13/12,2),0) -> 0 | AR70: =IFERROR(ROUND(-SUM(AK70,AM70,AN70)*'Allocation Detail'!$H$13/12,2),0) -> 0 | AS70: 0 | AT70: 0 | AU70: 0 | AV70: 0 | AW70: 0 | AX70: =IFERROR(AY70*('Allocation Detail'!#REF!/'Allocation Detail'!#REF!),0) -> 0 | AY70: 0 | AZ70: 0
F71: 69 | G71: 68 | H71: 0 | I71: 0 | J71: 0 | K71: 0 | L71: 0 | M71: =IFERROR(ROUND(-SUM(H71,L71)*'Allocation Detail'!$E$13/12,2),0) -> 0 | N71: =IFERROR(ROUND(-SUM(I71,J71,K71)*'Allocation Detail'!$E$13/12,2),0) -> 0 | O71: 0 | P71: 0 | Q71: 0 | R71: 0 | S71: 0 | T71: =IFERROR(U71*('Allocation Detail'!#REF!/'Allocation Detail'!#REF!),0) -> 0 | U71: 0 | V71: 0 | Y71: 69 | Z71: 68 | AA71: 0 | AB71: 0 | AC71: 0 | AD71: 0 | AE71: 0 | AF71: 0 | AH71: 69 | AI71: 68 | AJ71: 0 | AK71: 0 | AL71: 0 | AM71: 0 | AN71: 0 | AO71: 0 | AP71: 0 | AQ71: =IFERROR(ROUND(-SUM(AJ71,AO71)*'Allocation Detail'!$E$13/12,2),0) -> 0 | AR71: =IFERROR(ROUND(-SUM(AK71,AM71,AN71)*'Allocation Detail'!$H$13/12,2),0) -> 0 | AS71: 0 | AT71: 0 | AU71: 0 | AV71: 0 | AW71: 0 | AX71: =IFERROR(AY71*('Allocation Detail'!#REF!/'Allocation Detail'!#REF!),0) -> 0 | AY71: 0 | AZ71: 0
F72: 70 | G72: 69 | H72: 0 | I72: 0 | J72: 0 | K72: 0 | L72: 0 | M72: =IFERROR(ROUND(-SUM(H72,L72)*'Allocation Detail'!$E$13/12,2),0) -> 0 | N72: =IFERROR(ROUND(-SUM(I72,J72,K72)*'Allocation Detail'!$E$13/12,2),0) -> 0 | O72: 0 | P72: 0 | Q72: 0 | R72: 0 | S72: 0 | T72: =IFERROR(U72*('Allocation Detail'!#REF!/'Allocation Detail'!#REF!),0) -> 0 | U72: 0 | V72: 0 | Y72: 70 | Z72: 69 | AA72: 0 | AB72: 0 | AC72: 0 | AD72: 0 | AE72: 0 | AF72: 0 | AH72: 70 | AI72: 69 | AJ72: 0 | AK72: 0 | AL72: 0 | AM72: 0 | AN72: 0 | AO72: 0 | AP72: 0 | AQ72: =IFERROR(ROUND(-SUM(AJ72,AO72)*'Allocation Detail'!$E$13/12,2),0) -> 0 | AR72: =IFERROR(ROUND(-SUM(AK72,AM72,AN72)*'Allocation Detail'!$H$13/12,2),0) -> 0 | AS72: 0 | AT72: 0 | AU72: 0 | AV72: 0 | AW72: 0 | AX72: =IFERROR(AY72*('Allocation Detail'!#REF!/'Allocation Detail'!#REF!),0) -> 0 | AY72: 0 | AZ72: 0
F73: 71 | G73: 70 | H73: 0 | I73: 0 | J73: 0 | K73: 0 | L73: 0 | M73: =IFERROR(ROUND(-SUM(H73,L73)*'Allocation Detail'!$E$13/12,2),0) -> 0 | N73: =IFERROR(ROUND(-SUM(I73,J73,K73)*'Allocation Detail'!$E$13/12,2),0) -> 0 | O73: 0 | P73: 0 | Q73: 0 | R73: 0 | S73: 0 | T73: =IFERROR(U73*('Allocation Detail'!#REF!/'Allocation Detail'!#REF!),0) -> 0 | U73: 0 | V73: 0 | Y73: 71 | Z73: 70 | AA73: 0 | AB73: 0 | AC73: 0 | AD73: 0 | AE73: 0 | AF73: 0 | AH73: 71 | AI73: 70 | AJ73: 0 | AK73: 0 | AL73: 0 | AM73: 0 | AN73: 0 | AO73: 0 | AP73: 0 | AQ73: =IFERROR(ROUND(-SUM(AJ73,AO73)*'Allocation Detail'!$E$13/12,2),0) -> 0 | AR73: =IFERROR(ROUND(-SUM(AK73,AM73,AN73)*'Allocation Detail'!$H$13/12,2),0) -> 0 | AS73: 0 | AT73: 0 | AU73: 0 | AV73: 0 | AW73: 0 | AX73: =IFERROR(AY73*('Allocation Detail'!#REF!/'Allocation Detail'!#REF!),0) -> 0 | AY73: 0 | AZ73: 0
F74: 72 | G74: 71 | H74: 0 | I74: 0 | J74: 0 | K74: 0 | L74: 0 | M74: =IFERROR(ROUND(-SUM(H74,L74)*'Allocation Detail'!$E$13/12,2),0) -> 0 | N74: =IFERROR(ROUND(-SUM(I74,J74,K74)*'Allocation Detail'!$E$13/12,2),0) -> 0 | O74: 0 | P74: 0 | Q74: 0 | R74: 0 | S74: 0 | T74: =IFERROR(U74*('Allocation Detail'!#REF!/'Allocation Detail'!#REF!),0) -> 0 | U74: 0 | V74: 0 | Y74: 72 | Z74: 71 | AA74: 0 | AB74: 0 | AC74: 0 | AD74: 0 | AE74: 0 | AF74: 0 | AH74: 72 | AI74: 71 | AJ74: 0 | AK74: 0 | AL74: 0 | AM74: 0 | AN74: 0 | AO74: 0 | AP74: 0 | AQ74: =IFERROR(ROUND(-SUM(AJ74,AO74)*'Allocation Detail'!$E$13/12,2),0) -> 0 | AR74: =IFERROR(ROUND(-SUM(AK74,AM74,AN74)*'Allocation Detail'!$H$13/12,2),0) -> 0 | AS74: 0 | AT74: 0 | AU74: 0 | AV74: 0 | AW74: 0 | AX74: =IFERROR(AY74*('Allocation Detail'!#REF!/'Allocation Detail'!#REF!),0) -> 0 | AY74: 0 | AZ74: 0
F75: 73 | G75: 72 | H75: 0 | I75: 0 | J75: 0 | K75: 0 | L75: 0 | M75: =IFERROR(ROUND(-SUM(H75,L75)*'Allocation Detail'!$E$13/12,2),0) -> 0 | N75: =IFERROR(ROUND(-SUM(I75,J75,K75)*'Allocation Detail'!$E$13/12,2),0) -> 0 | O75: 0 | P75: 0 | Q75: 0 | R75: 0 | S75: 0 | T75: =IFERROR(U75*('Allocation Detail'!#REF!/'Allocation Detail'!#REF!),0) -> 0 | U75: 0 | V75: 0 | Y75: 73 | Z75: 72 | AA75: 0 | AB75: 0 | AC75: 0 | AD75: 0 | AE75: 0 | AF75: 0 | AH75: 73 | AI75: 72 | AJ75: 0 | AK75: 0 | AL75: 0 | AM75: 0 | AN75: 0 | AO75: 0 | AP75: 0 | AQ75: =IFERROR(ROUND(-SUM(AJ75,AO75)*'Allocation Detail'!$E$13/12,2),0) -> 0 | AR75: =IFERROR(ROUND(-SUM(AK75,AM75,AN75)*'Allocation Detail'!$H$13/12,2),0) -> 0 | AS75: 0 | AT75: 0 | AU75: 0 | AV75: 0 | AW75: 0 | AX75: =IFERROR(AY75*('Allocation Detail'!#REF!/'Allocation Detail'!#REF!),0) -> 0 | AY75: 0 | AZ75: 0
F76: 74 | G76: 73 | H76: 0 | I76: 0 | J76: 0 | K76: 0 | L76: 0 | M76: =IFERROR(ROUND(-SUM(H76,L76)*'Allocation Detail'!$E$13/12,2),0) -> 0 | N76: =IFERROR(ROUND(-SUM(I76,J76,K76)*'Allocation Detail'!$E$13/12,2),0) -> 0 | O76: 0 | P76: 0 | Q76: 0 | R76: 0 | S76: 0 | T76: =IFERROR(U76*('Allocation Detail'!#REF!/'Allocation Detail'!#REF!),0) -> 0 | U76: 0 | V76: 0 | Y76: 74 | Z76: 73 | AA76: 0 | AB76: 0 | AC76: 0 | AD76: 0 | AE76: 0 | AF76: 0 | AH76: 74 | AI76: 73 | AJ76: 0 | AK76: 0 | AL76: 0 | AM76: 0 | AN76: 0 | AO76: 0 | AP76: 0 | AQ76: =IFERROR(ROUND(-SUM(AJ76,AO76)*'Allocation Detail'!$E$13/12,2),0) -> 0 | AR76: =IFERROR(ROUND(-SUM(AK76,AM76,AN76)*'Allocation Detail'!$H$13/12,2),0) -> 0 | AS76: 0 | AT76: 0 | AU76: 0 | AV76: 0 | AW76: 0 | AX76: =IFERROR(AY76*('Allocation Detail'!#REF!/'Allocation Detail'!#REF!),0) -> 0 | AY76: 0 | AZ76: 0
F77: 75 | G77: 74 | H77: 0 | I77: 0 | J77: 0 | K77: 0 | L77: 0 | M77: =IFERROR(ROUND(-SUM(H77,L77)*'Allocation Detail'!$E$13/12,2),0) -> 0 | N77: =IFERROR(ROUND(-SUM(I77,J77,K77)*'Allocation Detail'!$E$13/12,2),0) -> 0 | O77: 0 | P77: 0 | Q77: 0 | R77: 0 | S77: 0 | T77: =IFERROR(U77*('Allocation Detail'!#REF!/'Allocation Detail'!#REF!),0) -> 0 | U77: 0 | V77: 0 | Y77: 75 | Z77: 74 | AA77: 0 | AB77: 0 | AC77: 0 | AD77: 0 | AE77: 0 | AF77: 0 | AH77: 75 | AI77: 74 | AJ77: 0 | AK77: 0 | AL77: 0 | AM77: 0 | AN77: 0 | AO77: 0 | AP77: 0 | AQ77: =IFERROR(ROUND(-SUM(AJ77,AO77)*'Allocation Detail'!$E$13/12,2),0) -> 0 | AR77: =IFERROR(ROUND(-SUM(AK77,AM77,AN77)*'Allocation Detail'!$H$13/12,2),0) -> 0 | AS77: 0 | AT77: 0 | AU77: 0 | AV77: 0 | AW77: 0 | AX77: =IFERROR(AY77*('Allocation Detail'!#REF!/'Allocation Detail'!#REF!),0) -> 0 | AY77: 0 | AZ77: 0
F78: 76 | G78: 75 | H78: 0 | I78: 0 | J78: 0 | K78: 0 | L78: 0 | M78: =IFERROR(ROUND(-SUM(H78,L78)*'Allocation Detail'!$E$13/12,2),0) -> 0 | N78: =IFERROR(ROUND(-SUM(I78,J78,K78)*'Allocation Detail'!$E$13/12,2),0) -> 0 | O78: 0 | P78: 0 | Q78: 0 | R78: 0 | S78: 0 | T78: =IFERROR(U78*('Allocation Detail'!#REF!/'Allocation Detail'!#REF!),0) -> 0 | U78: 0 | V78: 0 | Y78: 76 | Z78: 75 | AA78: 0 | AB78: 0 | AC78: 0 | AD78: 0 | AE78: 0 | AF78: 0 | AH78: 76 | AI78: 75 | AJ78: 0 | AK78: 0 | AL78: 0 | AM78: 0 | AN78: 0 | AO78: 0 | AP78: 0 | AQ78: =IFERROR(ROUND(-SUM(AJ78,AO78)*'Allocation Detail'!$E$13/12,2),0) -> 0 | AR78: =IFERROR(ROUND(-SUM(AK78,AM78,AN78)*'Allocation Detail'!$H$13/12,2),0) -> 0 | AS78: 0 | AT78: 0 | AU78: 0 | AV78: 0 | AW78: 0 | AX78: =IFERROR(AY78*('Allocation Detail'!#REF!/'Allocation Detail'!#REF!),0) -> 0 | AY78: 0 | AZ78: 0
F79: 77 | G79: 76 | H79: 0 | I79: 0 | J79: 0 | K79: 0 | L79: 0 | M79: =IFERROR(ROUND(-SUM(H79,L79)*'Allocation Detail'!$E$13/12,2),0) -> 0 | N79: =IFERROR(ROUND(-SUM(I79,J79,K79)*'Allocation Detail'!$E$13/12,2),0) -> 0 | O79: 0 | P79: 0 | Q79: 0 | R79: 0 | S79: 0 | T79: =IFERROR(U79*('Allocation Detail'!#REF!/'Allocation Detail'!#REF!),0) -> 0 | U79: 0 | V79: 0 | Y79: 77 | Z79: 76 | AA79: 0 | AB79: 0 | AC79: 0 | AD79: 0 | AE79: 0 | AF79: 0 | AH79: 77 | AI79: 76 | AJ79: 0 | AK79: 0 | AL79: 0 | AM79: 0 | AN79: 0 | AO79: 0 | AP79: 0 | AQ79: =IFERROR(ROUND(-SUM(AJ79,AO79)*'Allocation Detail'!$E$13/12,2),0) -> 0 | AR79: =IFERROR(ROUND(-SUM(AK79,AM79,AN79)*'Allocation Detail'!$H$13/12,2),0) -> 0 | AS79: 0 | AT79: 0 | AU79: 0 | AV79: 0 | AW79: 0 | AX79: =IFERROR(AY79*('Allocation Detail'!#REF!/'Allocation Detail'!#REF!),0) -> 0 | AY79: 0 | AZ79: 0
F80: 78 | G80: 77 | H80: 0 | I80: 0 | J80: 0 | K80: 0 | L80: 0 | M80: =IFERROR(ROUND(-SUM(H80,L80)*'Allocation Detail'!$E$13/12,2),0) -> 0 | N80: =IFERROR(ROUND(-SUM(I80,J80,K80)*'Allocation Detail'!$E$13/12,2),0) -> 0 | O80: 0 | P80: 0 | Q80: 0 | R80: 0 | S80: 0 | T80: =IFERROR(U80*('Allocation Detail'!#REF!/'Allocation Detail'!#REF!),0) -> 0 | U80: 0 | V80: 0 | Y80: 78 | Z80: 77 | AA80: 0 | AB80: 0 | AC80: 0 | AD80: 0 | AE80: 0 | AF80: 0 | AH80: 78 | AI80: 77 | AJ80: 0 | AK80: 0 | AL80: 0 | AM80: 0 | AN80: 0 | AO80: 0 | AP80: 0 | AQ80: =IFERROR(ROUND(-SUM(AJ80,AO80)*'Allocation Detail'!$E$13/12,2),0) -> 0 | AR80: =IFERROR(ROUND(-SUM(AK80,AM80,AN80)*'Allocation Detail'!$H$13/12,2),0) -> 0 | AS80: 0 | AT80: 0 | AU80: 0 | AV80: 0 | AW80: 0 | AX80: =IFERROR(AY80*('Allocation Detail'!#REF!/'Allocation Detail'!#REF!),0) -> 0 | AY80: 0 | AZ80: 0
F81: 79 | G81: 78 | H81: 0 | I81: 0 | J81: 0 | K81: 0 | L81: 0 | M81: =IFERROR(ROUND(-SUM(H81,L81)*'Allocation Detail'!$E$13/12,2),0) -> 0 | N81: =IFERROR(ROUND(-SUM(I81,J81,K81)*'Allocation Detail'!$E$13/12,2),0) -> 0 | O81: 0 | P81: 0 | Q81: 0 | R81: 0 | S81: 0 | T81: =IFERROR(U81*('Allocation Detail'!#REF!/'Allocation Detail'!#REF!),0) -> 0 | U81: 0 | V81: 0 | Y81: 79 | Z81: 78 | AA81: 0 | AB81: 0 | AC81: 0 | AD81: 0 | AE81: 0 | AF81: 0 | AH81: 79 | AI81: 78 | AJ81: 0 | AK81: 0 | AL81: 0 | AM81: 0 | AN81: 0 | AO81: 0 | AP81: 0 | AQ81: =IFERROR(ROUND(-SUM(AJ81,AO81)*'Allocation Detail'!$E$13/12,2),0) -> 0 | AR81: =IFERROR(ROUND(-SUM(AK81,AM81,AN81)*'Allocation Detail'!$H$13/12,2),0) -> 0 | AS81: 0 | AT81: 0 | AU81: 0 | AV81: 0 | AW81: 0 | AX81: =IFERROR(AY81*('Allocation Detail'!#REF!/'Allocation Detail'!#REF!),0) -> 0 | AY81: 0 | AZ81: 0
F82: 80 | G82: 79 | H82: 0 | I82: 0 | J82: 0 | K82: 0 | L82: 0 | M82: =IFERROR(ROUND(-SUM(H82,L82)*'Allocation Detail'!$E$13/12,2),0) -> 0 | N82: =IFERROR(ROUND(-SUM(I82,J82,K82)*'Allocation Detail'!$E$13/12,2),0) -> 0 | O82: 0 | P82: 0 | Q82: 0 | R82: 0 | S82: 0 | T82: =IFERROR(U82*('Allocation Detail'!#REF!/'Allocation Detail'!#REF!),0) -> 0 | U82: 0 | V82: 0 | Y82: 80 | Z82: 79 | AA82: 0 | AB82: 0 | AC82: 0 | AD82: 0 | AE82: 0 | AF82: 0 | AH82: 80 | AI82: 79 | AJ82: 0 | AK82: 0 | AL82: 0 | AM82: 0 | AN82: 0 | AO82: 0 | AP82: 0 | AQ82: =IFERROR(ROUND(-SUM(AJ82,AO82)*'Allocation Detail'!$E$13/12,2),0) -> 0 | AR82: =IFERROR(ROUND(-SUM(AK82,AM82,AN82)*'Allocation Detail'!$H$13/12,2),0) -> 0 | AS82: 0 | AT82: 0 | AU82: 0 | AV82: 0 | AW82: 0 | AX82: =IFERROR(AY82*('Allocation Detail'!#REF!/'Allocation Detail'!#REF!),0) -> 0 | AY82: 0 | AZ82: 0
F83: 81 | G83: 80 | H83: 0 | I83: 0 | J83: 0 | K83: 0 | L83: 0 | M83: =IFERROR(ROUND(-SUM(H83,L83)*'Allocation Detail'!$E$13/12,2),0) -> 0 | N83: =IFERROR(ROUND(-SUM(I83,J83,K83)*'Allocation Detail'!$E$13/12,2),0) -> 0 | O83: 0 | P83: 0 | Q83: 0 | R83: 0 | S83: 0 | T83: =IFERROR(U83*('Allocation Detail'!#REF!/'Allocation Detail'!#REF!),0) -> 0 | U83: 0 | V83: 0 | Y83: 81 | Z83: 80 | AA83: 0 | AB83: 0 | AC83: 0 | AD83: 0 | AE83: 0 | AF83: 0 | AH83: 81 | AI83: 80 | AJ83: 0 | AK83: 0 | AL83: 0 | AM83: 0 | AN83: 0 | AO83: 0 | AP83: 0 | AQ83: =IFERROR(ROUND(-SUM(AJ83,AO83)*'Allocation Detail'!$E$13/12,2),0) -> 0 | AR83: =IFERROR(ROUND(-SUM(AK83,AM83,AN83)*'Allocation Detail'!$H$13/12,2),0) -> 0 | AS83: 0 | AT83: 0 | AU83: 0 | AV83: 0 | AW83: 0 | AX83: =IFERROR(AY83*('Allocation Detail'!#REF!/'Allocation Detail'!#REF!),0) -> 0 | AY83: 0 | AZ83: 0
F84: 82 | G84: 81 | H84: 0 | I84: 0 | J84: 0 | K84: 0 | L84: 0 | M84: =IFERROR(ROUND(-SUM(H84,L84)*'Allocation Detail'!$E$13/12,2),0) -> 0 | N84: =IFERROR(ROUND(-SUM(I84,J84,K84)*'Allocation Detail'!$E$13/12,2),0) -> 0 | O84: 0 | P84: 0 | Q84: 0 | R84: 0 | S84: 0 | T84: =IFERROR(U84*('Allocation Detail'!#REF!/'Allocation Detail'!#REF!),0) -> 0 | U84: 0 | V84: 0 | Y84: 82 | Z84: 81 | AA84: 0 | AB84: 0 | AC84: 0 | AD84: 0 | AE84: 0 | AF84: 0 | AH84: 82 | AI84: 81 | AJ84: 0 | AK84: 0 | AL84: 0 | AM84: 0 | AN84: 0 | AO84: 0 | AP84: 0 | AQ84: =IFERROR(ROUND(-SUM(AJ84,AO84)*'Allocation Detail'!$E$13/12,2),0) -> 0 | AR84: =IFERROR(ROUND(-SUM(AK84,AM84,AN84)*'Allocation Detail'!$H$13/12,2),0) -> 0 | AS84: 0 | AT84: 0 | AU84: 0 | AV84: 0 | AW84: 0 | AX84: =IFERROR(AY84*('Allocation Detail'!#REF!/'Allocation Detail'!#REF!),0) -> 0 | AY84: 0 | AZ84: 0
F85: 83 | G85: 82 | H85: 0 | I85: 0 | J85: 0 | K85: 0 | L85: 0 | M85: =IFERROR(ROUND(-SUM(H85,L85)*'Allocation Detail'!$E$13/12,2),0) -> 0 | N85: =IFERROR(ROUND(-SUM(I85,J85,K85)*'Allocation Detail'!$E$13/12,2),0) -> 0 | O85: 0 | P85: 0 | Q85: 0 | R85: 0 | S85: 0 | T85: =IFERROR(U85*('Allocation Detail'!#REF!/'Allocation Detail'!#REF!),0) -> 0 | U85: 0 | V85: 0 | Y85: =Y84+1 -> 83 | Z85: 82 | AA85: 0 | AB85: 0 | AC85: 0 | AD85: 0 | AE85: 0 | AF85: 0 | AH85: =AH84+1 -> 83 | AI85: 82 | AJ85: 0 | AK85: 0 | AL85: 0 | AM85: 0 | AN85: 0 | AO85: 0 | AP85: 0 | AQ85: =IFERROR(ROUND(-SUM(AJ85,AO85)*'Allocation Detail'!$E$13/12,2),0) -> 0 | AR85: =IFERROR(ROUND(-SUM(AK85,AM85,AN85)*'Allocation Detail'!$H$13/12,2),0) -> 0 | AS85: 0 | AT85: 0 | AU85: 0 | AV85: 0 | AW85: 0 | AX85: =IFERROR(AY85*('Allocation Detail'!#REF!/'Allocation Detail'!#REF!),0) -> 0 | AY85: 0 | AZ85: 0
F86: 84 | G86: 83 | H86: 0 | I86: 0 | J86: 0 | K86: 0 | L86: 0 | M86: =IFERROR(ROUND(-SUM(H86,L86)*'Allocation Detail'!$E$13/12,2),0) -> 0 | N86: =IFERROR(ROUND(-SUM(I86,J86,K86)*'Allocation Detail'!$E$13/12,2),0) -> 0 | O86: 0 | P86: 0 | Q86: 0 | R86: 0 | S86: 0 | T86: =IFERROR(U86*('Allocation Detail'!#REF!/'Allocation Detail'!#REF!),0) -> 0 | U86: 0 | V86: 0 | Y86: 84 | Z86: 83 | AA86: 0 | AB86: 0 | AC86: 0 | AD86: 0 | AE86: 0 | AF86: 0 | AH86: 84 | AI86: 83 | AJ86: 0 | AK86: 0 | AL86: 0 | AM86: 0 | AN86: 0 | AO86: 0 | AP86: 0 | AQ86: =IFERROR(ROUND(-SUM(AJ86,AO86)*'Allocation Detail'!$E$13/12,2),0) -> 0 | AR86: =IFERROR(ROUND(-SUM(AK86,AM86,AN86)*'Allocation Detail'!$H$13/12,2),0) -> 0 | AS86: 0 | AT86: 0 | AU86: 0 | AV86: 0 | AW86: 0 | AX86: =IFERROR(AY86*('Allocation Detail'!#REF!/'Allocation Detail'!#REF!),0) -> 0 | AY86: 0 | AZ86: 0
F87: 85 | G87: 84 | H87: 0 | I87: 0 | J87: 0 | K87: 0 | L87: 0 | M87: =IFERROR(ROUND(-SUM(H87,L87)*'Allocation Detail'!$E$13/12,2),0) -> 0 | N87: =IFERROR(ROUND(-SUM(I87,J87,K87)*'Allocation Detail'!$E$13/12,2),0) -> 0 | O87: 0 | P87: 0 | Q87: 0 | R87: 0 | S87: 0 | T87: =IFERROR(U87*('Allocation Detail'!#REF!/'Allocation Detail'!#REF!),0) -> 0 | U87: 0 | V87: 0 | Y87: 85 | Z87: 84 | AA87: 0 | AB87: 0 | AC87: 0 | AD87: 0 | AE87: 0 | AF87: 0 | AH87: 85 | AI87: 84 | AJ87: 0 | AK87: 0 | AL87: 0 | AM87: 0 | AN87: 0 | AO87: 0 | AP87: 0 | AQ87: =IFERROR(ROUND(-SUM(AJ87,AO87)*'Allocation Detail'!$E$13/12,2),0) -> 0 | AR87: =IFERROR(ROUND(-SUM(AK87,AM87,AN87)*'Allocation Detail'!$H$13/12,2),0) -> 0 | AS87: 0 | AT87: 0 | AU87: 0 | AV87: 0 | AW87: 0 | AX87: =IFERROR(AY87*('Allocation Detail'!#REF!/'Allocation Detail'!#REF!),0) -> 0 | AY87: 0 | AZ87: 0
F88: 86 | G88: 85 | H88: 0 | I88: 0 | J88: 0 | K88: 0 | L88: 0 | M88: =IFERROR(ROUND(-SUM(H88,L88)*'Allocation Detail'!$E$13/12,2),0) -> 0 | N88: =IFERROR(ROUND(-SUM(I88,J88,K88)*'Allocation Detail'!$E$13/12,2),0) -> 0 | O88: 0 | P88: 0 | Q88: 0 | R88: 0 | S88: 0 | T88: =IFERROR(U88*('Allocation Detail'!#REF!/'Allocation Detail'!#REF!),0) -> 0 | U88: 0 | V88: 0 | Y88: 86 | Z88: 85 | AA88: 0 | AB88: 0 | AC88: 0 | AD88: 0 | AE88: 0 | AF88: 0 | AH88: 86 | AI88: 85 | AJ88: 0 | AK88: 0 | AL88: 0 | AM88: 0 | AN88: 0 | AO88: 0 | AP88: 0 | AQ88: =IFERROR(ROUND(-SUM(AJ88,AO88)*'Allocation Detail'!$E$13/12,2),0) -> 0 | AR88: =IFERROR(ROUND(-SUM(AK88,AM88,AN88)*'Allocation Detail'!$H$13/12,2),0) -> 0 | AS88: 0 | AT88: 0 | AU88: 0 | AV88: 0 | AW88: 0 | AX88: =IFERROR(AY88*('Allocation Detail'!#REF!/'Allocation Detail'!#REF!),0) -> 0 | AY88: 0 | AZ88: 0
F89: 87 | G89: 86 | H89: 0 | I89: 0 | J89: 0 | K89: 0 | L89: 0 | M89: =IFERROR(ROUND(-SUM(H89,L89)*'Allocation Detail'!$E$13/12,2),0) -> 0 | N89: =IFERROR(ROUND(-SUM(I89,J89,K89)*'Allocation Detail'!$E$13/12,2),0) -> 0 | O89: 0 | P89: 0 | Q89: 0 | R89: 0 | S89: 0 | T89: =IFERROR(U89*('Allocation Detail'!#REF!/'Allocation Detail'!#REF!),0) -> 0 | U89: 0 | V89: 0 | Y89: 87 | Z89: 86 | AA89: 0 | AB89: 0 | AC89: 0 | AD89: 0 | AE89: 0 | AF89: 0 | AH89: 87 | AI89: 86 | AJ89: 0 | AK89: 0 | AL89: 0 | AM89: 0 | AN89: 0 | AO89: 0 | AP89: 0 | AQ89: =IFERROR(ROUND(-SUM(AJ89,AO89)*'Allocation Detail'!$E$13/12,2),0) -> 0 | AR89: =IFERROR(ROUND(-SUM(AK89,AM89,AN89)*'Allocation Detail'!$H$13/12,2),0) -> 0 | AS89: 0 | AT89: 0 | AU89: 0 | AV89: 0 | AW89: 0 | AX89: =IFERROR(AY89*('Allocation Detail'!#REF!/'Allocation Detail'!#REF!),0) -> 0 | AY89: 0 | AZ89: 0
F90: 88 | G90: 87 | H90: 0 | I90: 0 | J90: 0 | K90: 0 | L90: 0 | M90: =IFERROR(ROUND(-SUM(H90,L90)*'Allocation Detail'!$E$13/12,2),0) -> 0 | N90: =IFERROR(ROUND(-SUM(I90,J90,K90)*'Allocation Detail'!$E$13/12,2),0) -> 0 | O90: 0 | P90: 0 | Q90: 0 | R90: 0 | S90: 0 | T90: =IFERROR(U90*('Allocation Detail'!#REF!/'Allocation Detail'!#REF!),0) -> 0 | U90: 0 | V90: 0 | Y90: 88 | Z90: 87 | AA90: 0 | AB90: 0 | AC90: 0 | AD90: 0 | AE90: 0 | AF90: 0 | AH90: 88 | AI90: 87 | AJ90: 0 | AK90: 0 | AL90: 0 | AM90: 0 | AN90: 0 | AO90: 0 | AP90: 0 | AQ90: =IFERROR(ROUND(-SUM(AJ90,AO90)*'Allocation Detail'!$E$13/12,2),0) -> 0 | AR90: =IFERROR(ROUND(-SUM(AK90,AM90,AN90)*'Allocation Detail'!$H$13/12,2),0) -> 0 | AS90: 0 | AT90: 0 | AU90: 0 | AV90: 0 | AW90: 0 | AX90: =IFERROR(AY90*('Allocation Detail'!#REF!/'Allocation Detail'!#REF!),0) -> 0 | AY90: 0 | AZ90: 0
F91: 89 | G91: 88 | H91: 0 | I91: 0 | J91: 0 | K91: 0 | L91: 0 | M91: =IFERROR(ROUND(-SUM(H91,L91)*'Allocation Detail'!$E$13/12,2),0) -> 0 | N91: =IFERROR(ROUND(-SUM(I91,J91,K91)*'Allocation Detail'!$E$13/12,2),0) -> 0 | O91: 0 | P91: 0 | Q91: 0 | R91: 0 | S91: 0 | T91: =IFERROR(U91*('Allocation Detail'!#REF!/'Allocation Detail'!#REF!),0) -> 0 | U91: 0 | V91: 0 | Y91: 89 | Z91: 88 | AA91: 0 | AB91: 0 | AC91: 0 | AD91: 0 | AE91: 0 | AF91: 0 | AH91: 89 | AI91: 88 | AJ91: 0 | AK91: 0 | AL91: 0 | AM91: 0 | AN91: 0 | AO91: 0 | AP91: 0 | AQ91: =IFERROR(ROUND(-SUM(AJ91,AO91)*'Allocation Detail'!$E$13/12,2),0) -> 0 | AR91: =IFERROR(ROUND(-SUM(AK91,AM91,AN91)*'Allocation Detail'!$H$13/12,2),0) -> 0 | AS91: 0 | AT91: 0 | AU91: 0 | AV91: 0 | AW91: 0 | AX91: =IFERROR(AY91*('Allocation Detail'!#REF!/'Allocation Detail'!#REF!),0) -> 0 | AY91: 0 | AZ91: 0
F92: 90 | G92: 89 | H92: 0 | I92: 0 | J92: 0 | K92: 0 | L92: 0 | M92: =IFERROR(ROUND(-SUM(H92,L92)*'Allocation Detail'!$E$13/12,2),0) -> 0 | N92: =IFERROR(ROUND(-SUM(I92,J92,K92)*'Allocation Detail'!$E$13/12,2),0) -> 0 | O92: 0 | P92: 0 | Q92: 0 | R92: 0 | S92: 0 | T92: =IFERROR(U92*('Allocation Detail'!#REF!/'Allocation Detail'!#REF!),0) -> 0 | U92: 0 | V92: 0 | Y92: 90 | Z92: 89 | AA92: 0 | AB92: 0 | AC92: 0 | AD92: 0 | AE92: 0 | AF92: 0 | AH92: 90 | AI92: 89 | AJ92: 0 | AK92: 0 | AL92: 0 | AM92: 0 | AN92: 0 | AO92: 0 | AP92: 0 | AQ92: =IFERROR(ROUND(-SUM(AJ92,AO92)*'Allocation Detail'!$E$13/12,2),0) -> 0 | AR92: =IFERROR(ROUND(-SUM(AK92,AM92,AN92)*'Allocation Detail'!$H$13/12,2),0) -> 0 | AS92: 0 | AT92: 0 | AU92: 0 | AV92: 0 | AW92: 0 | AX92: =IFERROR(AY92*('Allocation Detail'!#REF!/'Allocation Detail'!#REF!),0) -> 0 | AY92: 0 | AZ92: 0
F93: 91 | G93: 90 | H93: 0 | I93: 0 | J93: 0 | K93: 0 | L93: 0 | M93: =IFERROR(ROUND(-SUM(H93,L93)*'Allocation Detail'!$E$13/12,2),0) -> 0 | N93: =IFERROR(ROUND(-SUM(I93,J93,K93)*'Allocation Detail'!$E$13/12,2),0) -> 0 | O93: 0 | P93: 0 | Q93: 0 | R93: 0 | S93: 0 | T93: =IFERROR(U93*('Allocation Detail'!#REF!/'Allocation Detail'!#REF!),0) -> 0 | U93: 0 | V93: 0 | Y93: 91 | Z93: 90 | AA93: 0 | AB93: 0 | AC93: 0 | AD93: 0 | AE93: 0 | AF93: 0 | AH93: 91 | AI93: 90 | AJ93: 0 | AK93: 0 | AL93: 0 | AM93: 0 | AN93: 0 | AO93: 0 | AP93: 0 | AQ93: =IFERROR(ROUND(-SUM(AJ93,AO93)*'Allocation Detail'!$E$13/12,2),0) -> 0 | AR93: =IFERROR(ROUND(-SUM(AK93,AM93,AN93)*'Allocation Detail'!$H$13/12,2),0) -> 0 | AS93: 0 | AT93: 0 | AU93: 0 | AV93: 0 | AW93: 0 | AX93: =IFERROR(AY93*('Allocation Detail'!#REF!/'Allocation Detail'!#REF!),0) -> 0 | AY93: 0 | AZ93: 0
F94: 92 | G94: 91 | H94: 0 | I94: 0 | J94: 0 | K94: 0 | L94: 0 | M94: =IFERROR(ROUND(-SUM(H94,L94)*'Allocation Detail'!$E$13/12,2),0) -> 0 | N94: =IFERROR(ROUND(-SUM(I94,J94,K94)*'Allocation Detail'!$E$13/12,2),0) -> 0 | O94: 0 | P94: 0 | Q94: 0 | R94: 0 | S94: 0 | T94: =IFERROR(U94*('Allocation Detail'!#REF!/'Allocation Detail'!#REF!),0) -> 0 | U94: 0 | V94: 0 | Y94: 92 | Z94: 91 | AA94: 0 | AB94: 0 | AC94: 0 | AD94: 0 | AE94: 0 | AF94: 0 | AH94: 92 | AI94: 91 | AJ94: 0 | AK94: 0 | AL94: 0 | AM94: 0 | AN94: 0 | AO94: 0 | AP94: 0 | AQ94: =IFERROR(ROUND(-SUM(AJ94,AO94)*'Allocation Detail'!$E$13/12,2),0) -> 0 | AR94: =IFERROR(ROUND(-SUM(AK94,AM94,AN94)*'Allocation Detail'!$H$13/12,2),0) -> 0 | AS94: 0 | AT94: 0 | AU94: 0 | AV94: 0 | AW94: 0 | AX94: =IFERROR(AY94*('Allocation Detail'!#REF!/'Allocation Detail'!#REF!),0) -> 0 | AY94: 0 | AZ94: 0
F95: 93 | G95: 92 | H95: 0 | I95: 0 | J95: 0 | K95: 0 | L95: 0 | M95: =IFERROR(ROUND(-SUM(H95,L95)*'Allocation Detail'!$E$13/12,2),0) -> 0 | N95: =IFERROR(ROUND(-SUM(I95,J95,K95)*'Allocation Detail'!$E$13/12,2),0) -> 0 | O95: 0 | P95: 0 | Q95: 0 | R95: 0 | S95: 0 | T95: =IFERROR(U95*('Allocation Detail'!#REF!/'Allocation Detail'!#REF!),0) -> 0 | U95: 0 | V95: 0 | Y95: 93 | Z95: 92 | AA95: 0 | AB95: 0 | AC95: 0 | AD95: 0 | AE95: 0 | AF95: 0 | AH95: 93 | AI95: 92 | AJ95: 0 | AK95: 0 | AL95: 0 | AM95: 0 | AN95: 0 | AO95: 0 | AP95: 0 | AQ95: =IFERROR(ROUND(-SUM(AJ95,AO95)*'Allocation Detail'!$E$13/12,2),0) -> 0 | AR95: =IFERROR(ROUND(-SUM(AK95,AM95,AN95)*'Allocation Detail'!$H$13/12,2),0) -> 0 | AS95: 0 | AT95: 0 | AU95: 0 | AV95: 0 | AW95: 0 | AX95: =IFERROR(AY95*('Allocation Detail'!#REF!/'Allocation Detail'!#REF!),0) -> 0 | AY95: 0 | AZ95: 0
F96: 94 | G96: 93 | H96: 0 | I96: 0 | J96: 0 | K96: 0 | L96: 0 | M96: =IFERROR(ROUND(-SUM(H96,L96)*'Allocation Detail'!$E$13/12,2),0) -> 0 | N96: =IFERROR(ROUND(-SUM(I96,J96,K96)*'Allocation Detail'!$E$13/12,2),0) -> 0 | O96: 0 | P96: 0 | Q96: 0 | R96: 0 | S96: 0 | T96: =IFERROR(U96*('Allocation Detail'!#REF!/'Allocation Detail'!#REF!),0) -> 0 | U96: 0 | V96: 0 | Y96: 94 | Z96: 93 | AA96: 0 | AB96: 0 | AC96: 0 | AD96: 0 | AE96: 0 | AF96: 0 | AH96: 94 | AI96: 93 | AJ96: 0 | AK96: 0 | AL96: 0 | AM96: 0 | AN96: 0 | AO96: 0 | AP96: 0 | AQ96: =IFERROR(ROUND(-SUM(AJ96,AO96)*'Allocation Detail'!$E$13/12,2),0) -> 0 | AR96: =IFERROR(ROUND(-SUM(AK96,AM96,AN96)*'Allocation Detail'!$H$13/12,2),0) -> 0 | AS96: 0 | AT96: 0 | AU96: 0 | AV96: 0 | AW96: 0 | AX96: =IFERROR(AY96*('Allocation Detail'!#REF!/'Allocation Detail'!#REF!),0) -> 0 | AY96: 0 | AZ96: 0
F97: 95 | G97: 94 | H97: 0 | I97: 0 | J97: 0 | K97: 0 | L97: 0 | M97: =IFERROR(ROUND(-SUM(H97,L97)*'Allocation Detail'!$E$13/12,2),0) -> 0 | N97: =IFERROR(ROUND(-SUM(I97,J97,K97)*'Allocation Detail'!$E$13/12,2),0) -> 0 | O97: 0 | P97: 0 | Q97: 0 | R97: 0 | S97: 0 | T97: =IFERROR(U97*('Allocation Detail'!#REF!/'Allocation Detail'!#REF!),0) -> 0 | U97: 0 | V97: 0 | Y97: 95 | Z97: 94 | AA97: 0 | AB97: 0 | AC97: 0 | AD97: 0 | AE97: 0 | AF97: 0 | AH97: 95 | AI97: 94 | AJ97: 0 | AK97: 0 | AL97: 0 | AM97: 0 | AN97: 0 | AO97: 0 | AP97: 0 | AQ97: =IFERROR(ROUND(-SUM(AJ97,AO97)*'Allocation Detail'!$E$13/12,2),0) -> 0 | AR97: =IFERROR(ROUND(-SUM(AK97,AM97,AN97)*'Allocation Detail'!$H$13/12,2),0) -> 0 | AS97: 0 | AT97: 0 | AU97: 0 | AV97: 0 | AW97: 0 | AX97: =IFERROR(AY97*('Allocation Detail'!#REF!/'Allocation Detail'!#REF!),0) -> 0 | AY97: 0 | AZ97: 0
F98: 96 | G98: 95 | H98: 0 | I98: 0 | J98: 0 | K98: 0 | L98: 0 | M98: =IFERROR(ROUND(-SUM(H98,L98)*'Allocation Detail'!$E$13/12,2),0) -> 0 | N98: =IFERROR(ROUND(-SUM(I98,J98,K98)*'Allocation Detail'!$E$13/12,2),0) -> 0 | O98: 0 | P98: 0 | Q98: 0 | R98: 0 | S98: 0 | T98: =IFERROR(U98*('Allocation Detail'!#REF!/'Allocation Detail'!#REF!),0) -> 0 | U98: 0 | V98: 0 | Y98: 96 | Z98: 95 | AA98: 0 | AB98: 0 | AC98: 0 | AD98: 0 | AE98: 0 | AF98: 0 | AH98: 96 | AI98: 95 | AJ98: 0 | AK98: 0 | AL98: 0 | AM98: 0 | AN98: 0 | AO98: 0 | AP98: 0 | AQ98: =IFERROR(ROUND(-SUM(AJ98,AO98)*'Allocation Detail'!$E$13/12,2),0) -> 0 | AR98: =IFERROR(ROUND(-SUM(AK98,AM98,AN98)*'Allocation Detail'!$H$13/12,2),0) -> 0 | AS98: 0 | AT98: 0 | AU98: 0 | AV98: 0 | AW98: 0 | AX98: =IFERROR(AY98*('Allocation Detail'!#REF!/'Allocation Detail'!#REF!),0) -> 0 | AY98: 0 | AZ98: 0
F99: 97 | G99: 96 | H99: 0 | I99: 0 | J99: =IF(G99/$D$16-INT(G99/$D$16)=0,ROUND($D$19*$D$20*((1+$D$17)^INT(G99/12)),2),0) -> 0 | K99: 0 | L99: =ROUND(H99*((1+$B$45)^(1/12)-1),2) -> 0 | M99: =IFERROR(ROUND(-SUM(H99,L99)*'Allocation Detail'!$E$13/12,2),0) -> 0 | N99: =IFERROR(ROUND(-SUM(I99,J99,K99)*'Allocation Detail'!$E$13/12,2),0) -> 0 | O99: 0 | P99: 0 | Q99: 0 | R99: 0 | S99: 0 | T99: =IFERROR(U99*('Allocation Detail'!#REF!/'Allocation Detail'!#REF!),0) -> 0 | U99: =IF($D$39="",0,MAX(-IF($D$41="",0,IF((G99/$D$41)-INT(G99/$D$41)=0,$D$39*((1+$D$42)^INT(G99/12)),0)),-S99)) -> 0 | V99: 0 | Y99: 97 | Z99: 96 | AA99: 0 | AB99: =IF(G99/$D$16-INT(G99/$D$16)=0,ROUND($D$14*((1+$D$17)^INT(G99/12)),2),0) -> 0 | AC99: 0 | AD99: =MAX(-IF($D$41="",0,IF((Z99/$D$41)-INT(Z99/$D$41)=0,$D$39*((1+$D$42)^INT(Z99/12)),0)),-SUM(AA99,AB99,AC99)) -> 0 | AE99: 0 | AF99: 0 | AH99: 97 | AI99: 96 | AJ99: 0 | AK99: 0 | AL99: =SUM(AJ99:AK99) -> 0 | AM99: =IF(AI99/$D$16-INT(AI99/$D$16)=0,ROUND($D$14*$D$20*((1+$D$17)^INT(AI99/12)),2),0) -> 0 | AN99: 0 | AO99: =ROUND(AJ99*BA$2,2) -> 0 | AP99: =SUM(AO99:AO99) -> 0 | AQ99: =IFERROR(ROUND(-SUM(AJ99,AO99)*'Allocation Detail'!$E$13/12,2),0) -> 0 | AR99: =IFERROR(ROUND(-SUM(AK99,AM99,AN99)*'Allocation Detail'!$H$13/12,2),0) -> 0 | AS99: 0 | AT99: 0 | AU99: 0 | AV99: 0 | AW99: 0 | AX99: =IFERROR(AY99*('Allocation Detail'!#REF!/'Allocation Detail'!#REF!),0) -> 0 | AY99: =IF($D$39="",0,MAX(-IF($D$41="",0,IF((AI99/$D$41)-INT(AI99/$D$41)=0,$D$39*((1+$D$42)^INT(AI99/12)),0)),-AW99)) -> 0 | AZ99: 0
F100: 98 | G100: 97 | H100: =ROUND(SUM(H99,L99,M99,O99,T99),2) -> 0 | I100: =SUM(I99,J99,K99,N99,P99) -> 0 | J100: 0 | K100: =ROUND((J100+I100)*((1+$B$45)^(1/12)-1),2) -> 0 | L100: 0 | M100: =IFERROR(ROUND(-SUM(H100,L100)*'Allocation Detail'!$E$13/12,2),0) -> 0 | N100: =IFERROR(ROUND(-SUM(I100,J100,K100)*'Allocation Detail'!$E$13/12,2),0) -> 0 | O100: 0 | P100: 0 | Q100: 0 | R100: 0 | S100: 0 | T100: =IFERROR(U100*('Allocation Detail'!#REF!/'Allocation Detail'!#REF!),0) -> 0 | U100: 0 | V100: =IF(OR($D$8=0,$D$39=0,$D$8="",$D$39=""),S100+R100,MAX(R99+S100+U100,0)) -> 0 | Y100: 98 | Z100: 97 | AA100: 0 | AB100: 0 | AC100: 0 | AD100: 0 | AE100: 0 | AF100: 0 | AH100: 98 | AI100: 97 | AJ100: =ROUND(SUM(AJ99,AO99,AQ99,AS99,AX99),2) -> 0 | AK100: =SUM(AK99,AM99,AN99,AR99,AT99) -> 0 | AL100: 0 | AM100: 0 | AN100: =ROUND((AM100+AK100)*BA$2,2) -> 0 | AO100: 0 | AP100: 0 | AQ100: =IFERROR(ROUND(-SUM(AJ100,AO100)*'Allocation Detail'!$E$13/12,2),0) -> 0 | AR100: =IFERROR(ROUND(-SUM(AK100,AM100,AN100)*'Allocation Detail'!$H$13/12,2),0) -> 0 | AS100: 0 | AT100: 0 | AU100: 0 | AV100: 0 | AW100: 0 | AX100: =IFERROR(AY100*('Allocation Detail'!#REF!/'Allocation Detail'!#REF!),0) -> 0 | AY100: 0 | AZ100: =IF(OR($D$8=0,$D$39=0,$D$8="",$D$39=""),AW100+AV100,MAX(AV99+AW100+AY100,0)) -> 0
F101: 99 | G101: 98 | H101: 0 | I101: 0 | J101: 0 | K101: 0 | L101: 0 | M101: =IFERROR(ROUND(-SUM(H101,L101)*'Allocation Detail'!$E$13/12,2),0) -> 0 | N101: =IFERROR(ROUND(-SUM(I101,J101,K101)*'Allocation Detail'!$E$13/12,2),0) -> 0 | O101: 0 | P101: 0 | Q101: 0 | R101: 0 | S101: 0 | T101: =IFERROR(U101*('Allocation Detail'!#REF!/'Allocation Detail'!#REF!),0) -> 0 | U101: 0 | V101: 0 | Y101: =Y100+1 -> 99 | Z101: 98 | AA101: 0 | AB101: 0 | AC101: 0 | AD101: 0 | AE101: 0 | AF101: 0 | AH101: =AH100+1 -> 99 | AI101: 98 | AJ101: 0 | AK101: 0 | AL101: 0 | AM101: 0 | AN101: 0 | AO101: 0 | AP101: 0 | AQ101: =IFERROR(ROUND(-SUM(AJ101,AO101)*'Allocation Detail'!$E$13/12,2),0) -> 0 | AR101: =IFERROR(ROUND(-SUM(AK101,AM101,AN101)*'Allocation Detail'!$H$13/12,2),0) -> 0 | AS101: 0 | AT101: 0 | AU101: 0 | AV101: 0 | AW101: 0 | AX101: =IFERROR(AY101*('Allocation Detail'!#REF!/'Allocation Detail'!#REF!),0) -> 0 | AY101: 0 | AZ101: 0
F102: 100 | G102: 99 | H102: 0 | I102: 0 | J102: 0 | K102: 0 | L102: 0 | M102: =IFERROR(ROUND(-SUM(H102,L102)*'Allocation Detail'!$E$13/12,2),0) -> 0 | N102: =IFERROR(ROUND(-SUM(I102,J102,K102)*'Allocation Detail'!$E$13/12,2),0) -> 0 | O102: 0 | P102: 0 | Q102: 0 | R102: 0 | S102: 0 | T102: =IFERROR(U102*('Allocation Detail'!#REF!/'Allocation Detail'!#REF!),0) -> 0 | U102: 0 | V102: 0 | Y102: 100 | Z102: 99 | AA102: 0 | AB102: 0 | AC102: 0 | AD102: 0 | AE102: 0 | AF102: 0 | AH102: 100 | AI102: 99 | AJ102: 0 | AK102: 0 | AL102: 0 | AM102: 0 | AN102: 0 | AO102: 0 | AP102: 0 | AQ102: =IFERROR(ROUND(-SUM(AJ102,AO102)*'Allocation Detail'!$E$13/12,2),0) -> 0 | AR102: =IFERROR(ROUND(-SUM(AK102,AM102,AN102)*'Allocation Detail'!$H$13/12,2),0) -> 0 | AS102: 0 | AT102: 0 | AU102: 0 | AV102: 0 | AW102: 0 | AX102: =IFERROR(AY102*('Allocation Detail'!#REF!/'Allocation Detail'!#REF!),0) -> 0 | AY102: 0 | AZ102: 0
F103: 101 | G103: 100 | H103: 0 | I103: 0 | J103: 0 | K103: 0 | L103: 0 | M103: =IFERROR(ROUND(-SUM(H103,L103)*'Allocation Detail'!$E$13/12,2),0) -> 0 | N103: =IFERROR(ROUND(-SUM(I103,J103,K103)*'Allocation Detail'!$E$13/12,2),0) -> 0 | O103: 0 | P103: 0 | Q103: 0 | R103: 0 | S103: 0 | T103: =IFERROR(U103*('Allocation Detail'!#REF!/'Allocation Detail'!#REF!),0) -> 0 | U103: 0 | V103: 0 | Y103: 101 | Z103: 100 | AA103: 0 | AB103: 0 | AC103: 0 | AD103: 0 | AE103: 0 | AF103: 0 | AH103: 101 | AI103: 100 | AJ103: 0 | AK103: 0 | AL103: 0 | AM103: 0 | AN103: 0 | AO103: 0 | AP103: 0 | AQ103: =IFERROR(ROUND(-SUM(AJ103,AO103)*'Allocation Detail'!$E$13/12,2),0) -> 0 | AR103: =IFERROR(ROUND(-SUM(AK103,AM103,AN103)*'Allocation Detail'!$H$13/12,2),0) -> 0 | AS103: 0 | AT103: 0 | AU103: 0 | AV103: 0 | AW103: 0 | AX103: =IFERROR(AY103*('Allocation Detail'!#REF!/'Allocation Detail'!#REF!),0) -> 0 | AY103: 0 | AZ103: 0
F104: 102 | G104: 101 | H104: 0 | I104: 0 | J104: 0 | K104: 0 | L104: 0 | M104: =IFERROR(ROUND(-SUM(H104,L104)*'Allocation Detail'!$E$13/12,2),0) -> 0 | N104: =IFERROR(ROUND(-SUM(I104,J104,K104)*'Allocation Detail'!$E$13/12,2),0) -> 0 | O104: 0 | P104: 0 | Q104: 0 | R104: 0 | S104: 0 | T104: =IFERROR(U104*('Allocation Detail'!#REF!/'Allocation Detail'!#REF!),0) -> 0 | U104: 0 | V104: 0 | Y104: 102 | Z104: 101 | AA104: 0 | AB104: 0 | AC104: 0 | AD104: 0 | AE104: 0 | AF104: 0 | AH104: 102 | AI104: 101 | AJ104: 0 | AK104: 0 | AL104: 0 | AM104: 0 | AN104: 0 | AO104: 0 | AP104: 0 | AQ104: =IFERROR(ROUND(-SUM(AJ104,AO104)*'Allocation Detail'!$E$13/12,2),0) -> 0 | AR104: =IFERROR(ROUND(-SUM(AK104,AM104,AN104)*'Allocation Detail'!$H$13/12,2),0) -> 0 | AS104: 0 | AT104: 0 | AU104: 0 | AV104: 0 | AW104: 0 | AX104: =IFERROR(AY104*('Allocation Detail'!#REF!/'Allocation Detail'!#REF!),0) -> 0 | AY104: 0 | AZ104: 0
F105: 103 | G105: 102 | H105: 0 | I105: 0 | J105: 0 | K105: 0 | L105: 0 | M105: =IFERROR(ROUND(-SUM(H105,L105)*'Allocation Detail'!$E$13/12,2),0) -> 0 | N105: =IFERROR(ROUND(-SUM(I105,J105,K105)*'Allocation Detail'!$E$13/12,2),0) -> 0 | O105: 0 | P105: 0 | Q105: 0 | R105: 0 | S105: 0 | T105: =IFERROR(U105*('Allocation Detail'!#REF!/'Allocation Detail'!#REF!),0) -> 0 | U105: 0 | V105: 0 | Y105: 103 | Z105: 102 | AA105: 0 | AB105: 0 | AC105: 0 | AD105: 0 | AE105: 0 | AF105: 0 | AH105: 103 | AI105: 102 | AJ105: 0 | AK105: 0 | AL105: 0 | AM105: 0 | AN105: 0 | AO105: 0 | AP105: 0 | AQ105: =IFERROR(ROUND(-SUM(AJ105,AO105)*'Allocation Detail'!$E$13/12,2),0) -> 0 | AR105: =IFERROR(ROUND(-SUM(AK105,AM105,AN105)*'Allocation Detail'!$H$13/12,2),0) -> 0 | AS105: 0 | AT105: 0 | AU105: 0 | AV105: 0 | AW105: 0 | AX105: =IFERROR(AY105*('Allocation Detail'!#REF!/'Allocation Detail'!#REF!),0) -> 0 | AY105: 0 | AZ105: 0
F106: 104 | G106: 103 | H106: 0 | I106: 0 | J106: 0 | K106: 0 | L106: 0 | M106: =IFERROR(ROUND(-SUM(H106,L106)*'Allocation Detail'!$E$13/12,2),0) -> 0 | N106: =IFERROR(ROUND(-SUM(I106,J106,K106)*'Allocation Detail'!$E$13/12,2),0) -> 0 | O106: 0 | P106: 0 | Q106: 0 | R106: 0 | S106: 0 | T106: =IFERROR(U106*('Allocation Detail'!#REF!/'Allocation Detail'!#REF!),0) -> 0 | U106: 0 | V106: 0 | Y106: 104 | Z106: 103 | AA106: 0 | AB106: 0 | AC106: 0 | AD106: 0 | AE106: 0 | AF106: 0 | AH106: 104 | AI106: 103 | AJ106: 0 | AK106: 0 | AL106: 0 | AM106: 0 | AN106: 0 | AO106: 0 | AP106: 0 | AQ106: =IFERROR(ROUND(-SUM(AJ106,AO106)*'Allocation Detail'!$E$13/12,2),0) -> 0 | AR106: =IFERROR(ROUND(-SUM(AK106,AM106,AN106)*'Allocation Detail'!$H$13/12,2),0) -> 0 | AS106: 0 | AT106: 0 | AU106: 0 | AV106: 0 | AW106: 0 | AX106: =IFERROR(AY106*('Allocation Detail'!#REF!/'Allocation Detail'!#REF!),0) -> 0 | AY106: 0 | AZ106: 0
F107: 105 | G107: 104 | H107: 0 | I107: 0 | J107: 0 | K107: 0 | L107: 0 | M107: =IFERROR(ROUND(-SUM(H107,L107)*'Allocation Detail'!$E$13/12,2),0) -> 0 | N107: =IFERROR(ROUND(-SUM(I107,J107,K107)*'Allocation Detail'!$E$13/12,2),0) -> 0 | O107: 0 | P107: 0 | Q107: 0 | R107: 0 | S107: 0 | T107: =IFERROR(U107*('Allocation Detail'!#REF!/'Allocation Detail'!#REF!),0) -> 0 | U107: 0 | V107: 0 | Y107: 105 | Z107: 104 | AA107: 0 | AB107: 0 | AC107: 0 | AD107: 0 | AE107: 0 | AF107: 0 | AH107: 105 | AI107: 104 | AJ107: 0 | AK107: 0 | AL107: 0 | AM107: 0 | AN107: 0 | AO107: 0 | AP107: 0 | AQ107: =IFERROR(ROUND(-SUM(AJ107,AO107)*'Allocation Detail'!$E$13/12,2),0) -> 0 | AR107: =IFERROR(ROUND(-SUM(AK107,AM107,AN107)*'Allocation Detail'!$H$13/12,2),0) -> 0 | AS107: 0 | AT107: 0 | AU107: 0 | AV107: 0 | AW107: 0 | AX107: =IFERROR(AY107*('Allocation Detail'!#REF!/'Allocation Detail'!#REF!),0) -> 0 | AY107: 0 | AZ107: 0
F108: 106 | G108: 105 | H108: 0 | I108: 0 | J108: 0 | K108: 0 | L108: 0 | M108: =IFERROR(ROUND(-SUM(H108,L108)*'Allocation Detail'!$E$13/12,2),0) -> 0 | N108: =IFERROR(ROUND(-SUM(I108,J108,K108)*'Allocation Detail'!$E$13/12,2),0) -> 0 | O108: 0 | P108: 0 | Q108: 0 | R108: 0 | S108: 0 | T108: =IFERROR(U108*('Allocation Detail'!#REF!/'Allocation Detail'!#REF!),0) -> 0 | U108: 0 | V108: 0 | Y108: 106 | Z108: 105 | AA108: 0 | AB108: 0 | AC108: 0 | AD108: 0 | AE108: 0 | AF108: 0 | AH108: 106 | AI108: 105 | AJ108: 0 | AK108: 0 | AL108: 0 | AM108: 0 | AN108: 0 | AO108: 0 | AP108: 0 | AQ108: =IFERROR(ROUND(-SUM(AJ108,AO108)*'Allocation Detail'!$E$13/12,2),0) -> 0 | AR108: =IFERROR(ROUND(-SUM(AK108,AM108,AN108)*'Allocation Detail'!$H$13/12,2),0) -> 0 | AS108: 0 | AT108: 0 | AU108: 0 | AV108: 0 | AW108: 0 | AX108: =IFERROR(AY108*('Allocation Detail'!#REF!/'Allocation Detail'!#REF!),0) -> 0 | AY108: 0 | AZ108: 0
F109: 107 | G109: 106 | H109: 0 | I109: 0 | J109: 0 | K109: 0 | L109: 0 | M109: =IFERROR(ROUND(-SUM(H109,L109)*'Allocation Detail'!$E$13/12,2),0) -> 0 | N109: =IFERROR(ROUND(-SUM(I109,J109,K109)*'Allocation Detail'!$E$13/12,2),0) -> 0 | O109: 0 | P109: 0 | Q109: 0 | R109: 0 | S109: 0 | T109: =IFERROR(U109*('Allocation Detail'!#REF!/'Allocation Detail'!#REF!),0) -> 0 | U109: 0 | V109: 0 | Y109: 107 | Z109: 106 | AA109: 0 | AB109: 0 | AC109: 0 | AD109: 0 | AE109: 0 | AF109: 0 | AH109: 107 | AI109: 106 | AJ109: 0 | AK109: 0 | AL109: 0 | AM109: 0 | AN109: 0 | AO109: 0 | AP109: 0 | AQ109: =IFERROR(ROUND(-SUM(AJ109,AO109)*'Allocation Detail'!$E$13/12,2),0) -> 0 | AR109: =IFERROR(ROUND(-SUM(AK109,AM109,AN109)*'Allocation Detail'!$H$13/12,2),0) -> 0 | AS109: 0 | AT109: 0 | AU109: 0 | AV109: 0 | AW109: 0 | AX109: =IFERROR(AY109*('Allocation Detail'!#REF!/'Allocation Detail'!#REF!),0) -> 0 | AY109: 0 | AZ109: 0
F110: 108 | G110: 107 | H110: 0 | I110: 0 | J110: 0 | K110: 0 | L110: 0 | M110: =IFERROR(ROUND(-SUM(H110,L110)*'Allocation Detail'!$E$13/12,2),0) -> 0 | N110: =IFERROR(ROUND(-SUM(I110,J110,K110)*'Allocation Detail'!$E$13/12,2),0) -> 0 | O110: 0 | P110: 0 | Q110: 0 | R110: 0 | S110: 0 | T110: =IFERROR(U110*('Allocation Detail'!#REF!/'Allocation Detail'!#REF!),0) -> 0 | U110: 0 | V110: 0 | Y110: 108 | Z110: 107 | AA110: 0 | AB110: 0 | AC110: 0 | AD110: 0 | AE110: 0 | AF110: 0 | AH110: 108 | AI110: 107 | AJ110: 0 | AK110: 0 | AL110: 0 | AM110: 0 | AN110: 0 | AO110: 0 | AP110: 0 | AQ110: =IFERROR(ROUND(-SUM(AJ110,AO110)*'Allocation Detail'!$E$13/12,2),0) -> 0 | AR110: =IFERROR(ROUND(-SUM(AK110,AM110,AN110)*'Allocation Detail'!$H$13/12,2),0) -> 0 | AS110: 0 | AT110: 0 | AU110: 0 | AV110: 0 | AW110: 0 | AX110: =IFERROR(AY110*('Allocation Detail'!#REF!/'Allocation Detail'!#REF!),0) -> 0 | AY110: 0 | AZ110: 0
F111: 109 | G111: 108 | H111: 0 | I111: 0 | J111: 0 | K111: 0 | L111: 0 | M111: =IFERROR(ROUND(-SUM(H111,L111)*'Allocation Detail'!$E$13/12,2),0) -> 0 | N111: =IFERROR(ROUND(-SUM(I111,J111,K111)*'Allocation Detail'!$E$13/12,2),0) -> 0 | O111: 0 | P111: 0 | Q111: 0 | R111: 0 | S111: 0 | T111: =IFERROR(U111*('Allocation Detail'!#REF!/'Allocation Detail'!#REF!),0) -> 0 | U111: 0 | V111: 0 | Y111: 109 | Z111: 108 | AA111: 0 | AB111: 0 | AC111: 0 | AD111: 0 | AE111: 0 | AF111: 0 | AH111: 109 | AI111: 108 | AJ111: 0 | AK111: 0 | AL111: 0 | AM111: 0 | AN111: 0 | AO111: 0 | AP111: 0 | AQ111: =IFERROR(ROUND(-SUM(AJ111,AO111)*'Allocation Detail'!$E$13/12,2),0) -> 0 | AR111: =IFERROR(ROUND(-SUM(AK111,AM111,AN111)*'Allocation Detail'!$H$13/12,2),0) -> 0 | AS111: 0 | AT111: 0 | AU111: 0 | AV111: 0 | AW111: 0 | AX111: =IFERROR(AY111*('Allocation Detail'!#REF!/'Allocation Detail'!#REF!),0) -> 0 | AY111: 0 | AZ111: 0
F112: 110 | G112: 109 | H112: 0 | I112: 0 | J112: 0 | K112: 0 | L112: 0 | M112: =IFERROR(ROUND(-SUM(H112,L112)*'Allocation Detail'!$E$13/12,2),0) -> 0 | N112: =IFERROR(ROUND(-SUM(I112,J112,K112)*'Allocation Detail'!$E$13/12,2),0) -> 0 | O112: 0 | P112: 0 | Q112: 0 | R112: 0 | S112: 0 | T112: =IFERROR(U112*('Allocation Detail'!#REF!/'Allocation Detail'!#REF!),0) -> 0 | U112: 0 | V112: 0 | Y112: 110 | Z112: 109 | AA112: 0 | AB112: 0 | AC112: 0 | AD112: 0 | AE112: 0 | AF112: 0 | AH112: 110 | AI112: 109 | AJ112: 0 | AK112: 0 | AL112: 0 | AM112: 0 | AN112: 0 | AO112: 0 | AP112: 0 | AQ112: =IFERROR(ROUND(-SUM(AJ112,AO112)*'Allocation Detail'!$E$13/12,2),0) -> 0 | AR112: =IFERROR(ROUND(-SUM(AK112,AM112,AN112)*'Allocation Detail'!$H$13/12,2),0) -> 0 | AS112: 0 | AT112: 0 | AU112: 0 | AV112: 0 | AW112: 0 | AX112: =IFERROR(AY112*('Allocation Detail'!#REF!/'Allocation Detail'!#REF!),0) -> 0 | AY112: 0 | AZ112: 0
F113: 111 | G113: 110 | H113: 0 | I113: 0 | J113: 0 | K113: 0 | L113: 0 | M113: =IFERROR(ROUND(-SUM(H113,L113)*'Allocation Detail'!$E$13/12,2),0) -> 0 | N113: =IFERROR(ROUND(-SUM(I113,J113,K113)*'Allocation Detail'!$E$13/12,2),0) -> 0 | O113: 0 | P113: 0 | Q113: 0 | R113: 0 | S113: 0 | T113: =IFERROR(U113*('Allocation Detail'!#REF!/'Allocation Detail'!#REF!),0) -> 0 | U113: 0 | V113: 0 | Y113: 111 | Z113: 110 | AA113: 0 | AB113: 0 | AC113: 0 | AD113: 0 | AE113: 0 | AF113: 0 | AH113: 111 | AI113: 110 | AJ113: 0 | AK113: 0 | AL113: 0 | AM113: 0 | AN113: 0 | AO113: 0 | AP113: 0 | AQ113: =IFERROR(ROUND(-SUM(AJ113,AO113)*'Allocation Detail'!$E$13/12,2),0) -> 0 | AR113: =IFERROR(ROUND(-SUM(AK113,AM113,AN113)*'Allocation Detail'!$H$13/12,2),0) -> 0 | AS113: 0 | AT113: 0 | AU113: 0 | AV113: 0 | AW113: 0 | AX113: =IFERROR(AY113*('Allocation Detail'!#REF!/'Allocation Detail'!#REF!),0) -> 0 | AY113: 0 | AZ113: 0
F114: 112 | G114: 111 | H114: 0 | I114: 0 | J114: 0 | K114: 0 | L114: 0 | M114: =IFERROR(ROUND(-SUM(H114,L114)*'Allocation Detail'!$E$13/12,2),0) -> 0 | N114: =IFERROR(ROUND(-SUM(I114,J114,K114)*'Allocation Detail'!$E$13/12,2),0) -> 0 | O114: 0 | P114: 0 | Q114: 0 | R114: 0 | S114: 0 | T114: =IFERROR(U114*('Allocation Detail'!#REF!/'Allocation Detail'!#REF!),0) -> 0 | U114: 0 | V114: 0 | Y114: 112 | Z114: 111 | AA114: 0 | AB114: 0 | AC114: 0 | AD114: 0 | AE114: 0 | AF114: 0 | AH114: 112 | AI114: 111 | AJ114: 0 | AK114: 0 | AL114: 0 | AM114: 0 | AN114: 0 | AO114: 0 | AP114: 0 | AQ114: =IFERROR(ROUND(-SUM(AJ114,AO114)*'Allocation Detail'!$E$13/12,2),0) -> 0 | AR114: =IFERROR(ROUND(-SUM(AK114,AM114,AN114)*'Allocation Detail'!$H$13/12,2),0) -> 0 | AS114: 0 | AT114: 0 | AU114: 0 | AV114: 0 | AW114: 0 | AX114: =IFERROR(AY114*('Allocation Detail'!#REF!/'Allocation Detail'!#REF!),0) -> 0 | AY114: 0 | AZ114: 0
F115: 113 | G115: 112 | H115: 0 | I115: 0 | J115: 0 | K115: 0 | L115: 0 | M115: =IFERROR(ROUND(-SUM(H115,L115)*'Allocation Detail'!$E$13/12,2),0) -> 0 | N115: =IFERROR(ROUND(-SUM(I115,J115,K115)*'Allocation Detail'!$E$13/12,2),0) -> 0 | O115: 0 | P115: 0 | Q115: 0 | R115: 0 | S115: 0 | T115: =IFERROR(U115*('Allocation Detail'!#REF!/'Allocation Detail'!#REF!),0) -> 0 | U115: 0 | V115: 0 | Y115: 113 | Z115: 112 | AA115: 0 | AB115: 0 | AC115: 0 | AD115: 0 | AE115: 0 | AF115: 0 | AH115: 113 | AI115: 112 | AJ115: 0 | AK115: 0 | AL115: 0 | AM115: 0 | AN115: 0 | AO115: 0 | AP115: 0 | AQ115: =IFERROR(ROUND(-SUM(AJ115,AO115)*'Allocation Detail'!$E$13/12,2),0) -> 0 | AR115: =IFERROR(ROUND(-SUM(AK115,AM115,AN115)*'Allocation Detail'!$H$13/12,2),0) -> 0 | AS115: 0 | AT115: 0 | AU115: 0 | AV115: 0 | AW115: 0 | AX115: =IFERROR(AY115*('Allocation Detail'!#REF!/'Allocation Detail'!#REF!),0) -> 0 | AY115: 0 | AZ115: 0
F116: 114 | G116: 113 | H116: 0 | I116: 0 | J116: 0 | K116: 0 | L116: 0 | M116: =IFERROR(ROUND(-SUM(H116,L116)*'Allocation Detail'!$E$13/12,2),0) -> 0 | N116: =IFERROR(ROUND(-SUM(I116,J116,K116)*'Allocation Detail'!$E$13/12,2),0) -> 0 | O116: 0 | P116: 0 | Q116: 0 | R116: 0 | S116: 0 | T116: =IFERROR(U116*('Allocation Detail'!#REF!/'Allocation Detail'!#REF!),0) -> 0 | U116: 0 | V116: 0 | Y116: 114 | Z116: 113 | AA116: 0 | AB116: 0 | AC116: 0 | AD116: 0 | AE116: 0 | AF116: 0 | AH116: 114 | AI116: 113 | AJ116: 0 | AK116: 0 | AL116: 0 | AM116: 0 | AN116: 0 | AO116: 0 | AP116: 0 | AQ116: =IFERROR(ROUND(-SUM(AJ116,AO116)*'Allocation Detail'!$E$13/12,2),0) -> 0 | AR116: =IFERROR(ROUND(-SUM(AK116,AM116,AN116)*'Allocation Detail'!$H$13/12,2),0) -> 0 | AS116: 0 | AT116: 0 | AU116: 0 | AV116: 0 | AW116: 0 | AX116: =IFERROR(AY116*('Allocation Detail'!#REF!/'Allocation Detail'!#REF!),0) -> 0 | AY116: 0 | AZ116: 0
F117: 115 | G117: 114 | H117: 0 | I117: 0 | J117: 0 | K117: 0 | L117: 0 | M117: =IFERROR(ROUND(-SUM(H117,L117)*'Allocation Detail'!$E$13/12,2),0) -> 0 | N117: =IFERROR(ROUND(-SUM(I117,J117,K117)*'Allocation Detail'!$E$13/12,2),0) -> 0 | O117: 0 | P117: 0 | Q117: 0 | R117: 0 | S117: 0 | T117: =IFERROR(U117*('Allocation Detail'!#REF!/'Allocation Detail'!#REF!),0) -> 0 | U117: 0 | V117: 0 | Y117: =Y116+1 -> 115 | Z117: 114 | AA117: 0 | AB117: 0 | AC117: 0 | AD117: 0 | AE117: 0 | AF117: 0 | AH117: =AH116+1 -> 115 | AI117: 114 | AJ117: 0 | AK117: 0 | AL117: 0 | AM117: 0 | AN117: 0 | AO117: 0 | AP117: 0 | AQ117: =IFERROR(ROUND(-SUM(AJ117,AO117)*'Allocation Detail'!$E$13/12,2),0) -> 0 | AR117: =IFERROR(ROUND(-SUM(AK117,AM117,AN117)*'Allocation Detail'!$H$13/12,2),0) -> 0 | AS117: 0 | AT117: 0 | AU117: 0 | AV117: 0 | AW117: 0 | AX117: =IFERROR(AY117*('Allocation Detail'!#REF!/'Allocation Detail'!#REF!),0) -> 0 | AY117: 0 | AZ117: 0
F118: 116 | G118: 115 | H118: 0 | I118: 0 | J118: 0 | K118: 0 | L118: 0 | M118: =IFERROR(ROUND(-SUM(H118,L118)*'Allocation Detail'!$E$13/12,2),0) -> 0 | N118: =IFERROR(ROUND(-SUM(I118,J118,K118)*'Allocation Detail'!$E$13/12,2),0) -> 0 | O118: 0 | P118: 0 | Q118: 0 | R118: 0 | S118: 0 | T118: =IFERROR(U118*('Allocation Detail'!#REF!/'Allocation Detail'!#REF!),0) -> 0 | U118: 0 | V118: 0 | Y118: 116 | Z118: 115 | AA118: 0 | AB118: 0 | AC118: 0 | AD118: 0 | AE118: 0 | AF118: 0 | AH118: 116 | AI118: 115 | AJ118: 0 | AK118: 0 | AL118: 0 | AM118: 0 | AN118: 0 | AO118: 0 | AP118: 0 | AQ118: =IFERROR(ROUND(-SUM(AJ118,AO118)*'Allocation Detail'!$E$13/12,2),0) -> 0 | AR118: =IFERROR(ROUND(-SUM(AK118,AM118,AN118)*'Allocation Detail'!$H$13/12,2),0) -> 0 | AS118: 0 | AT118: 0 | AU118: 0 | AV118: 0 | AW118: 0 | AX118: =IFERROR(AY118*('Allocation Detail'!#REF!/'Allocation Detail'!#REF!),0) -> 0 | AY118: 0 | AZ118: 0
F119: 117 | G119: 116 | H119: 0 | I119: 0 | J119: 0 | K119: 0 | L119: 0 | M119: =IFERROR(ROUND(-SUM(H119,L119)*'Allocation Detail'!$E$13/12,2),0) -> 0 | N119: =IFERROR(ROUND(-SUM(I119,J119,K119)*'Allocation Detail'!$E$13/12,2),0) -> 0 | O119: 0 | P119: 0 | Q119: 0 | R119: 0 | S119: 0 | T119: =IFERROR(U119*('Allocation Detail'!#REF!/'Allocation Detail'!#REF!),0) -> 0 | U119: 0 | V119: 0 | Y119: 117 | Z119: 116 | AA119: 0 | AB119: 0 | AC119: 0 | AD119: 0 | AE119: 0 | AF119: 0 | AH119: 117 | AI119: 116 | AJ119: 0 | AK119: 0 | AL119: 0 | AM119: 0 | AN119: 0 | AO119: 0 | AP119: 0 | AQ119: =IFERROR(ROUND(-SUM(AJ119,AO119)*'Allocation Detail'!$E$13/12,2),0) -> 0 | AR119: =IFERROR(ROUND(-SUM(AK119,AM119,AN119)*'Allocation Detail'!$H$13/12,2),0) -> 0 | AS119: 0 | AT119: 0 | AU119: 0 | AV119: 0 | AW119: 0 | AX119: =IFERROR(AY119*('Allocation Detail'!#REF!/'Allocation Detail'!#REF!),0) -> 0 | AY119: 0 | AZ119: 0
F120: 118 | G120: 117 | H120: 0 | I120: 0 | J120: 0 | K120: 0 | L120: 0 | M120: =IFERROR(ROUND(-SUM(H120,L120)*'Allocation Detail'!$E$13/12,2),0) -> 0 | N120: =IFERROR(ROUND(-SUM(I120,J120,K120)*'Allocation Detail'!$E$13/12,2),0) -> 0 | O120: 0 | P120: 0 | Q120: 0 | R120: 0 | S120: 0 | T120: =IFERROR(U120*('Allocation Detail'!#REF!/'Allocation Detail'!#REF!),0) -> 0 | U120: 0 | V120: 0 | Y120: 118 | Z120: 117 | AA120: 0 | AB120: 0 | AC120: 0 | AD120: 0 | AE120: 0 | AF120: 0 | AH120: 118 | AI120: 117 | AJ120: 0 | AK120: 0 | AL120: 0 | AM120: 0 | AN120: 0 | AO120: 0 | AP120: 0 | AQ120: =IFERROR(ROUND(-SUM(AJ120,AO120)*'Allocation Detail'!$E$13/12,2),0) -> 0 | AR120: =IFERROR(ROUND(-SUM(AK120,AM120,AN120)*'Allocation Detail'!$H$13/12,2),0) -> 0 | AS120: 0 | AT120: 0 | AU120: 0 | AV120: 0 | AW120: 0 | AX120: =IFERROR(AY120*('Allocation Detail'!#REF!/'Allocation Detail'!#REF!),0) -> 0 | AY120: 0 | AZ120: 0
F121: 119 | G121: 118 | H121: 0 | I121: 0 | J121: 0 | K121: 0 | L121: 0 | M121: =IFERROR(ROUND(-SUM(H121,L121)*'Allocation Detail'!$E$13/12,2),0) -> 0 | N121: =IFERROR(ROUND(-SUM(I121,J121,K121)*'Allocation Detail'!$E$13/12,2),0) -> 0 | O121: 0 | P121: 0 | Q121: 0 | R121: 0 | S121: 0 | T121: =IFERROR(U121*('Allocation Detail'!#REF!/'Allocation Detail'!#REF!),0) -> 0 | U121: 0 | V121: 0 | Y121: 119 | Z121: 118 | AA121: 0 | AB121: 0 | AC121: 0 | AD121: 0 | AE121: 0 | AF121: 0 | AH121: 119 | AI121: 118 | AJ121: 0 | AK121: 0 | AL121: 0 | AM121: 0 | AN121: 0 | AO121: 0 | AP121: 0 | AQ121: =IFERROR(ROUND(-SUM(AJ121,AO121)*'Allocation Detail'!$E$13/12,2),0) -> 0 | AR121: =IFERROR(ROUND(-SUM(AK121,AM121,AN121)*'Allocation Detail'!$H$13/12,2),0) -> 0 | AS121: 0 | AT121: 0 | AU121: 0 | AV121: 0 | AW121: 0 | AX121: =IFERROR(AY121*('Allocation Detail'!#REF!/'Allocation Detail'!#REF!),0) -> 0 | AY121: 0 | AZ121: 0
F122: 120 | G122: 119 | H122: 0 | I122: 0 | J122: 0 | K122: 0 | L122: 0 | M122: =IFERROR(ROUND(-SUM(H122,L122)*'Allocation Detail'!$E$13/12,2),0) -> 0 | N122: =IFERROR(ROUND(-SUM(I122,J122,K122)*'Allocation Detail'!$E$13/12,2),0) -> 0 | O122: 0 | P122: 0 | Q122: 0 | R122: 0 | S122: 0 | T122: =IFERROR(U122*('Allocation Detail'!#REF!/'Allocation Detail'!#REF!),0) -> 0 | U122: 0 | V122: 0 | Y122: 120 | Z122: 119 | AA122: 0 | AB122: 0 | AC122: 0 | AD122: 0 | AE122: 0 | AF122: 0 | AH122: 120 | AI122: 119 | AJ122: 0 | AK122: 0 | AL122: 0 | AM122: 0 | AN122: 0 | AO122: 0 | AP122: 0 | AQ122: =IFERROR(ROUND(-SUM(AJ122,AO122)*'Allocation Detail'!$E$13/12,2),0) -> 0 | AR122: =IFERROR(ROUND(-SUM(AK122,AM122,AN122)*'Allocation Detail'!$H$13/12,2),0) -> 0 | AS122: 0 | AT122: 0 | AU122: 0 | AV122: 0 | AW122: 0 | AX122: =IFERROR(AY122*('Allocation Detail'!#REF!/'Allocation Detail'!#REF!),0) -> 0 | AY122: 0 | AZ122: 0
H123: =SUM(H3:H122) -> 0 | I123: =SUM(I3:I122) -> 0 | J123: 0 | K123: 0 | L123: 0 | M123: 0 | N123: 0 | O123: 0 | P123: 0 | Q123: 0 | R123: 0 | S123: 0 | T123: 0 | U123: 0 | V123: 0 | W123: IMC | X123: AC
U124: 10 Years | V124: =ROUND(V122,0) -> 0 | W124: 0 | X124: =AZ124 -> 0 | AD124: 10 Years | AE124: =AE122 -> 0 | AY124: 10 Years | AZ124: =ROUND(AZ122,0) -> 0
U125: 5 years | V125: =ROUND(V62,0) -> 0 | W125: 0 | X125: =AZ62 -> 0 | AD125: 5 years | AZ125: =ROUND(V122,0) -> 0
U126: 3 Years | V126: =ROUND(V38,0) -> 0 | W126: 0 | X126: =AZ38 -> 0 | AD126: 3 Years | AZ126: =AZ124-AZ125 -> 0
U127: 1 Year | V127: =ROUND(V14,0) -> 0 | W127: 0 | X127: =AZ14 -> 0 | AD127: 1 Year

Sheet Lists (hidden)
A1: Product name | E1: Dropdown
A2: Select: | E2: Select:
A3: Ashburton Ashmore | B3: Ashburton Fund Managers | E3: =IF(HLOOKUP('Ashburton EAC'!$C$2,Lists!$A$3:$C$10,F3,FALSE)=0,"",HLOOKUP('Ashburton EAC'!$C$2,Lists!$A$3:$C$10,F3,FALSE)) -> N/A | F3: 2
A4: Ashburton Investment Account | B4: N/A | E4: =IF(HLOOKUP('Ashburton EAC'!$C$2,Lists!$A$3:$C$10,F4,FALSE)=0,"",HLOOKUP('Ashburton EAC'!$C$2,Lists!$A$3:$C$10,F4,FALSE)) ->  | F4: =F3+1 -> 3
A5: Ashburton Tax Free Savings Account | E5: =IF(HLOOKUP('Ashburton EAC'!$C$2,Lists!$A$3:$C$10,F5,FALSE)=0,"",HLOOKUP('Ashburton EAC'!$C$2,Lists!$A$3:$C$10,F5,FALSE)) ->  | F5: =F4+1 -> 4
A6: Ashburton Retirement Annuity | E6: =IF(HLOOKUP('Ashburton EAC'!$C$2,Lists!$A$3:$C$10,F6,FALSE)=0,"",HLOOKUP('Ashburton EAC'!$C$2,Lists!$A$3:$C$10,F6,FALSE)) ->  | F6: 5
E7: =IF(HLOOKUP('Ashburton EAC'!$C$2,Lists!$A$3:$C$10,F7,FALSE)=0,"",HLOOKUP('Ashburton EAC'!$C$2,Lists!$A$3:$C$10,F7,FALSE)) ->  | F7: =F6+1 -> 6
E8: =IF(HLOOKUP('Ashburton EAC'!$C$2,Lists!$A$3:$C$10,F8,FALSE)=0,"",HLOOKUP('Ashburton EAC'!$C$2,Lists!$A$3:$C$10,F8,FALSE)) ->  | F8: =F7+1 -> 7
E9: =IF(HLOOKUP('Ashburton EAC'!$C$2,Lists!$A$3:$C$10,F9,FALSE)=0,"",HLOOKUP('Ashburton EAC'!$C$2,Lists!$A$3:$C$10,F9,FALSE)) ->  | F9: =F8+1 -> 8
B11: Ashburton Fund Managers | C11: =A3 -> Ashburton Ashmore
A12: Recurring & Income frequency | C12: Ashburton Investment Account | D12: Ashburton Tax Free Savings Account | E12: Ashburton Retirement Annuity
A13: Select: | B13: Ashburton Africa Equity Opportunities Feeder Fund | C13: Ashburton Balanced Fund | D13: Ashburton Balanced Fund | E13: Ashburton Balanced Fund
A14: Monthly | B14: Ashburton Balanced Fund | C14: Ashburton Equity Fund | D14: Ashburton Equity Fund | E14: Ashburton Money Market Fund
A15: Quarterly | B15: Ashburton Defensive Fund | C15: Ashburton Global Flexible Fund | D15: Ashburton Global Flexible Fund | E15: Ashburton SA Income Fund
A16: Half-yearly | B16: Ashburton Enhanced Value SA Tracker Fund | C16: Ashburton Money Market Fund | D16: Ashburton Money Market Fund | E16: Ashburton Stable Fund
A17: Annualy | B17: Ashburton Equity Fund | C17: Ashburton SA Income Fund | D17: Ashburton SA Income Fund | E17: Ashburton Targeted Return Fund
B18: Ashburton Global 1200 SA Tracker Fund | C18: Ashburton Stable Fund | D18: Ashburton Targeted Return Fund
B19: Ashburton Global Flexible Fund | C19: Ashburton Targeted Return Fund
A20: Platform | B20: Ashburton Govi Tracker Fund
A21: Select: | B21: Ashburton Growth Fund
A22: Ashburton Ashmore | B22: Ashburton Low Beta SA Composite Tracker Fund
A23: Ashburton Fund Managers | B23: Ashburton Momentum SA Tracker Fund
B24: Ashburton Money Market Fund
B25: Ashburton Multi Manager Bond Fund
A26: TFSA Limits | B26: Ashburton Multi Manager Equity Fund
A27: 36000 | B27: Ashburton Multi Manager Income Fund
A28: =A27/12 -> 3000 | B28: Ashburton Multi Manager Property Fund
B29: Ashburton Multi Manager Prudential Flexible Fund
B30: Ashburton Property Tracker Fund
B31: Ashburton SA Equity Fund
B32: Ashburton SA Income Fund
B33: Ashburton Stable Fund
B34: Ashburton Targeted Return Fund
B35: Atlantic BCI Enhanced Income Fund
B36: Atlantic BCI Real Income Fund
B37: Atlantic BCI Stable Income Fund

Sheet Instruments (hidden)
A1: TFSA | B1: FUND NAME | C1: ASISA Classification | D1: Fund Code | E1: TIC | F1: Performance Fee | G1: Min fee | H1: Max fee
A2: NO | B2: Ashburton Equity Fund | D2: ASEA1 | E2: 0.0115
A3: Yes | B3: Ashburton SA Income Fund | D3: ASIB1 | E3: 0.007475
A4: Yes | B4: Ashburton Targeted Return Fund | D4: ASTRB4 | E4: 0.0092
A5: Yes | B5: Ashburton Balanced Fund | D5: ABFA1 | E5: 0.0115
A6: Yes | B6: Ashburton Money Market Fund | D6: ASMMB1 | E6: 0.00345
A7: Yes | B7: Ashburton Bond Fund | D7: ASHBA | E7: 0.009775
A8: Yes | B8: Ashburton Property Fund | D8: ATFPA | E8: 0.01265
A9: Yes | B9: Ashburton Diversified Income Fund | D9: ASIFB | E9: 0.0069
A10: Yes | B10: Ashburton Stable Income Fund | D10: ASSIFA | E10: 0.005175
A11: Yes | B11: Ashburton Global Flexible Fund | D11: AGFA1 | E11: 0.01725
A12: Yes | B12: Ashburton Global Leaders ZAR Equity Feeder Fund | D12: ASGFDA | E12: 0.006325
B13: Ashburton GOVI Tracker Fund | D13: ASGTL | E13: 0.00345

Sheet Allocation Detail (hidden)
A1: Ashburton (Internal & Single Managed Models) Unit Trust Allocation
A2: Instrument Name | B2: TIC (Incl VAT) | C2: Lump sum % | D2: Lump sum amt | E2: WAF | F2: Recurring % | G2: Recurring amt | H2: WAF
A3: ='Ashburton EAC'!A23 -> 0 | B3: =IFERROR(VLOOKUP(A3,Instruments!$B$2:$E$13,4,FALSE),0) -> 0 | C3: =IF(A3="","",IFERROR(VLOOKUP(A3,Calculations!$A$25:$C$35,3,FALSE),0)) -> 0 | D3: =IFERROR(C3*Calculations!$D$10,"") -> 0 | E3: =C3*B3 -> 0 | F3: =IF(A3="",0,IFERROR(VLOOKUP(A3,Calculations!$A$25:$D$35,4,FALSE),0)) -> 0 | G3: =IFERROR(F3*Calculations!$D$19,"") -> 0 | H3: =IF(OR(A3="",F3=0),0,B3*(G3/$G$13)) -> 0
A4: ='Ashburton EAC'!A24 -> 0 | B4: =IFERROR(VLOOKUP(A4,Instruments!$B$2:$E$13,4,FALSE),0) -> 0 | C4: =IF(A4="","",IFERROR(VLOOKUP(A4,Calculations!$A$25:$C$35,3,FALSE),0)) -> 0 | D4: =IFERROR(C4*Calculations!$D$10,"") -> 0 | E4: =C4*B4 -> 0 | F4: =IF(A4="",0,IFERROR(VLOOKUP(A4,Calculations!$A$25:$D$35,4,FALSE),0)) -> 0 | G4: =IFERROR(F4*Calculations!$D$19,"") -> 0 | H4: =IF(OR(A4="",F4=0),0,B4*(G4/$G$13)) -> 0
A5: ='Ashburton EAC'!A25 -> 0 | B5: =IFERROR(VLOOKUP(A5,Instruments!$B$2:$E$13,4,FALSE),0) -> 0 | C5: =IF(A5="","",IFERROR(VLOOKUP(A5,Calculations!$A$25:$C$35,3,FALSE),0)) -> 0 | D5: =IFERROR(C5*Calculations!$D$10,"") -> 0 | E5: 0 | F5: =IF(A5="",0,IFERROR(VLOOKUP(A5,Calculations!$A$25:$D$35,4,FALSE),0)) -> 0 | G5: =IFERROR(F5*Calculations!$D$19,"") -> 0 | H5: 0
A6: ='Ashburton EAC'!A26 -> 0 | B6: =IFERROR(VLOOKUP(A6,Instruments!$B$2:$E$13,4,FALSE),0) -> 0 | C6: =IF(A6="","",IFERROR(VLOOKUP(A6,Calculations!$A$25:$C$35,3,FALSE),0)) -> 0 | D6: =IFERROR(C6*Calculations!$D$10,"") -> 0 | E6: 0 | F6: =IF(A6="",0,IFERROR(VLOOKUP(A6,Calculations!$A$25:$D$35,4,FALSE),0)) -> 0 | G6: =IFERROR(F6*Calculations!$D$19,"") -> 0 | H6: 0
A7: ='Ashburton EAC'!A27 -> 0 | B7: =IFERROR(VLOOKUP(A7,Instruments!$B$2:$E$13,4,FALSE),0) -> 0 | C7: =IF(A7="","",IFERROR(VLOOKUP(A7,Calculations!$A$25:$C$35,3,FALSE),0)) -> 0 | D7: =IFERROR(C7*Calculations!$D$10,"") -> 0 | E7: 0 | F7: =IF(A7="",0,IFERROR(VLOOKUP(A7,Calculations!$A$25:$D$35,4,FALSE),0)) -> 0 | G7: =IFERROR(F7*Calculations!$D$19,"") -> 0 | H7: 0
A8: ='Ashburton EAC'!A28 -> 0 | B8: =IFERROR(VLOOKUP(A8,Instruments!$B$2:$E$13,4,FALSE),0) -> 0 | C8: =IF(A8="","",IFERROR(VLOOKUP(A8,Calculations!$A$25:$C$35,3,FALSE),0)) -> 0 | D8: =IFERROR(C8*Calculations!$D$10,"") -> 0 | E8: 0 | F8: =IF(A8="",0,IFERROR(VLOOKUP(A8,Calculations!$A$25:$D$35,4,FALSE),0)) -> 0 | G8: =IFERROR(F8*Calculations!$D$19,"") -> 0 | H8: 0
A9: ='Ashburton EAC'!A29 -> 0 | B9: =IFERROR(VLOOKUP(A9,Instruments!$B$2:$E$13,4,FALSE),0) -> 0 | C9: =IF(A9="","",IFERROR(VLOOKUP(A9,Calculations!$A$25:$C$35,3,FALSE),0)) -> 0 | D9: =IFERROR(C9*Calculations!$D$10,"") -> 0 | E9: 0 | F9: =IF(A9="",0,IFERROR(VLOOKUP(A9,Calculations!$A$25:$D$35,4,FALSE),0)) -> 0 | G9: =IFERROR(F9*Calculations!$D$19,"") -> 0 | H9: 0
A10: ='Ashburton EAC'!A30 -> 0 | B10: =IFERROR(VLOOKUP(A10,Instruments!$B$2:$E$13,4,FALSE),0) -> 0 | C10: =IF(A10="","",IFERROR(VLOOKUP(A10,Calculations!$A$25:$C$35,3,FALSE),0)) -> 0 | D10: =IFERROR(C10*Calculations!$D$10,"") -> 0 | E10: 0 | F10: =IF(A10="",0,IFERROR(VLOOKUP(A10,Calculations!$A$25:$D$35,4,FALSE),0)) -> 0 | G10: =IFERROR(F10*Calculations!$D$19,"") -> 0 | H10: 0
A11: ='Ashburton EAC'!A31 -> 0 | B11: =IFERROR(VLOOKUP(A11,Instruments!$B$2:$E$13,4,FALSE),0) -> 0 | C11: =IF(A11="","",IFERROR(VLOOKUP(A11,Calculations!$A$25:$C$35,3,FALSE),0)) -> 0 | D11: =IFERROR(C11*Calculations!$D$10,"") -> 0 | E11: 0 | F11: =IF(A11="",0,IFERROR(VLOOKUP(A11,Calculations!$A$25:$D$35,4,FALSE),0)) -> 0 | G11: =IFERROR(F11*Calculations!$D$19,"") -> 0 | H11: 0
A12: ='Ashburton EAC'!A32 -> 0 | B12: =IFERROR(VLOOKUP(A12,Instruments!$B$2:$E$13,4,FALSE),0) -> 0 | C12: =IF(A12="","",IFERROR(VLOOKUP(A12,Calculations!$A$25:$C$35,3,FALSE),0)) -> 0 | D12: =IFERROR(C12*Calculations!$D$10,"") -> 0 | E12: 0 | F12: =IF(A12="",0,IFERROR(VLOOKUP(A12,Calculations!$A$25:$D$35,4,FALSE),0)) -> 0 | G12: =IFERROR(F12*Calculations!$D$19,"") -> 0 | H12: 0
C13: =SUM(C3:C12) -> 0 | D13: 0 | E13: =SUM(E3:E12) -> 0 | F13: =IF(A13="",0,VLOOKUP(A13,'Ashburton EAC'!A33:F43,6,FALSE)*E13) -> 0 | G13: 0 | H13: 0
